Workbook

Sheet RESUMO MODULO TOTAL
B1: EXECUÇÃO DE CAPA ASFÁLTICA EM CONCRETO BETUMINOSO USINADO A QUENTE (CBUQ), EM VIAS DE MUNICÍPIOS DIVERSOS INSERIDOS NA ÁREA DE ATUAÇÃO DA CODEVASF, NO ESTADO DE SERGIPE | N1: SERGIPE
B2: LOGO DA LICITANTE | M2: SICRO: | N2: 2024-04-01
M3: SINAPI: | N3: 2024-07-01
M4: DATA BASE: | N4: =TODAY() -> 2024-10-31
M5: DESCONTO: | N5: 0 | O5: Inserir o desconto ofertado na plataforma
B6: =B1 -> EXECUÇÃO DE CAPA ASFÁLTICA EM CONCRETO BETUMINOSO USINADO A QUENTE (CBUQ), EM VIAS DE MUNICÍPIOS DIVERSOS INSERIDOS NA ÁREA DE ATUAÇÃO DA CODEVASF, NO ESTADO DE SERGIPE
B7: ITEM | C7: ORIGEM COMPOSIÇÃO | D7: CÓDIGO COMPOSIÇÃO | E7: DISCRIMINAÇÃO DOS SERVIÇOS | I7: BDI % = | J7: 0.2308 | K7: BDI DIFERENCIADO%: | L7: =BDI!C66 -> 0.15 | M7: R$/m² = | N7: =TRUNC(111.87*(1-$N$5),4) -> 111.87
I8: Total de m² | J8: Encargos Sociais: | K8: Horista % | L8: Mensalista % | M8: PREÇO UNITÁRIO COM BDI E DESCONTO | N8: PREÇO TOTAL COM BDI E DESCONTO
I9: ='MC MODULO'!G9*'MC MODULO'!C9*'MC MODULO'!C10 -> 266000 | K9: ='ENC. SOCIAIS'!$E$47 -> 112.54 | L9: ='ENC. SOCIAIS'!$F$47 -> 70.11
I10: UND | J10: QTDE. | K10: BDI | L10: CUSTO UNITÁRIO
E11: MOBILIZAÇÃO/DESMOBILIZAÇÃO
A12: =VLOOKUP(N12,'RESUMO MODULO TOTAL'!#REF!,2,0) ->  | B12: 1 | C12: CODEVASF | D12: Mob | E12: Mobilização | I12: kmxfrente | J12: =Mob!C$50*Mob!$I$6 -> 1900 | K12: =$J$7 -> 0.2308 | L12: =Mob!$C$47 -> 202.69 | M12: =TRUNC(L12*(1+K12)*(1-$N$5),2) -> 249.47 | N12: =ROUND(J12*M12,2) -> 473993
A13: =VLOOKUP(N13,'RESUMO MODULO TOTAL'!#REF!,2,0) ->  | B13: 2 | C13: CODEVASF | D13: Mob | E13: Desmobilização | I13: kmxfrente | J13: =Mob!$I$6*Mob!$C$50 -> 1900 | K13: =$J$7 -> 0.2308 | L13: =Mob!$C$47 -> 202.69 | M13: =TRUNC(L13*(1+K13)*(1-$N$5),2) -> 249.47 | N13: =TRUNC(J13*M13,2) -> 473993
E14: INSTALAÇÃO DE CANTEIRO
A15: =VLOOKUP(#REF!,'RESUMO MODULO TOTAL'!#REF!,2,0) ->  | B15: 3 | C15: CODEVASF | D15: Canteiro | E15: Canteiro de Obras | I15: frente | J15: ='MC MODULO'!$B$26 -> 19 | K15: =$J$7 -> 0.2308 | L15: =' Canteiro'!$F$11 -> 797.81 | M15: 981.94 | N15: 18656.86
A16: =VLOOKUP(N15,'RESUMO MODULO TOTAL'!#REF!,2,0) ->  | B16: 4 | C16: SINAPI | D16: 103689 | E16: Fornecimento e instalação de placa de obra com chapa galvanizada e estrutura de madeira. af_03/2022_ps | I16: m² | J16: ='MC MODULO'!$F$31 -> 152 | K16: =$J$7 -> 0.2308 | L16: =CPUs!$J$8 -> 348.92 | M16: 429.45 | N16: 65276.4
E17: ADMINISTRAÇÃO LOCAL DA OBRA
B18: 5 | C18: CODEVASF | D18: Adm Local | E18: Administração Local da Obra | I18: und | J18: 1 | K18: =$J$7 -> 0.2308 | L18: ='Adm Local'!$J$243 -> 955775.33 | M18: 1176368.27 | N18: 1176368.27
A19: =VLOOKUP(N19,'RESUMO MODULO TOTAL'!#REF!,2,0) ->  | E19: PAVIMENTAÇÃO
A20: =VLOOKUP(N20,'RESUMO MODULO TOTAL'!#REF!,2,0) ->  | B20: 6 | C20: SICRO | D20: 4011463 | E20: Concreto asfáltico - faixa C - areia e brita comerciais | I20: t | J20: ='MC MODULO'!$H$38 -> 31920 | K20: =$J$7 -> 0.2308 | L20: =CPUs!$J$19 -> 202.41 | M20: 249.12 | N20: 7951910.4
A21: =VLOOKUP(N21,'RESUMO MODULO TOTAL'!#REF!,2,0) ->  | B21: 7 | C21: SICRO | D21: 4011353 | E21: Pintura de ligação | I21: m² | J21: ='MC MODULO'!$H$44 -> 266000 | K21: =$J$7 -> 0.2308 | L21: =CPUs!$J$49 -> 0.27 | M21: 0.33 | N21: 87780
A22: =VLOOKUP(N22,'RESUMO MODULO TOTAL'!#REF!,2,0) ->  | B22: 8 | C22: SICRO | D22: 4915663 | E22: Fresagem descontínua de revestimento asfáltico - espessura de 5 cm | I22: m³ | J22: ='MC MODULO'!$H$50 -> 1330 | K22: =$J$7 -> 0.2308 | L22: =CPUs!$J$71 -> 71.95 | M22: 88.55 | N22: 117771.5
A23: =VLOOKUP(N23,'RESUMO MODULO TOTAL'!#REF!,2,0) ->  | B23: 9 | C23: SICRO | D23: 4915618 | E23: Recomposição de camada granular do pavimento com material de jazida | I23: m² | J23: ='MC MODULO'!$H$56 -> 26600 | K23: =$J$7 -> 0.2308 | L23: =CPUs!J103 -> 3.07 | M23: 3.77 | N23: 100282
A24: =VLOOKUP(N24,'RESUMO MODULO TOTAL'!#REF!,2,0) ->  | E24: AQUISIÇÃO E TRANSPORTE DO MATERIAL BETUMINOSO
A25: =VLOOKUP(N25,'RESUMO MODULO TOTAL'!#REF!,2,0) ->  | B25: 10 | C25: CODEVASF | D25: CAP 50/70 | E25: Aquisição de Cimento Asfáltico CAP 50/70 | I25: t | J25: =' CONSUMO DE MAT. B TOTAL'!$O$13 -> 2058.52 | K25: =$L$7 -> 0.15 | L25: ='INSUMOS - ASF'!E10 -> 4980.52 | M25: 5727.59 | N25: 11790358.56
A26: =VLOOKUP(N26,'RESUMO MODULO TOTAL'!#REF!,2,0) ->  | B26: 11 | C26: CODEVASF | D26: T. CAP 50/70 | E26: Transporte CAP 50/70 | I26: t | J26: =' CONSUMO DE MAT. B TOTAL'!$O$13 -> 2058.52 | K26: =$L$7 -> 0.15 | L26: ='INSUMOS - ASF'!E28 -> 275.6840898 | M26: 317.03 | N26: 652612.59
A27: =VLOOKUP(N27,'RESUMO MODULO TOTAL'!#REF!,2,0) ->  | B27: 12 | C27: CODEVASF | D27: RR-1C | E27: Aquisição de Emulsão Asfáltica RR-1C | I27: t | J27: =' CONSUMO DE MAT. B TOTAL'!$O$11 -> 119.7 | K27: 0.15 | L27: ='INSUMOS - ASF'!E19 -> 3570.049751 | M27: 4105.55 | N27: 491434.33
A28: =VLOOKUP(N28,'RESUMO MODULO TOTAL'!#REF!,2,0) ->  | B28: 13 | C28: CODEVASF | D28: T. RR-1C | E28: Transporte RR-1C | I28: t | J28: =' CONSUMO DE MAT. B TOTAL'!$O$11 -> 119.7 | K28: 0.15 | L28: ='INSUMOS - ASF'!E37 -> 279.6179543 | M28: 321.56 | N28: 38490.73
A29: =VLOOKUP(N29,'RESUMO MODULO TOTAL'!#REF!,2,0) ->  | E29: SINALIZAÇÃO | N29: 0
A30: =VLOOKUP(N30,'RESUMO MODULO TOTAL'!#REF!,2,0) ->  | B30: 14 | C30: SICRO | D30: 5213440 | E30: Placa de regulamentação em aço D = 0,60 m - película retrorrefletiva tipo I + SI - fornecimento e implantação | I30: und | J30: ='MC MODULO'!$H$63 -> 114 | K30: =$J$7 -> 0.2308 | L30: =CPUs!$J$136 -> 252.07 | M30: 310.24 | N30: 35367.36
B31: 15 | C31: SICRO | D31: 5213464 | E31: Placa de advertência em aço, lado de 0,60 m - película retrorrefletiva tipo I + SI - fornecimento e implantação | I31: und | J31: ='MC MODULO'!$H$68 -> 114 | K31: =$J$7 -> 0.2308 | L31: =CPUs!$J$158 -> 252.1 | M31: 310.28 | N31: 35371.92
A32: =VLOOKUP(N32,'RESUMO MODULO TOTAL'!#REF!,2,0) ->  | B32: 16 | C32: SICRO | D32: 5213863 | E32: Suporte metálico galvanizado para placa de advertência ou regulamentação - lado ou diâmetro de 0,60 m - fornecimento e implantação | I32: und | J32: ='MC MODULO'!$H$74 -> 228 | K32: =$J$7 -> 0.2308 | L32: =CPUs!$J$180 -> 453.39 | M32: 558.03 | N32: 127230.84
A33: =VLOOKUP(N33,'RESUMO MODULO TOTAL'!#REF!,2,0) ->  | B33: 17 | C33: SICRO | D33: 5213400 | E33: Pintura de faixa com tinta acrílica - espessura de 0,4 mm | I33: m² | J33: ='MC MODULO'!$H$79 -> 9120 | K33: =$J$7 -> 0.2308 | L33: =CPUs!$J$216 -> 24.23 | M33: 29.82 | N33: 271958.4
A34: =VLOOKUP(N34,'RESUMO MODULO TOTAL'!#REF!,2,0) ->  | E34: DRENAGEM
A35: =VLOOKUP(N35,'RESUMO MODULO TOTAL'!#REF!,2,0) ->  | B35: 18 | C35: SICRO | D35: 4915777 | E35: Reassentamento manual de meio-fio com material arrancado da pista | I35: m | J35: ='MC MODULO'!$H$86 -> 7600 | K35: =$J$7 -> 0.2308 | L35: =CPUs!$J$255 -> 13.38 | M35: 16.46 | N35: 125096
A36: =VLOOKUP(N36,'RESUMO MODULO TOTAL'!#REF!,2,0) ->  | B36: 19 | C36: SICRO | D36: 4915708 | E36: Limpeza de sarjeta e meio-fio | I36: m | J36: ='MC MODULO'!$H$91 -> 76000 | K36: =$J$7 -> 0.2308 | L36: =CPUs!$J$270 -> 0.69 | M36: 0.84 | N36: 63840
A37: =VLOOKUP(N37,'RESUMO MODULO TOTAL'!#REF!,2,0) ->  | B37: 20 | C37: SICRO | D37: 4915724 | E37: Caiação mecanizada com fixador de cal | I37: m² | J37: ='MC MODULO'!$H$96 -> 18240 | K37: =$J$7 -> 0.2308 | L37: =CPUs!$J$284 -> 1.83 | M37: 2.25 | N37: 41040
A38: =VLOOKUP(N38,'RESUMO MODULO TOTAL'!#REF!,2,0) ->  | E38: PROJETO EXECUTIVO
A39: =VLOOKUP(N39,'RESUMO MODULO TOTAL'!#REF!,2,0) ->  | B39: 21 | C39: CODEVASF | D39: Projeto Executivo | E39: Projeto Executivo | I39: m² | J39: ='MC MODULO'!$H$103 -> 266000 | K39: =$J$7 -> 0.2308 | L39: ='Projeto Executivo'!$G$29 -> 1.589498571 | M39: 1.95 | N39: 518700
A40: =VLOOKUP(N40,'RESUMO MODULO TOTAL'!#REF!,2,0) ->  | E40: MOMENTO DE TRANSPORTE
A41: =VLOOKUP(N41,'RESUMO MODULO TOTAL'!#REF!,2,0) ->  | B41: 22 | C41: SICRO | D41: 5914359 | E41: Transporte com caminhão basculante de 10 m³ - rodovia em leito natural | I41: tkm | J41: ='MOMENTO DE TRANSPORTE - PRINC'!$D$12+'MOMENTO DE TRANSPORTE - AUX'!$D$11 -> 63781.59 | K41: =$J$7 -> 0.2308 | L41: =CPUs!$J$310 -> 1.19 | M41: 1.46 | N41: 93121.12
A42: =VLOOKUP(N42,'RESUMO MODULO TOTAL'!#REF!,2,0) ->  | B42: 23 | C42: SICRO | D42: 5914374 | E42: Transporte com caminhão basculante de 10 m³ - rodovia em revestimento primário | I42: tkm | J42: ='MOMENTO DE TRANSPORTE - PRINC'!$D$13+'MOMENTO DE TRANSPORTE - AUX'!$D$12 -> 255126.35 | K42: =$J$7 -> 0.2308 | L42: =CPUs!$J$324 -> 0.95 | M42: 1.16 | N42: 295946.56
A43: =VLOOKUP(N43,'RESUMO MODULO TOTAL'!#REF!,2,0) ->  | B43: 24 | C43: SICRO | D43: 5914389 | E43: Transporte com caminhão basculante de 10 m³ - rodovia pavimentada | I43: tkm | J43: ='MOMENTO DE TRANSPORTE - PRINC'!$D$14+'MOMENTO DE TRANSPORTE - AUX'!$D$13 -> 3844607.59 | K43: =$J$7 -> 0.2308 | L43: =CPUs!$J$338 -> 0.78 | M43: 0.96 | N43: 3690823.28
A44: =VLOOKUP(N44,'RESUMO MODULO TOTAL'!#REF!,2,0) ->  | B44: 25 | C44: SICRO | D44: 5914364 | E44: Transporte de cimento ou cal hidratada a granel com caminhão silo de 30 m³ - rodovia em leito natural | I44: tkm | J44: ='MOMENTO DE TRANSPORTE - AUX'!$D$14 -> 1829.65 | K44: =$J$7 -> 0.2308 | L44: =CPUs!$J$352 -> 0.87 | M44: 1.07 | N44: 1957.72
A45: =VLOOKUP(N45,'RESUMO MODULO TOTAL'!#REF!,2,0) ->  | B45: 26 | C45: SICRO | D45: 5914365 | E45: Transporte de cimento ou cal hidratada a granel com caminhão silo de 30 m³ - rodovia em revestimento primário | I45: tkm | J45: ='MOMENTO DE TRANSPORTE - AUX'!$D$15 -> 7318.62 | K45: 0.2308 | L45: =CPUs!$J$366 -> 0.7 | M45: 0.86 | N45: 6294.01
A46: =VLOOKUP(N46,'RESUMO MODULO TOTAL'!#REF!,2,0) ->  | B46: 27 | C46: SICRO | D46: 5914366 | E46: Transporte de cimento ou cal hidratada a granel com caminhão silo de 30 m³ - rodovia pavimentada | I46: tkm | J46: ='MOMENTO DE TRANSPORTE - AUX'!$D$16 -> 54889.63 | K46: 0.2308 | L46: =CPUs!$J$380 -> 0.57 | M46: 0.7 | N46: 38422.74
A47: =VLOOKUP(N47,'RESUMO MODULO TOTAL'!#REF!,2,0) ->  | B47: 28 | C47: SICRO | D47: 5914314 | E47: Transporte com caminhão basculante de 6 m³ - rodovia em leito natural | I47: tkm | J47: ='MOMENTO DE TRANSPORTE - PRINC'!$D$15 -> 10974.89 | K47: 0.2308 | L47: =CPUs!$J$394 -> 1.22 | M47: 1.5 | N47: 16462.33
A48: =VLOOKUP(N48,'RESUMO MODULO TOTAL'!#REF!,2,0) ->  | B48: 29 | C48: SICRO | D48: 5914329 | E48: Transporte com caminhão basculante de 6 m³ - rodovia em revestimento primário | I48: tkm | J48: ='MOMENTO DE TRANSPORTE - PRINC'!$D$16 -> 43899.58 | K48: 0.2308 | L48: =CPUs!$J$408 -> 0.97 | M48: 1.19 | N48: 52240.5
A49: =VLOOKUP(N49,'RESUMO MODULO TOTAL'!#REF!,2,0) ->  | B49: 30 | C49: SICRO | D49: 5914344 | E49: Transporte com caminhão basculante de 6 m³ - rodovia pavimentada | I49: tkm | J49: ='MOMENTO DE TRANSPORTE - PRINC'!$D$17 -> 932865.99 | K49: 0.2308 | L49: =CPUs!$J$422 -> 0.79 | M49: 0.97 | N49: 904880.01
J50: VALOR TOTAL DO SRP | N50: =$N$7*$I$9 -> 29757420

Sheet CRONOGRAMA TOTAL
A2: ='RESUMO MODULO TOTAL'!B1 -> EXECUÇÃO DE CAPA ASFÁLTICA EM CONCRETO BETUMINOSO USINADO A QUENTE (CBUQ), EM VIAS DE MUNICÍPIOS DIVERSOS INSERIDOS NA ÁREA DE ATUAÇÃO DA CODEVASF, NO ESTADO DE SERGIPE
A3: Cronograma Físico e Financeiro
A4: Item | B4: Descrição | C4: Total Por Etapa | D4: 30 DIAS | E4: 60 DIAS | F4: 90 DIAS | G4: 120 DIAS | H4: 150 DIAS | I4: 180 DIAS | J4: 210 DIAS | K4: 240 DIAS | L4: 270 DIAS | M4: 300 DIAS | N4: 330 DIAS | O4: 360 DIAS
B5: ='RESUMO MODULO TOTAL'!E11 -> MOBILIZAÇÃO/DESMOBILIZAÇÃO | C5: =SUM(D5:O5) -> 1 | G5: 0.5 | O5: 0.5
C6: =SUM('RESUMO MODULO TOTAL'!N12:N13) -> 947986 | G6: =$C$6*G5 -> 473993 | O6: =$C$6*O5 -> 473993 | P6: =SUM(D6:O6) -> 947986 | Q6: =IF(P6=C6,"OK","") -> OK
B7: ='RESUMO MODULO TOTAL'!E14 -> INSTALAÇÃO DE CANTEIRO | C7: =SUM(D7:O7) -> 1 | G7: 1
C8: =SUM('RESUMO MODULO TOTAL'!N15:N16) -> 83933.26 | G8: =$C$8*G7 -> 83933.26 | P8: =SUM(D8:O8) -> 83933.26 | Q8: =IF(P8=C8,"OK","") -> OK
B9: ='RESUMO MODULO TOTAL'!E17 -> ADMINISTRAÇÃO LOCAL DA OBRA | C9: =SUM(D9:O9) -> 1.00000928 | G9: =(G6+G8+G12+G14+G16+G18+G20+G22)/($O$29-$C$10-$C$20) -> 0.01988166442 | H9: =(H6+H8+H12+H14+H16+H18+H20+H22)/($O$29-$C$10-$C$20) -> 0.1563826429 | I9: 0.1563826429 | J9: 0.1563826429 | K9: 0.1563826429 | L9: 0.1563826429 | M9: 0.1604802325 | N9: 0.02084346051 | O9: 0.0168907084
C10: =SUM('RESUMO MODULO TOTAL'!N18) -> 1176368.27 | G10: =$C$10*G9 -> 23388.15918 | H10: 183963.5791 | I10: 183963.5791 | J10: 183963.5791 | K10: 183963.5791 | L10: 183963.5791 | M10: 188783.8535 | N10: 24519.58558 | O10: =C10-SUM(G10:N10) -> 19858.77624 | P10: =SUM(D10:O10) -> 1176368.27 | Q10: =IF(P10=C10,"OK","") -> OK
B11: ='RESUMO MODULO TOTAL'!E19 -> PAVIMENTAÇÃO | C11: =SUM(D11:O11) -> 1 | H11: =1/6 -> 0.1666666667 | I11: 0.1666666667 | J11: 0.1666666667 | K11: 0.1666666667 | L11: 0.1666666667 | M11: =1/6 -> 0.1666666667
C12: =SUM('RESUMO MODULO TOTAL'!N20:N23) -> 8257743.9 | H12: =$C$12*H11 -> 1376290.65 | I12: 1376290.65 | J12: 1376290.65 | K12: 1376290.65 | L12: 1376290.65 | M12: 1376290.65 | P12: =SUM(D12:O12) -> 8257743.9 | Q12: =IF(P12=C12,"OK","") -> OK
B13: ='RESUMO MODULO TOTAL'!E24 -> AQUISIÇÃO E TRANSPORTE DO MATERIAL BETUMINOSO | C13: =SUM(D13:O13) -> 1 | H13: 0.1666666667 | I13: 0.1666666667 | J13: 0.1666666667 | K13: 0.1666666667 | L13: 0.1666666667 | M13: =1/6 -> 0.1666666667
C14: =SUM('RESUMO MODULO TOTAL'!N25:N28) -> 12972896.21 | H14: =$C$14*H13 -> 2162149.368 | I14: 2162149.368 | J14: 2162149.368 | K14: 2162149.368 | L14: 2162149.368 | M14: 2162149.368 | P14: =SUM(D14:O14) -> 12972896.21 | Q14: =IF(P14=C14,"OK","") -> OK
B15: ='RESUMO MODULO TOTAL'!E29 -> SINALIZAÇÃO | C15: =SUM(D15:O15) -> 1 | N15: 1
C16: =SUM('RESUMO MODULO TOTAL'!N30:N33) -> 469928.52 | N16: =$C$16*N15 -> 469928.52 | P16: =SUM(D16:O16) -> 469928.52 | Q16: =IF(P16=C16,"OK","") -> OK
B17: ='RESUMO MODULO TOTAL'!E34 -> DRENAGEM | C17: =SUM(D17:O17) -> 1 | M17: 0.5 | N17: 0.5
C18: =SUM('RESUMO MODULO TOTAL'!N35:N37) -> 229976 | M18: =$C$18*M17 -> 114988 | N18: 114988 | P18: =SUM(D18:O18) -> 229976 | Q18: =IF(P18=C18,"OK","") -> OK
B19: ='RESUMO MODULO TOTAL'!E38 -> PROJETO EXECUTIVO | C19: =SUM(D19:O19) -> 1 | D19: 0.3 | E19: 0.5 | F19: 0.2
C20: =SUM('RESUMO MODULO TOTAL'!N39) -> 518700 | D20: =$C$20*D19 -> 155610 | E20: =$C$20*E19 -> 259350 | F20: 103740 | P20: =SUM(D20:O20) -> 518700 | Q20: =IF(P20=C20,"OK","") -> OK
B21: ='RESUMO MODULO TOTAL'!E40 -> MOMENTO DE TRANSPORTE | C21: =SUM(D21:O21) -> 1 | H21: =1/6 -> 0.1666666667 | I21: =1/6 -> 0.1666666667 | J21: 0.1666666667 | K21: 0.1666666667 | L21: 0.1666666667 | M21: 0.1666666667
C22: =SUM('RESUMO MODULO TOTAL'!N41:N49) -> 5100148.27 | H22: =$C$22*H21 -> 850024.7117 | I22: 850024.7117 | J22: 850024.7117 | K22: 850024.7117 | L22: 850024.7117 | M22: 850024.7117 | P22: =SUM(D22:O22) -> 5100148.27 | Q22: =IF(P22=C22,"OK","") -> OK
A24: Porcentagem | D24: =SUM(D6+D8+D10+D12+D14+D16+D18+D20+D22)/$O$29 -> 0.00522928399 | E24: =SUM(E6+E8+E10+E12+E14+E16+E18+E20+E22)/$O$29 -> 0.008715473317 | F24: =SUM(F6+F8+F10+F12+F14+F16+F18+F20+F22)/$O$29 -> 0.003486189327 | G24: =SUM(G6+G8+G10+G12+G14+G16+G18+G20+G22)/$O$29 -> 0.01953510819 | H24: 0.1536567454 | I24: 0.1536567454 | J24: 0.1536567454 | K24: 0.1536567454 | L24: 0.1536567454 | M24: 0.1576829101 | N24: 0.02048013926 | O24: 0.01659592049
A25: Custo | D25: =$O$29*D24 -> 155610 | E25: =$O$29*E24 -> 259350 | F25: =$O$29*F24 -> 103740 | G25: 581314.4192 | H25: 4572428.309 | I25: 4572428.309 | J25: 4572428.309 | K25: 4572428.309 | L25: 4572428.309 | M25: 4692236.583 | N25: 609436.1056 | O25: 493851.7762
A26: Porcentagem Acumulado | D26: =D24 -> 0.00522928399 | E26: =D26+E24 -> 0.01394475731 | F26: =E26+F24 -> 0.01743094663 | G26: 0.03696605483 | H26: 0.1906228002 | I26: 0.3442795457 | J26: 0.4979362911 | K26: 0.6515930365 | L26: 0.8052497819 | M26: 0.962932692 | N26: 0.9834128313 | O26: =N26+O24 -> 1.000008752
A27: Custo Acumulado | D27: =D25 -> 155610 | E27: =D27+E25 -> 414960 | F27: 518700 | G27: 1100014.419 | H27: 5672442.728 | I27: 10244871.04 | J27: 14817299.35 | K27: 19389727.66 | L27: 23962155.96 | M27: 28654392.55 | N27: 29263828.65 | O27: =N27+O25-260.43 -> 29757420
D29: Total Geral | N29: R$ | O29: ='RESUMO MODULO TOTAL'!$N$50 -> 29757420

Sheet BDI
A4: DETALHAMENTO DO BDI - SEM DESONERAÇÃO
A5: ='RESUMO MODULO TOTAL'!B1 -> EXECUÇÃO DE CAPA ASFÁLTICA EM CONCRETO BETUMINOSO USINADO A QUENTE (CBUQ), EM VIAS DE MUNICÍPIOS DIVERSOS INSERIDOS NA ÁREA DE ATUAÇÃO DA CODEVASF, NO ESTADO DE SERGIPE
A6: Descrição dos serviços | B6: Preço de Venda (%) | C6: Custo Direto (%)
A7: ADMINISTRAÇÃO CENTRAL | C7: 0.06
A8: CUSTOS FINANCEIROS | B8: 0.0079
A9: RISCOS | B9: 0.005
A10: SEGUROS E GARANTIAS CONTRATUAIS | B10: 0.0025
A11: LUCRO OPERACIONAL | C11: 0.07
A12: PIS | B12: 0.0065
A13: COFINS | B13: 0.03
A14: ISSQN | B14: 0.03
A15: Contribuição Previdenciaria | B15: 0
B16: BDI | C16: =ROUND(((1+(C7+C11))/(1-(B8+B9+B10+B12+B13+B14+B15))-1),4) -> 0.2308
A17: Observação: | B17: O percentual de ISSQN aqui utilizado consiste apenas em um referencial médio.
B18: O valor real do ISSQN a ser adotado deve ser aquele proveniente das alíquotas dos municípios situados na área de influência das obras.
A54: DETALHAMENTO DO BDI DIFERENCIADO - SEM DESONERAÇÃO
A55: ='RESUMO MODULO TOTAL'!B1 -> EXECUÇÃO DE CAPA ASFÁLTICA EM CONCRETO BETUMINOSO USINADO A QUENTE (CBUQ), EM VIAS DE MUNICÍPIOS DIVERSOS INSERIDOS NA ÁREA DE ATUAÇÃO DA CODEVASF, NO ESTADO DE SERGIPE
A56: DESCRIÇÃO DOS SERVIÇOS | B56: PREÇO DE VENDA (%) | C56: CUSTO DIRETO (%)
A57: ADMINISTRAÇÃO CENTRAL | C57: 0.0377
A58: DESPESA FINANCEIRAS | B58: 0.0102
A59: SEGUROS E GARANTIAS CONTRATUAIS | B59: 0.0025
A60: RISCOS | B60: 0.005
A61: LUCRO OPERACIONAL | C61: 0.05
A62: PIS | B62: 0.0065
A63: COFINS | B63: 0.03
A64: ISSQN | B64: 0
A65: Contribuição Previdenciaria | B65: 0
B66: BDI DIFERENCIADO | C66: =ROUND((1+(C57+C61))/(1-(B58+B59+B60+B62+B63+B64+B65))-1,4) -> 0.15
A67: Fonte da composição, valores de referência e fórmula do BDI: Instrução Normativa N° 62/DNIT SEDE

Sheet ENC. SOCIAIS
A5: ='RESUMO MODULO TOTAL'!B1 -> EXECUÇÃO DE CAPA ASFÁLTICA EM CONCRETO BETUMINOSO USINADO A QUENTE (CBUQ), EM VIAS DE MUNICÍPIOS DIVERSOS INSERIDOS NA ÁREA DE ATUAÇÃO DA CODEVASF, NO ESTADO DE SERGIPE
A7: DETALHAMENTO DOS ENCARGOS SOCIAIS (%)
A8: VIGÊNCIA A PARTIR DE 12/2023 | C8: COM DESONERAÇÃO | E8: SEM DESONERAÇÃO
C10: HORISTA | D10: MENSALISTA | E10: HORISTA | F10: MENSALISTA
A12: GRUPO A
A13: A1 | B13: INSS | C13: 0 | D13: 0 | E13: 20 | F13: 20
A14: A2 | B14: SESI | C14: 1.5 | D14: 1.5 | E14: 1.5 | F14: 1.5
A15: A3 | B15: SENAI | C15: 1 | D15: 1 | E15: 1 | F15: 1
A16: A4 | B16: INCRA | C16: 0.2 | D16: 0.2 | E16: 0.2 | F16: 0.2
A17: A5 | B17: SEBRAE | C17: 0.6 | D17: 0.6 | E17: 0.6 | F17: 0.6
A18: A6 | B18: Salário Educação | C18: 2.5 | D18: 2.5 | E18: 2.5 | F18: 2.5
A19: A7 | B19: Seguro Contra Acidentes de Trabalho | C19: 3 | D19: 3 | E19: 3 | F19: 3
A20: A8 | B20: FGTS | C20: 8 | D20: 8 | E20: 8 | F20: 8
A21: A9 | B21: SECONCI | C21: 1 | D21: 1 | E21: 0 | F21: -
A22: A | B22: Total | C22: =SUM(C13:C21) -> 17.8 | D22: =SUM(D13:D21) -> 17.8 | E22: =SUM(E13:E21) -> 36.8 | F22: =SUM(F13:F21) -> 36.8
A23: GRUPO B
A24: B1 | B24: Repouso Semanal Remunerado | C24: 17.88 | D24: - | E24: 17.87 | F24: -
A25: B2 | B25: Feriados | C25: 3.94 | D25: - | E25: 3.93 | F25: -
A26: B3 | B26: Auxílio-enfermidade | C26: 0.91 | D26: 0.69 | E26: 0.85 | F26: 0.64
A27: B4 | B27: 13° salário | C27: 10.98 | D27: 8.33 | E27: 10.98 | F27: 8.33
A28: B5 | B28: Licença-paternidade | C28: 0.07 | D28: 0.06 | E28: 0.06 | F28: 0.04
A29: B6 | B29: Faltas Justificadas | C29: 0.73 | D29: 0.56 | E29: 0.73 | F29: 0.56
A30: B7 | B30: Dias de chuva | C30: 1.45 | D30: - | E30: 1.51 | F30: -
A31: B8 | B31: Auxílio Acidente de Trabalho | C31: 0.11 | D31: 0.09 | E31: 0.1 | F31: 0.08
A32: B9 | B32: Férias Gozadas | C32: 11.35 | D32: 8.62 | E32: 11.37 | F32: 8.64
A33: B10 | B33: Salário Maternidade | C33: 0.03 | D33: 0.03 | E33: 0.04 | F33: 0.03 | L33: =(#REF!)/(1+#REF!) ->  | M33: =(#REF!) -> 
A34: B | B34: Total | C34: =SUM(C24:C33) -> 47.45 | D34: =SUM(D24:D33) -> 18.38 | E34: =SUM(E24:E33) -> 47.44 | F34: =SUM(F24:F33) -> 18.32
A35: GRUPO C
A36: C1 | B36: Aviso Prévio Indenizado | C36: 6.76 | D36: 5.14 | E36: 4.83 | F36: 3.67
A37: C2 | B37: Aviso Prévio Trabalhado | C37: 0.16 | D37: 0.12 | E37: 0.11 | F37: 0.09
A38: C3 | B38: Férias Indenizadas | C38: 2.28 | D38: 1.73 | E38: 2.35 | F38: 1.79
A39: C4 | B39: Depósito Rescisão Sem Justa Causa | C39: 3.81 | D39: 2.89 | E39: 2.71 | F39: 2.06
A40: C5 | B40: Indenização Adicional | C40: 0.57 | D40: 0.43 | E40: 0.41 | F40: 0.31
A41: C | B41: Total | C41: =SUM(C36:C40) -> 13.58 | D41: =SUM(D36:D40) -> 10.31 | E41: =SUM(E36:E40) -> 10.41 | F41: =SUM(F36:F40) -> 7.92
A42: GRUPO D
A43: D1 | B43: Reincidência de A sobre B | C43: 8.45 | D43: 3.27 | E43: 17.46 | F43: 6.74
A44: D2 | B44: Reincidência de Grupo A sobre Aviso Prévio Trabalhado e Reincidência do FGTS sobre Aviso Prévio Indenizado | C44: 0.57 | D44: 0.43 | E44: 0.43 | F44: 0.33
A45: D | B45: Total | C45: =SUM(C43:C44) -> 9.02 | D45: =SUM(D43:D44) -> 3.7 | E45: =SUM(E43:E44) -> 17.89 | F45: =SUM(F43:F44) -> 7.07
A47: T O T A L (%) | C47: =C22+C34+C41+C45 -> 87.85 | D47: =D22+D34+D41+D45 -> 50.19 | E47: =E22+E34+E41+E45 -> 112.54 | F47: =F22+F34+F41+F45 -> 70.11
H51: Fonte: Sinapi Cálculos e Parâmetros 8ª Edição - Atualizada em Junho de 2024

Sheet MC MODULO
A4: ='RESUMO MODULO TOTAL'!B1 -> EXECUÇÃO DE CAPA ASFÁLTICA EM CONCRETO BETUMINOSO USINADO A QUENTE (CBUQ), EM VIAS DE MUNICÍPIOS DIVERSOS INSERIDOS NA ÁREA DE ATUAÇÃO DA CODEVASF, NO ESTADO DE SERGIPE
A7: MEMÓRIA DE QUANTITATIVOS
A9: Extensão | B9: = | C9: 2000 | D9: m | F9: QUANTIDADE DE MÓDULOS | G9: 19
A10: Largura | B10: = | C10: 7 | D10: m
A12: Extensão | B12: = | C12: 2 | D12: km
B14: MOBILIZAÇÃO/DESMOBILIZAÇÃO
A16: 1 e 2 | B16: Mobilização/Desmobilização
B18: Módulos(und)
B19: =G9 -> 19
B21: INSTALAÇÃO DO CANTEIRO
A23: 3 | B23: Canteiro de Obras e Almoxarifado
B25: Módulos(und)
B26: =G9 -> 19
A28: 4 | B28: Placa de Obra em Chapa de Aço Galvanizado
B30: Módulos(un) | C30: Comprimento(m) | D30: Largura (m) | E30: Quantidade (und) | F30: Total de área de placa (m²)
B31: =G9 -> 19 | C31: 2 | D31: 4 | E31: 1 | F31: =C31*D31*B31*E31 -> 152
B33: PAVIMENTAÇÃO
A35: 6 | B35: Concreto asfáltico - faixa C - areia e brita comerciais
B37: Extensão (m) | C37: Largura (m) | D37: Espessura (m) | E37: Densidade (t/m³) | H37: Peso (t)
B38: =$C$9*G9 -> 38000 | C38: =$C$10 -> 7 | D38: 0.05 | E38: 2.4 | G38: = | H38: =B38*C38*D38*E38 -> 31920
A41: 7 | B41: Pintura de ligação
B43: Extensão (m) | D43: Largura (m) | H43: Área (m2)
B44: =$C$9*G9 -> 38000 | C44: x | D44: =$C$10 -> 7 | G44: = | H44: =B44*D44 -> 266000
A47: 8 | B47: Fresagem descontínua de revestimento asfáltico - espessura de 5 cm
B49: Extensão (m) | D49: Largura (m) | E49: Espessura (m) | H49: Volume (m3)
B50: =$C$9*G9 -> 38000 | C50: x | D50: =$C$10 -> 7 | E50: 0.05 | F50: 0.1 | G50: = | H50: =B50*D50*E50*F50 -> 1330
A53: 9 | B53: Recomposição de camada granular do pavimento com material de jazida
B55: Extensão (m) | D55: Largura (m) | H55: Área (m2)
B56: =$C$9*G9 -> 38000 | C56: x | D56: =$C$10 -> 7 | F56: =F50 -> 0.1 | G56: = | H56: =B56*D56*F56 -> 26600
B58: SINALIZAÇÃO
A60: 14 | B60: Placa de regulamentação em aço D = 0,60 m - película retrorrefletiva tipo I + SI - fornecimento e implantação
B62: Extensão (km) | D62: Quantidade (und/km) | H62: Quantidade (un)
B63: =$C$12*$G$9 -> 38 | C63: x | D63: 3 | G63: = | H63: =B63*D63 -> 114
A65: 15 | B65: Placa de advertência em aço, lado de 0,60 m - película retrorrefletiva tipo I + SI - fornecimento e implantação
B67: Extensão (km) | D67: Quantidade (und/km) | H67: Quantidade (un)
B68: =$C$12*$G$9 -> 38 | C68: x | D68: 3 | G68: = | H68: =B68*D68 -> 114
A71: 16 | B71: Suporte metálico galvanizado para placa de advertência ou regulamentação - lado ou diâmetro de 0,60 m - fornecimento e implantação
B73: Extensão (km) | D73: Quantidade (und/km) | H73: Quantidade (un)
B74: =$C$12*$G$9 -> 38 | C74: x | D74: =D63+D68 -> 6 | G74: = | H74: =B74*D74 -> 228
A76: 17 | B76: Pintura de faixa com tinta acrílica - espessura de 0,4 mm (bordos e eixo) | F76: 100% bordos + 40% eixo
B78: Extensão (m) | D78: Espessura (m) | F78: Quantidade (und) | H78: Área (m²)
B79: =C9*G9 -> 38000 | C79: x | D79: 0.1 | E79: x | F79: =2+0.4 -> 2.4 | G79: = | H79: =B79*D79*F79 -> 9120
B81: DRENAGEM
A83: 18 | B83: Reassentamento manual de meio fio com material arrancado da pista
B85: Extensão (m) | D85: Quantidade (und) | H85: Extensão(m)
B86: =$C$9*$G$9 -> 38000 | C86: x | D86: 2 | E86: 0.1 | G86: = | H86: =B86*D86*E86 -> 7600
A88: 19 | B88: Limpeza de sarjeta e meio-fio
B90: Extensão (m) | D90: Quantidade (und) | H90: Extensão(m)
B91: =$C$9*$G$9 -> 38000 | C91: x | D91: 2 | G91: = | H91: =B91*D91 -> 76000
A93: 20 | B93: Caiação mecanizada com fixador de cal
B95: Extensão (m) | D95: Perimetro (m) | F95: Quantidade (und) | H95: Área (m²)
B96: =$C$9*$G$9 -> 38000 | C96: x | D96: =0.09+0.15 -> 0.24 | E96: x | F96: 2 | G96: = | H96: =B96*D96*F96 -> 18240
B98: PROJETO EXECUTIVO
A100: 21 | B100: Projeto Executivo
B102: Extensão (m) | D102: Largura (m) | H102: Área (m²)
B103: =$C$9*G9 -> 38000 | C103: x | D103: =C10 -> 7 | G103: = | H103: =B103*D103 -> 266000

Sheet MOMENTO DE TRANSPORTE - PRINC
B5: ='RESUMO MODULO TOTAL'!B1 -> EXECUÇÃO DE CAPA ASFÁLTICA EM CONCRETO BETUMINOSO USINADO A QUENTE (CBUQ), EM VIAS DE MUNICÍPIOS DIVERSOS INSERIDOS NA ÁREA DE ATUAÇÃO DA CODEVASF, NO ESTADO DE SERGIPE
B7: MEMÓRIA DE QUANTITATIVOS - MOMENTO DE TRANSPORTE (PRINCIPAL)
B8: DATA BASE: | C8: ='RESUMO MODULO TOTAL'!N2 -> 2024-04-01
C10: RESUMO DO TRANSPORTE PRINCIPAL
B11: CÓDIGO | C11: DESCRIÇÃO | D11: TKM
B12: 5914359 | C12: Transporte com caminhão basculante de 10 m³ - rodovia em leito natural | D12: =ROUND(SUMIF(A:A,B12,K:K),2) -> 35112
B13: 5914374 | C13: Transporte com caminhão basculante de 10 m³ - rodovia em revestimento primário | D13: =ROUND(SUMIF('MOMENTO DE TRANSPORTE - PRINC'!A:A,B13,'MOMENTO DE TRANSPORTE - PRINC'!K:K),2) -> 140448
B14: 5914389 | C14: Transporte com caminhão basculante de 10 m³ - rodovia pavimentada | D14: =ROUND(SUMIF('MOMENTO DE TRANSPORTE - PRINC'!A:A,B14,'MOMENTO DE TRANSPORTE - PRINC'!K:K),2) -> 2984520
B15: 5914314 | C15: Transporte com caminhão basculante de 6 m³ - rodovia em leito natural | D15: =ROUND(SUMIF('MOMENTO DE TRANSPORTE - PRINC'!A:A,B15,'MOMENTO DE TRANSPORTE - PRINC'!K:K),2) -> 10974.89
B16: 5914329 | C16: Transporte com caminhão basculante de 6 m³ - rodovia em revestimento primário | D16: =ROUND(SUMIF('MOMENTO DE TRANSPORTE - PRINC'!A:A,B16,'MOMENTO DE TRANSPORTE - PRINC'!K:K),2) -> 43899.58
B17: 5914344 | C17: Transporte com caminhão basculante de 6 m³ - rodovia pavimentada | D17: =ROUND(SUMIF('MOMENTO DE TRANSPORTE - PRINC'!A:A,B17,'MOMENTO DE TRANSPORTE - PRINC'!K:K),2) -> 932865.99
B19: TIPO (P, RP ou LN) | C19: DMT ESTIMADA (km)
B20: P | C20: 85
B22: COMPOSIÇÕES PRINCIPAIS
B23: SISTEMA DE CUSTOS REFERENCIAIS DE OBRAS - SICRO
B24: Custo Unitário de Referência | E24: =$C$8 -> 2024-04-01 | I24: Quantitativo | K24: t
B25: 4011463 | C25: Concreto asfáltico - faixa C - areia e brita comerciais | I25: =SUMIF('RESUMO MODULO TOTAL'!D:D,B25,'RESUMO MODULO TOTAL'!J:J) -> 31920
B26: D - ATIVIDADES AUXILIARES | D26: Quantidade | E26: Unidade
B27: 6416078 | C27: Usinagem de concreto asfáltico - faixa C - areia e brita comerciais | D27: 1 | E27: t
B29: F - MOMENTO DE TRANSPORTE | D29: Quantidade | E29: Unidade | F29: CÓDIGO TRANSPORTE
F30: LN | G30: RP | H30: P | I30: TIPO (P, RP ou LN) | J30: DMT ESTIMADA (km) | K30: QUANTITATIVO TOTAL DE TRANSPORTE (tkm)
A31: =IF(I31="P",H31,IF(I31="RP",G31,IF(I31="LN",F31,""))) -> 5914389 | B31: 6416078 | C31: Usinagem de concreto asfáltico - faixa C - areia e brita comerciais - Caminhão basculante com capacidade de 10 m³ - 188 Kw | D31: 1 | E31: tkm | F31: 5914359 | G31: 5914374 | H31: 5914389 | I31: =$B$20 -> P | J31: =$C$20 -> 85 | K31: =IF(ISBLANK(J31),"",J31*D31)*I25 -> 2713200
A32: =IF(I32="P",H32,IF(I32="RP",G32,IF(I32="LN",F32,""))) -> 
B33: Obs.
B34: SISTEMA DE CUSTOS REFERENCIAIS DE OBRAS - SICRO
B35: Custo Unitário de Referência | E35: =$C$8 -> 2024-04-01 | I35: Quantitativo | K35: m³
B36: 4915663 | C36: Fresagem descontínua de revestimento asfáltico - espessura de 5 cm | I36: =SUMIF('RESUMO MODULO TOTAL'!D:D,B36,'RESUMO MODULO TOTAL'!J:J) -> 1330
B37: D - ATIVIDADES AUXILIARES | D37: Quantidade | E37: Unidade
B40: F - MOMENTO DE TRANSPORTE | D40: Quantidade | E40: Unidade | F40: CÓDIGO TRANSPORTE
F41: LN | G41: RP | H41: P | I41: TIPO (P, RP ou LN) | J41: DMT ESTIMADA (km) | K41: QUANTITATIVO TOTAL DE TRANSPORTE (tkm)
A42: =IF(I42="P",H42,IF(I42="RP",G42,IF(I42="LN",F42,""))) -> 5914389 | B42: M3507 | C42: Revestimento asfáltico - Caminhão basculante com capacidade de 10 m³ - 188 kW | D42: 2.4 | E42: tkm | F42: 5914359 | G42: 5914374 | H42: 5914389 | I42: =$B$20 -> P | J42: =$C$20 -> 85 | K42: =IF(ISBLANK(J42),"",J42*D42)*I36 -> 271320
A43: =IF(I43="P",H43,IF(I43="RP",G43,IF(I43="LN",F43,""))) -> 
B44: Obs.
B45: COMPOSIÇÕES PRINCIPAIS
B46: SISTEMA DE CUSTOS REFERENCIAIS DE OBRAS - SICRO
B47: Custo Unitário de Referência | E47: =$C$8 -> 2024-04-01 | I47: Quantitativo | K47: m²
B48: 4915618 | C48: Recomposição de camada granular do pavimento com material de jazida | I48: =SUMIF('RESUMO MODULO TOTAL'!D:D,B48,'RESUMO MODULO TOTAL'!J:J) -> 26600
B49: D - ATIVIDADES AUXILIARES | D49: Quantidade | E49: Unidade
B50: 4016096 | C50: Escavação e carga de material de jazida com escavadeira hidráulica de 1,56 m³ | D50: 0.22005 | E50: m³
B52: F - MOMENTO DE TRANSPORTE | D52: Quantidade | E52: Unidade | F52: CÓDIGO TRANSPORTE
F53: LN | G53: RP | H53: P | I53: TIPO (P, RP ou LN) | J53: DMT ESTIMADA (km) | K53: QUANTITATIVO TOTAL DE TRANSPORTE (tkm)
A54: =IF(I54="P",H54,IF(I54="RP",G54,IF(I54="LN",F54,""))) -> 5914344 | B54: 4016096 | C54: Escavação e carga de material de jazida com escavadeira hidráulica de 1,56 m³ - Caminhão basculante com capacidade de 6 m³ - 136 kW | D54: 0.41259 | E54: tkm | F54: 5914314 | G54: 5914329 | H54: 5914344 | I54: =$B$20 -> P | J54: =$C$20 -> 85 | K54: =IF(ISBLANK(J54),"",J54*D54)*I48 -> 932865.99
A55: =IF(I55="P",H55,IF(I55="RP",G55,IF(I55="LN",F55,""))) -> 
B56: Obs.
B57: TIPO (P, RP ou LN) | C57: DMT ESTIMADA (km)
B58: RP | C58: 4
B60: COMPOSIÇÕES PRINCIPAIS
B61: SISTEMA DE CUSTOS REFERENCIAIS DE OBRAS - SICRO
B62: Custo Unitário de Referência | E62: =$C$8 -> 2024-04-01 | I62: Quantitativo | K62: t
B63: 4011463 | C63: Concreto asfáltico - faixa C - areia e brita comerciais | I63: =SUMIF('RESUMO MODULO TOTAL'!D:D,B63,'RESUMO MODULO TOTAL'!J:J) -> 31920
B64: D - ATIVIDADES AUXILIARES | D64: Quantidade | E64: Unidade
B65: 6416078 | C65: Usinagem de concreto asfáltico - faixa C - areia e brita comerciais | D65: =D27 -> 1 | E65: t
B67: F - MOMENTO DE TRANSPORTE | D67: Quantidade | E67: Unidade | F67: CÓDIGO TRANSPORTE
F68: LN | G68: RP | H68: P | I68: TIPO (P, RP ou LN) | J68: DMT ESTIMADA (km) | K68: QUANTITATIVO TOTAL DE TRANSPORTE (tkm)
A69: =IF(I69="P",H69,IF(I69="RP",G69,IF(I69="LN",F69,""))) -> 5914374 | B69: 6416078 | C69: Usinagem de concreto asfáltico - faixa C - areia e brita comerciais - Caminhão basculante com capacidade de 10 m³ - 188 Kw | D69: =D31 -> 1 | E69: tkm | F69: 5914359 | G69: 5914374 | H69: 5914389 | I69: RP | J69: =$C$58 -> 4 | K69: =IF(ISBLANK(J69),"",J69*D69)*I63 -> 127680
A70: =IF(I70="P",H70,IF(I70="RP",G70,IF(I70="LN",F70,""))) -> 
B71: Obs.
B72: SISTEMA DE CUSTOS REFERENCIAIS DE OBRAS - SICRO
B73: Custo Unitário de Referência | E73: =$C$8 -> 2024-04-01 | I73: Quantitativo | K73: m³
B74: 4915663 | C74: Fresagem descontínua de revestimento asfáltico - espessura de 5 cm | I74: =SUMIF('RESUMO MODULO TOTAL'!D:D,B74,'RESUMO MODULO TOTAL'!J:J) -> 1330
B75: D - ATIVIDADES AUXILIARES | D75: Quantidade | E75: Unidade
B78: F - MOMENTO DE TRANSPORTE | D78: Quantidade | E78: Unidade | F78: CÓDIGO TRANSPORTE
F79: LN | G79: RP | H79: P | I79: TIPO (P, RP ou LN) | J79: DMT ESTIMADA (km) | K79: QUANTITATIVO TOTAL DE TRANSPORTE (tkm)
A80: =IF(I80="P",H80,IF(I80="RP",G80,IF(I80="LN",F80,""))) -> 5914374 | B80: M3507 | C80: Revestimento asfáltico - Caminhão basculante com capacidade de 10 m³ - 188 kW | D80: =D42 -> 2.4 | E80: tkm | F80: 5914359 | G80: 5914374 | H80: 5914389 | I80: RP | J80: =$C$58 -> 4 | K80: =IF(ISBLANK(J80),"",J80*D80)*I74 -> 12768
A81: =IF(I81="P",H81,IF(I81="RP",G81,IF(I81="LN",F81,""))) -> 
B82: Obs.
B83: COMPOSIÇÕES PRINCIPAIS
B84: SISTEMA DE CUSTOS REFERENCIAIS DE OBRAS - SICRO
B85: Custo Unitário de Referência | E85: =$C$8 -> 2024-04-01 | I85: Quantitativo | K85: m²
B86: 4915618 | C86: Recomposição de camada granular do pavimento com material de jazida | I86: =SUMIF('RESUMO MODULO TOTAL'!D:D,B86,'RESUMO MODULO TOTAL'!J:J) -> 26600
B87: D - ATIVIDADES AUXILIARES | D87: Quantidade | E87: Unidade
B88: 4016096 | C88: Escavação e carga de material de jazida com escavadeira hidráulica de 1,56 m³ | D88: =D50 -> 0.22005 | E88: t
B90: F - MOMENTO DE TRANSPORTE | D90: Quantidade | E90: Unidade | F90: CÓDIGO TRANSPORTE
F91: LN | G91: RP | H91: P | I91: TIPO (P, RP ou LN) | J91: DMT ESTIMADA (km) | K91: QUANTITATIVO TOTAL DE TRANSPORTE (tkm)
A92: =IF(I92="P",H92,IF(I92="RP",G92,IF(I92="LN",F92,""))) -> 5914329 | B92: 4016096 | C92: Escavação e carga de material de jazida com escavadeira hidráulica de 1,56 m³ - Caminhão basculante com capacidade de 6 m³ - 136 kW | D92: =D54 -> 0.41259 | E92: tkm | F92: 5914314 | G92: 5914329 | H92: 5914344 | I92: RP | J92: =$C$58 -> 4 | K92: =IF(ISBLANK(J92),"",J92*D92)*I86 -> 43899.576
A93: =IF(I93="P",H93,IF(I93="RP",G93,IF(I93="LN",F93,""))) -> 
B94: Obs.
B95: TIPO (P, RP ou LN) | C95: DMT ESTIMADA (km)
B96: LN | C96: 1
B98: COMPOSIÇÕES PRINCIPAIS
B99: SISTEMA DE CUSTOS REFERENCIAIS DE OBRAS - SICRO
B100: Custo Unitário de Referência | E100: =$C$8 -> 2024-04-01 | I100: Quantitativo | K100: t
B101: 4011463 | C101: Concreto asfáltico - faixa C - areia e brita comerciais | I101: =SUMIF('RESUMO MODULO TOTAL'!D:D,B101,'RESUMO MODULO TOTAL'!J:J) -> 31920
B102: D - ATIVIDADES AUXILIARES | D102: Quantidade | E102: Unidade
B103: 6416078 | C103: Usinagem de concreto asfáltico - faixa C - areia e brita comerciais | D103: =D27 -> 1 | E103: t
B105: F - MOMENTO DE TRANSPORTE | D105: Quantidade | E105: Unidade | F105: CÓDIGO TRANSPORTE
F106: LN | G106: RP | H106: P | I106: TIPO (P, RP ou LN) | J106: DMT ESTIMADA (km) | K106: QUANTITATIVO TOTAL DE TRANSPORTE (tkm)
A107: =IF(I107="P",H107,IF(I107="RP",G107,IF(I107="LN",F107,""))) -> 5914359 | B107: 6416078 | C107: Usinagem de concreto asfáltico - faixa C - areia e brita comerciais - Caminhão basculante com capacidade de 10 m³ - 188 Kw | D107: =D31 -> 1 | E107: tkm | F107: 5914359 | G107: 5914374 | H107: 5914389 | I107: LN | J107: =$C$96 -> 1 | K107: =IF(ISBLANK(J107),"",J107*D107)*I101 -> 31920
A108: =IF(I108="P",H108,IF(I108="RP",G108,IF(I108="LN",F108,""))) -> 
B109: Obs.
B110: SISTEMA DE CUSTOS REFERENCIAIS DE OBRAS - SICRO
B111: Custo Unitário de Referência | E111: =$C$8 -> 2024-04-01 | I111: Quantitativo | K111: m³
B112: 4915663 | C112: Fresagem descontínua de revestimento asfáltico - espessura de 5 cm | I112: =SUMIF('RESUMO MODULO TOTAL'!D:D,B112,'RESUMO MODULO TOTAL'!J:J) -> 1330
B113: D - ATIVIDADES AUXILIARES | D113: Quantidade | E113: Unidade
B116: F - MOMENTO DE TRANSPORTE | D116: Quantidade | E116: Unidade | F116: CÓDIGO TRANSPORTE
F117: LN | G117: RP | H117: P | I117: TIPO (P, RP ou LN) | J117: DMT ESTIMADA (km) | K117: QUANTITATIVO TOTAL DE TRANSPORTE (tkm)
A118: =IF(I118="P",H118,IF(I118="RP",G118,IF(I118="LN",F118,""))) -> 5914359 | B118: M3507 | C118: Revestimento asfáltico - Caminhão basculante com capacidade de 10 m³ - 188 kW | D118: =D42 -> 2.4 | E118: tkm | F118: 5914359 | G118: 5914374 | H118: 5914389 | I118: LN | J118: =$C$96 -> 1 | K118: =IF(ISBLANK(J118),"",J118*D118)*I112 -> 3192
A119: =IF(I119="P",H119,IF(I119="RP",G119,IF(I119="LN",F119,""))) -> 
B120: Obs.
B121: COMPOSIÇÕES PRINCIPAIS
B122: SISTEMA DE CUSTOS REFERENCIAIS DE OBRAS - SICRO
B123: Custo Unitário de Referência | E123: =$C$8 -> 2024-04-01 | I123: Quantitativo | K123: m²
B124: 4915618 | C124: Recomposição de camada granular do pavimento com material de jazida | I124: =SUMIF('RESUMO MODULO TOTAL'!D:D,B124,'RESUMO MODULO TOTAL'!J:J) -> 26600
B125: D - ATIVIDADES AUXILIARES | D125: Quantidade | E125: Unidade
B126: 4016096 | C126: Escavação e carga de material de jazida com escavadeira hidráulica de 1,56 m³ | D126: =D50 -> 0.22005 | E126: t
B128: F - MOMENTO DE TRANSPORTE | D128: Quantidade | E128: Unidade | F128: CÓDIGO TRANSPORTE
F129: LN | G129: RP | H129: P | I129: TIPO (P, RP ou LN) | J129: DMT ESTIMADA (km) | K129: QUANTITATIVO TOTAL DE TRANSPORTE (tkm)
A130: =IF(I130="P",H130,IF(I130="RP",G130,IF(I130="LN",F130,""))) -> 5914314 | B130: 4016096 | C130: Escavação e carga de material de jazida com escavadeira hidráulica de 1,56 m³ - Caminhão basculante com capacidade de 6 m³ - 136 kW | D130: =D92 -> 0.41259 | E130: tkm | F130: 5914314 | G130: 5914329 | H130: 5914344 | I130: LN | J130: =$C$96 -> 1 | K130: =IF(ISBLANK(J130),"",J130*D130)*I124 -> 10974.894
A131: =IF(I131="P",H131,IF(I131="RP",G131,IF(I131="LN",F131,""))) -> 
B132: Obs.

Sheet MOMENTO DE TRANSPORTE - AUX
B4: ='RESUMO MODULO TOTAL'!B1 -> EXECUÇÃO DE CAPA ASFÁLTICA EM CONCRETO BETUMINOSO USINADO A QUENTE (CBUQ), EM VIAS DE MUNICÍPIOS DIVERSOS INSERIDOS NA ÁREA DE ATUAÇÃO DA CODEVASF, NO ESTADO DE SERGIPE
B6: MEMÓRIA DE QUANTITATIVOS - MOMENTO DE TRANSPORTE (AUXILIAR)
B7: DATA BASE: | C7: ='MOMENTO DE TRANSPORTE - PRINC'!C8 -> 2024-04-01
B9: RESUMO DO TRANSPORTE AUXILIAR
B10: CODIGO | C10: DESCRIÇÃO | D10: TKM
B11: 5914359 | C11: Transporte com caminhão basculante de 10 m³ - rodovia em leito natural | D11: =ROUND(SUMIF(A:A,B11,K:K),2) -> 28669.59
B12: 5914374 | C12: Transporte com caminhão basculante de 10 m³ - rodovia em revestimento primário | D12: 114678.35
B13: 5914389 | C13: Transporte com caminhão basculante de 10 m³ - rodovia pavimentada | D13: 860087.59
B14: 5914364 | C14: Transporte de cimento ou cal hidratada a granel com caminhão silo de 30 m³ - rodovia em leito natural | D14: 1829.65
B15: 5914365 | C15: Transporte de cimento ou cal hidratada a granel com caminhão silo de 30 m³ - rodovia em revestimento primário | D15: 7318.62
B16: 5914366 | C16: Transporte de cimento ou cal hidratada a granel com caminhão silo de 30 m³ - rodovia pavimentada | D16: 54889.63
B18: TIPO (P, RP ou LN) | C18: DMT ATÉ 50 KM NÃO DEVE SER PAGA | D18: SOMENTE DEVE SER ADICIONADO A DISTÂNCIA EXCEDENTE A 50 KM
B19: P | D19: 30
B21: SISTEMA DE CUSTOS REFERENCIAIS DE OBRAS - SICRO | I21: Quantitivo
B22: Custo Unitário de Referência | E22: =$C$7 -> 2024-04-01 | I22: (Coeficiente na composição principal) x (quantidade da principal no orçamento) | K22: t
B23: 6416078 | C23: Usinagem de concreto asfáltico - faixa C - areia e brita comerciais | I23: =('MOMENTO DE TRANSPORTE - PRINC'!D27*VLOOKUP(C32,'RESUMO MODULO TOTAL'!D:N,7,FALSE)) -> 31920
B24: F - MOMENTO DE TRANSPORTE | D24: Quantidade | E24: Unidade | F24: DMT
F25: LN | G25: RP | H25: P | I25: TIPO (P, RP ou LN) | J25: DMT ESTIMADA (km) | K25: QUANTITATIVO TOTAL DE TRANSPORTE DE MATERIAL (tkm)
A26: =IF(I26="P",H26,IF(I26="RP",G26,IF(I26="LN",F26,""))) -> 5914389 | B26: M0028 | C26: Areia média - Caminhão basculante 10 m³ | D26: 0.49686 | E26: tkm | F26: 5914359 | G26: 5914374 | H26: 5914389 | I26: =$B$19 -> P | J26: =$D$19 -> 30 | K26: =IF(ISBLANK(J26),"",J26*(D26*$I$23)) -> 475793.136
A27: =IF(I27="P",H27,IF(I27="RP",G27,IF(I27="LN",F27,""))) -> 5914389 | B27: M0005 | C27: Brita 0 - Caminhão basculante 10 m³ | D27: 0.09555 | E27: tkm | F27: 5914359 | G27: 5914374 | H27: 5914389 | I27: P | J27: =$D$19 -> 30 | K27: =IF(ISBLANK(J27),"",J27*(D27*$I$23)) -> 91498.68
A28: 5914389 | B28: M0191 | C28: Brita 1 - Caminhão basculante 10 m³ | D28: 0.09555 | E28: tkm | F28: 5914359 | G28: 5914374 | H28: 5914389 | I28: P | J28: =$D$19 -> 30 | K28: 91498.68
A29: 5914366 | B29: M0344 | C29: Cal hidratada - a granel - Caminhão silo 30 m³ | D29: 0.05732 | E29: tkm | F29: 5914364 | G29: 5914365 | H29: 5914366 | I29: P | J29: =$D$19 -> 30 | K29: 54889.632
A30: 5914389 | B30: M1103 | C30: Pedrisco - Caminhão basculante 10 m³ | D30: 0.21021 | E30: tkm | F30: 5914359 | G30: 5914374 | H30: 5914389 | I30: P | J30: =$D$19 -> 30 | K30: 201297.096
A32: =IF(I32="P",H32,IF(I32="RP",G32,IF(I32="LN",F32,""))) ->  | B32: PRINCIPAL: | C32: ='MOMENTO DE TRANSPORTE - PRINC'!B25 -> 4011463
B33: TIPO (P, RP ou LN) | C33: DMT ATÉ 50 KM NÃO DEVE SER PAGA | D33: DMT ACIMA DE 50 KM
B34: RP | C34: 0 | D34: 4
B36: SISTEMA DE CUSTOS REFERENCIAIS DE OBRAS - SICRO | I36: Quantitivo
B37: Custo Unitário de Referência | E37: =$C$7 -> 2024-04-01 | I37: (Coeficiente na composição principal) x (quantidade da principal no orçamento) | K37: t
B38: 6416078 | C38: Usinagem de concreto asfáltico - faixa C - areia e brita comerciais | I38: =('MOMENTO DE TRANSPORTE - PRINC'!D27*VLOOKUP(C47,'RESUMO MODULO TOTAL'!D:N,7,FALSE)) -> 31920
B39: F - MOMENTO DE TRANSPORTE | D39: Quantidade | E39: Unidade | F39: DMT
F40: LN | G40: RP | H40: P | I40: TIPO (P, RP ou LN) | J40: DMT ESTIMADA (km) | K40: QUANTITATIVO TOTAL DE TRANSPORTE DE MATERIAL (tkm)
A41: =IF(I41="P",H41,IF(I41="RP",G41,IF(I41="LN",F41,""))) -> 5914374 | B41: M0028 | C41: Areia média - Caminhão basculante 10 m³ | D41: 0.49686 | E41: tkm | F41: 5914359 | G41: 5914374 | H41: 5914389 | I41: =$B$34 -> RP | J41: =$D$34 -> 4 | K41: =IF(ISBLANK(J41),"",J41*(D41*$I$23)) -> 63439.0848
A42: 5914374 | B42: M0005 | C42: Brita 0 - Caminhão basculante 10 m³ | D42: 0.09555 | E42: tkm | F42: 5914359 | G42: 5914374 | H42: 5914389 | I42: =$B$34 -> RP | J42: =$D$34 -> 4 | K42: =IF(ISBLANK(J42),"",J42*(D42*$I$23)) -> 12199.824
A43: 5914374 | B43: M0191 | C43: Brita 1 - Caminhão basculante 10 m³ | D43: 0.09555 | E43: tkm | F43: 5914359 | G43: 5914374 | H43: 5914389 | I43: RP | J43: 4 | K43: 12199.824
A44: 5914365 | B44: M0344 | C44: Cal hidratada - a granel - Caminhão silo 30 m³ | D44: 0.05732 | E44: tkm | F44: 5914364 | G44: 5914365 | H44: 5914366 | I44: RP | J44: 4 | K44: 7318.6176
A45: 5914374 | B45: M1103 | C45: Pedrisco - Caminhão basculante 10 m³ | D45: 0.21021 | E45: tkm | F45: 5914359 | G45: 5914374 | H45: 5914389 | I45: RP | J45: 4 | K45: 26839.6128
B47: PRINCIPAL: | C47: ='MOMENTO DE TRANSPORTE - PRINC'!B25 -> 4011463
B48: TIPO (P, RP ou LN) | C48: DMT ATÉ 50 KM NÃO DEVE SER PAGA | D48: DMT ACIMA DE 50 KM
B49: LN | C49: 0 | D49: 1
B51: SISTEMA DE CUSTOS REFERENCIAIS DE OBRAS - SICRO | I51: Quantitivo
B52: Custo Unitário de Referência | E52: =$C$7 -> 2024-04-01 | I52: (Coeficiente na composição principal) x (quantidade da principal no orçamento) | K52: t
B53: 6416078 | C53: Usinagem de concreto asfáltico - faixa C - areia e brita comerciais | I53: =('MOMENTO DE TRANSPORTE - PRINC'!D27*VLOOKUP(C62,'RESUMO MODULO TOTAL'!D:N,7,FALSE)) -> 31920
B54: F - MOMENTO DE TRANSPORTE | D54: Quantidade | E54: Unidade | F54: DMT
F55: LN | G55: RP | H55: P | I55: TIPO (P, RP ou LN) | J55: DMT ESTIMADA (km) | K55: QUANTITATIVO TOTAL DE TRANSPORTE DE MATERIAL (tkm)
A56: =IF(I56="P",H56,IF(I56="RP",G56,IF(I56="LN",F56,""))) -> 5914359 | B56: M0028 | C56: Areia média - Caminhão basculante 10 m³ | D56: 0.49686 | E56: tkm | F56: 5914359 | G56: 5914374 | H56: 5914389 | I56: =$B$49 -> LN | J56: =$D$49 -> 1 | K56: =IF(ISBLANK(J56),"",J56*(D56*$I$23)) -> 15859.7712
A57: 5914359 | B57: M0005 | C57: Brita 0 - Caminhão basculante 10 m³ | D57: 0.09555 | E57: tkm | F57: 5914359 | G57: 5914374 | H57: 5914389 | I57: =$B$49 -> LN | J57: =$D$49 -> 1 | K57: =IF(ISBLANK(J57),"",J57*(D57*$I$23)) -> 3049.956
A58: 5914359 | B58: M0191 | C58: Brita 1 - Caminhão basculante 10 m³ | D58: 0.09555 | E58: tkm | F58: 5914359 | G58: 5914374 | H58: 5914389 | I58: LN | J58: 1 | K58: 3049.956
A59: 5914364 | B59: M0344 | C59: Cal hidratada - a granel - Caminhão silo 30 m³ | D59: 0.05732 | E59: tkm | F59: 5914364 | G59: 5914365 | H59: 5914366 | I59: LN | J59: 1 | K59: 1829.6544
A60: 5914359 | B60: M1103 | C60: Pedrisco - Caminhão basculante 10 m³ | D60: 0.21021 | E60: tkm | F60: 5914359 | G60: 5914374 | H60: 5914389 | I60: LN | J60: 1 | K60: 6709.9032
B62: PRINCIPAL: | C62: ='MOMENTO DE TRANSPORTE - PRINC'!B25 -> 4011463
A63: =IF(I63="P",H63,IF(I63="RP",G63,IF(I63="LN",F63,""))) -> 
M84: =(#REF!) -> 

Sheet CONSUMO DE MAT. B TOTAL
A6: MEMÓRIA DE QUANTITATIVO - CONSUMO DO MATERIAL BETUMINOSO
A8: TRECHO | C8: QUANTIDADES | L8: MAT. BETUMINOSO
A9: Inicio (km) | B9: Fim (km) | C9: Extensão (m) | D9: Largura (m) | E9: Espess. (m) | F9: Área (m2) | G9: Volume (m3) | H9: Densidade (t/m3) | I9: Peso (t) | J9: Unid | K9: Quant. | L9: Tipo | M9: Consumo Taxa de Aplicação | N9: Unid. | O9: Quant.
A10: PINTURA DE LIGAÇÃO
E11: 1 | F11: ='MC MODULO'!H44 -> 266000 | L11: RR-1C | M11: 0.00045 | N11: t/m² | O11: =ROUND(F11*M11,2) -> 119.7
A12: CBUQ FAIXA "C"
I13: ='MC MODULO'!H38 -> 31920 | L13: CAP-50/70 | M13: =0.06449 -> 0.06449 | N13: t/t | O13: =ROUND(I13*M13,2) -> 2058.52

Sheet Mob
B4: ='RESUMO MODULO TOTAL'!B1 -> EXECUÇÃO DE CAPA ASFÁLTICA EM CONCRETO BETUMINOSO USINADO A QUENTE (CBUQ), EM VIAS DE MUNICÍPIOS DIVERSOS INSERIDOS NA ÁREA DE ATUAÇÃO DA CODEVASF, NO ESTADO DE SERGIPE
B5: MOBILIZAÇÃO/DESMOBILIZAÇÃO (MOB) | G5: Frentes de serviços | I5: ='MC MODULO'!B19 -> 19
G6: Distância da Capital ao Canteiro: | I6: 100
G8: Velocidade média de transporte (pavim.): | I8: 60
B10: Transporte dos equipamentos
B11: CÓDIGO | C11: EQUIPAMENTO | D11: VEÍCULO TRANSPORTADOR | E11: QTDE | F11: K | G11: FU | H11: CUSTO DO TRANSPORTE
H12: (R$/h) | I12: (R$)/km | J12: =I13*I6 -> 5802.584
A13: E9579 | B13: =TRIM(A13) -> E9579 | C13: Caminhão basculante com capacidade de 10 m³ - 188 kW | D13: E9579 | E13: 12 | F13: =IF(B13=D13,1,2) -> 1 | G13: 1 | H13: 290.1292 | I13: =((E13*F13*G13)/$I$8)*H13 -> 58.02584 | J13: =F13*G13*$I$6/$I$8 -> 1.666666667 | L13: 290.1292
A14: E9506 | B14: =TRIM(A14) -> E9506 | C14: Caminhão basculante com capacidade de 6 m³ - 136 kW | D14: E9506 | E14: 4 | F14: =IF(B14=D14,1,2) -> 1 | G14: 1 | H14: 178.0383 | I14: =((E14*F14*G14)/$I$8)*H14 -> 11.86922 | J14: =F14*G14*$I$6/$I$8 -> 1.666666667
A15: E9689 | B15: =TRIM(A15) -> E9689 | C15: Usina de asfalto a quente gravimétrica com capacidade de 100/140 t/h - 260 kW | D15: E9666 | E15: =1/19 -> 0.05263157895 | F15: 2 | G15: 3 | H15: 405.6257 | I15: 2.134872105 | J15: 10 | L15: 405.6257
A16: E9545 | B16: E9545 | C16: Vibroacabadora de asfalto sobre esteiras - 82 kW | D16: E9018 | E16: 1 | F16: 2 | G16: 0.5 | H16: 511.8547 | I16: 8.530911667 | J16: 1.666666667 | L16: 551.8547
A17: E9134 | B17: E9134 | C17: Miniônibus com capacidade para 30 passageiros - 111 kW | D17: E9134 | E17: 2 | F17: 1 | G17: 1 | H17: 218.8767 | I17: 7.29589 | J17: 1.666666667 | L17: 218.8767
A18: E9021 | B18: E9021 | C18: Grupo gerador - 456 kVA | D18: E9508 | E18: =1/19 -> 0.05263157895 | F18: 2 | G18: 1 | H18: 177.2912 | I18: 0.311037193 | J18: 3.333333333
A19: E9146 | B19: E9146 | C19: Caminhão silo com capacidade de 30 m³ - 265 kW | D19: E9146 | E19: 1 | F19: 1 | G19: 1 | H19: 444.9268 | I19: 7.415446667 | J19: 1.666666667
A20: E9762 | B20: E9762 | C20: Rolo compactador de pneus autopropelido de 27 t - 85 kW | D20: E9666 | E20: 1 | F20: 2 | G20: 0.5 | H20: 405.6257 | I20: 6.760428333 | J20: 1.666666667 | L20: 405.6257
A21: E9681 | B21: E9681 | C21: Rolo compactador liso tandem vibratório autopropelido de 10,4 t - 82 kW | D21: E9666 | E21: 1 | F21: 2 | G21: 0.5 | H21: 405.6257 | I21: 6.760428333 | J21: 1.666666667 | L21: 405.6257
A22: E9584 | B22: E9584 | C22: Carregadeira de pneus com capacidade de 1,72 m³ - 113 kW | D22: E9665 | E22: =1/19 -> 0.05263157895 | F22: 2 | G22: 1 | H22: 379.6978 | I22: 0.6661364912 | J22: 3.333333333 | L22: 379.6978
A23: E9558 | B23: E9558 | C23: Tanque de estocagem de asfalto com capacidade de 30.000 l | D23: E9665 | E23: =1/19 -> 0.05263157895 | F23: 2 | G23: 1 | H23: 379.6978 | I23: 0.6661364912 | J23: 3.333333333 | L23: 379.6978
A24: E9093 | B24: E9093 | C24: Veículo leve - 53 kW (sem motorista) | D24: E9512 | E24: 4 | F24: 1 | G24: 1 | H24: 65.0794 | I24: 4.338626667 | J24: 1.666666667 | L24: 65.0794
A25: E9509 | B25: E9509 | C25: Caminhão tanque distribuidor de asfalto com capacidade de 6.000 l - 7 kW/136 kW | D25: E9509 | E25: 1 | F25: 1 | G25: 1 | H25: 251.4097 | I25: 4.190161667 | J25: 1.666666667
A26: E9678 | B26: E9678 | C26: Fresadora a frio - 455 kW | D26: E9666 | E26: =1*10% -> 0.1 | F26: 2 | G26: 1 | H26: 405.6257 | I26: 1.352085667 | J26: 3.333333333 | L26: 405.6257
A27: E9577 | B27: E9577 | C27: Trator agrícola sobre pneus - 77 kW | D27: E9665 | E27: 1 | F27: 2 | G27: 0.5 | H27: 379.6978 | I27: 6.328296667 | J27: 1.666666667 | L27: 379.6978
A28: E9125 | B28: E9125 | C28: Veículo tipo van furgão com capacidade de 1,54 t - 93 kW | D28: E9125 | E28: 1 | F28: 1 | G28: 1 | H28: 82.7321 | I28: 1.378868333 | J28: 1.666666667
A29: E9644 | B29: E9644 | C29: Caminhão demarcador de faixas com sistema de pintura a frio - 28 kW/115 kW | D29: E9644 | E29: 1 | F29: 1 | G29: 1 | H29: 362.9695 | I29: 6.049491667 | J29: 1.666666667 | L29: 362.9695
A30: E9685 | B30: E9685 | C30: Rolo compactador pé de carneiro vibratório autopropelido por pneus de 11,6 t - 82 kW | D30: E9666 | E30: =1*10% -> 0.1 | F30: 2 | G30: 0.5 | H30: 405.6257 | I30: 0.6760428333 | J30: 1.666666667 | L30: 405.6257
A31: E9687 | B31: E9687 | C31: Caminhão carroceria com capacidade de 5 t - 115 kW | D31: E9687 | E31: 1 | F31: 1 | G31: 1 | H31: 144.8526 | I31: 2.41421 | J31: 1.666666667 | L31: 144.8526
A32: E9524 | B32: E9524 | C32: Motoniveladora - 93 kW | D32: E9665 | E32: =1*10% -> 0.1 | F32: 2 | G32: 1 | H32: 379.6978 | I32: 1.265659333 | J32: 3.333333333 | L32: 379.6978
A33: 00010777 | B33: 00010777 | C33: CONTAINER 2,30 X 4,30 M, ALT. 2,50 M, PARA SANITARIO | D33: E9665 | E33: 1 | F33: 2 | G33: 0.5 | H33: 379.6978 | I33: 6.328296667 | J33: 1.666666667 | L33: 379.6978
A34: E9605 | B34: E9605 | C34: Caminhão tanque com capacidade de 6.000 l - 136 kW | D34: E9605 | E34: =1*10% -> 0.1 | F34: 1 | G34: 1 | H34: 240.3886 | I34: 0.4006476667 | J34: 1.666666667
A35: E9515 | B35: E9515 | C35: Escavadeira hidráulica sobre esteiras com caçamba com capacidade de 1,56 m³ - 118 kW | D35: E9666 | E35: 1 | F35: 2 | G35: 1 | H35: 405.6257 | I35: 13.52085667 | J35: 3.333333333 | L35: 405.6257
A36: 00010776 | B36: 00010776 | C36: CONTAINER 2,30 X 6,00 M, ALT. 2,50 M, PARA ESCRITORIO | D36: E9665 | E36: 1 | F36: 2 | G36: 1 | H36: 379.6978 | I36: 12.65659333 | J36: 3.333333333 | L36: 379.6978
A37: E9697 | B37: E9697 | C37: Minicarregadeira de pneus com vassoura de 1,68 m - 45,50 kW | D37: E9665 | E37: 1 | F37: 2 | G37: 0.33 | H37: 379.6978 | I37: 4.1766758 | J37: 1.1 | L37: 379.6978
A38: E9571 | B38: E9571 | C38: Caminhão tanque com capacidade de 10.000 l - 188 kW | D38: E9571 | E38: 1 | F38: 1 | G38: 1 | H38: 315.7824 | I38: 5.26304 | J38: 1.666666667 | L38: 315.7824
A39: E9592 | B39: E9592 | C39: Caminhão carroceria com capacidade de 15 t - 188 kW | D39: E9592 | E39: 1 | F39: 1 | G39: 1 | H39: 257.6591 | I39: 4.294318333 | J39: 1.666666667 | L39: 257.6591
A40: E9076 | B40: E9076 | C40: Equipamento para pintura eletrostática com cabine dupla de 7,00 kW e estufa de 80.000 kCal | D40: E9665 | E40: 1 | F40: 2 | G40: 1 | H40: 379.6978 | I40: 12.65659333 | J40: 3.333333333 | L40: 379.6978
A41: E9686 | B41: E9686 | C41: Caminhão carroceria com guindauto com capacidade de 20 t.m - 136 kW | D41: E9686 | E41: 1 | F41: 1 | G41: 1 | H41: 297.8215 | I41: 4.963691667 | J41: 1.666666667 | L41: 297.8215
H42: TOTAL | I42: =SUM(I13:I41) -> 202.6905036
B45: CUSTO TOTAL MOBILIZAÇÃO E DESMOBILIZAÇÃO
B46: DESCRIÇÃO | C46: VALOR
B47: Custo Mobilização (km) | C47: =TRUNC(I42,2) -> 202.69
B48: BDI (%) | C48: =BDI!C16 -> 0.2308
B49: Custo Mobilização (R$/km) com BDI | C49: =TRUNC(C47+(C47*C48),2) -> 249.47
B50: Total de Frentes | C50: ='MC MODULO'!G9 -> 19
B51: Custo Mobilização (frentes x distancia) | C51: =C49*I6*C50 -> 473993

Sheet Canteiro
A4: CANTEIRO DE OBRAS PARA CONSTRUÇÃO RODOVIÁRIA
A5: Descrição dos serviços | B5: Tipo de container | C5: Unidade | D5: Quantidade | E5: Preço unitário (R$) | F5: Total (R$)
A6: Escritório e seção técnica
A7: LOCACAO DE CONTAINER 2,30 X 6,00 M, ALT. 2,50 M, PARA ESCRITORIO, SEM DIVISORIAS INTERNAS E SEM SANITARIO (NAO INCLUI MOBILIZACAO/DESMOBILIZACAO) | B7: 10776 | C7: und | D7: 1 | E7: 650.39 | F7: =TRUNC(D7*E7,2) -> 650.39
A8: Banheiro e vestiário
A9: LOCACAO DE CONTAINER 2,30 X 4,30 M, ALT. 2,50 M, PARA SANITARIO, COM 3 BACIAS, 4 CHUVEIROS, 1 LAVATORIO E 1 MICTORIO (NAO INCLUI MOBILIZACAO/DESMOBILIZACAO) | B9: 10777 | C9: und | D9: 1 | E9: 945.23 | F9: =TRUNC(D9*E9,2) -> 945.23
D10: TOTAL DO CANTEIRO | F10: =SUM(F7:F9) -> 1595.62
D11: DURAÇÃO (MESES) | E11: 0.5 | F11: =TRUNC(F10*E11,2) -> 797.81
D12: BDI | F12: =BDI!$C$16 -> 0.2308
D13: TOTAL DO CANTEIRO (com BDI) | F13: =TRUNC(F11+(F11*F12),2) -> 981.94

Sheet Adm Local
A4: parcela fixa da administração local (mão de obra)
A5: Código | B5: Discriminação | C5: Unidade | D5: Quantidade | F5: Custo Unitário (R$) | H5: Custo Total (R$)
B6: Mão de Obra
B7: Gerência Técnica
B8: Geral
A9: P9955 | B9: Engenheiro chefe | C9: mês | D9: 0.5 | F9: =30052.9329 -> 30052.9329 | H9: =F9*D9 -> 15026.46645
A10: P9840 | B10: Encarregado geral | C10: mês | D10: 0.5 | F10: =9420.2612 -> 9420.2612 | H10: =F10*D10 -> 4710.1306
A11: P9897 | B11: Técnico de meio ambiente | C11: mês | D11: 0 | F11: 0 | H11: 0
A12: P9948 | B12: Motorista | C12: mês | D12: 0 | F12: 0 | H12: 0
A13: P9878 | B13: Secretária | C13: mês | D13: 0 | F13: 0 | H13: 0
F14: Subtotal do Item 1.1 | H14: =SUM(H9:I13) -> 19736.59705
B15: Auxiliar
A16: P9946 | B16: Engenheiro auxiliar | C16: mês | D16: 1 | F16: =21982.107 -> 21982.107 | H16: =D16*F16 -> 21982.107
A17: P9903 | B17: Auxiliar técnico | C17: mês | D17: 0 | F17: 0 | H17: =D17*F17 -> 0
F18: Subtotal do Item 1.2 | H18: =SUM(H16:I17) -> 21982.107
B19: Gerência Administrativa
B20: Geral
A21: P9883 | B21: Chefe do setor administrativo | C21: mês | D21: 1 | F21: =7765.2768 -> 7765.2768 | H21: =F21*D21 -> 7765.2768
A22: P9809 | B22: Encarregado administrativo | C22: mês | D22: 1 | F22: =7765.0249 -> 7765.0249 | H22: =F22*D22 -> 7765.0249
A23: P9896 | B23: Porteiro | C23: mês | D23: 0 | F23: 0 | H23: =F23*D23 -> 0
A24: P9827 | B24: Vigia | C24: mês | D24: 0 | F24: 0 | H24: =F24*D24 -> 0
A25: P9948 | B25: Motorista | C25: mês | D25: 0 | F25: 0 | H25: =F25*D25 -> 0
F26: Subtotal do Item 1.3 | H26: =SUM(H21:I25) -> 15530.3017
B27: Auxiliar
A28: P9806 | B28: Auxiliar administrativo | C28: mês | D28: 1 | F28: =4197.6864 -> 4197.6864 | H28: =F28*D28 -> 4197.6864
A29: P9842 | B29: Faxineiro | C29: mês | D29: 0 | F29: 0 | H29: =F29*D29 -> 0
F30: Subtotal do Item 1.4 | H30: =SUM(H28:I29) -> 4197.6864
H31: Total da Mão de Obra da Parcela Fixa | I31: =H30+H26+H18+H14 -> 61446.69215
A33: parcela fixa da administração local (veículos)
A34: Código | B34: Discriminação | C34: Unidade | D34: Quantidade | E34: Utilização Produtiva | F34: Utilização Improdutiva | G34: Custo Horário Produtivo (R$) | H34: Custo Horário Improdutivo (R$) | I34: Custo Total (R$)
A35: 2 | B35: Veículos
B36: Gerência Técnica
A37: 2.1 | B37: Geral
A38: E9093 | B38: Veículo Leve 53 kw | C38: mês | D38: 1 | E38: 44 | F38: 176 | G38: =35.6391 -> 35.6391 | H38: =6.1081 -> 6.1081 | I38: =((E38*G38)+(F38*H38))*D38 -> 2643.146
A39: E9134 | B39: Miniônibus com capacidade para 30 passageiros | C39: mês | D39: 1 | E39: 44 | F39: 176 | G39: =218.8767 -> 218.8767 | H39: =69.4308 -> 69.4308 | I39: =((E39*G39)+(F39*H39))*D39 -> 21850.3956
H40: Subtotal do Item 2 | I40: =SUM(I38:I39) -> 24493.5416
A41: 2.2 | B41: Auxiliar
A42: E9093 | B42: Veículo Leve 53 kw | C42: mês | D42: 0 | E42: 44 | F42: 176 | G42: 0 | H42: 0 | I42: 0
H43: Subtotal do Item 2 | I43: =I42 -> 0
A44: 2.3 | B44: Gerência Administrativa
A45: E9093 | B45: Veículo Leve 53 kw | C45: mês | D45: 0 | E45: 44 | F45: 176 | G45: 0 | H45: 0 | I45: 0
H46: Subtotal do Item 2 | I46: =I45 -> 0
H47: Total dos Veículos da Parcela Fixa | I47: =SUM(I40,I43,I46) -> 24493.5416
A49: Composição de custo da equipe de produção de terraplenagem
A50: Código | B50: Discriminação | C50: Unidade | D50: Quantidade | F50: Custo Unitário (R$) | H50: Custo Total (R$)
B51: Equipe de Produção de Terraplenagem
A52: 3.1 | B52: Mão de Obra
A53: P9884 | B53: Encarregado de terraplenagem | C53: mês | D53: 0 | F53: 0 | H53: =F53*D53 -> 0
F54: Subtotal do Item 3.1 | H54: =SUM(H53:H53) -> 0
A55: Código | B55: Discriminação | C55: Unidade | D55: Quantidade | E55: Utilização Produtiva | F55: Utilização Improdutiva | G55: Custo Horário Produtivo (R$) | H55: Custo Horário Improdutivo (R$) | I55: Custo Total (R$)
A56: 3.2 | B56: Veículos
B57: Veículo Leve 53 kw | C57: mês | D57: 0 | E57: 44 | F57: 176 | G57: 0 | H57: 0 | I57: =((E57*G57)+(F57*H57))*D57 -> 0
H58: Subtotal do Item 3.2 | I58: =SUM(I57:I57) -> 0
H59: Total da Equipe de Produção de Terraplenagem | I59: =I58+H54 -> 0
A61: Composição de custo da equipe de produção de pavimentação
A62: Código | B62: Discriminação | C62: Unidade | D62: Quantidade | F62: Custo Unitário (R$) | H62: Custo Total (R$)
B63: Equipe de Produção de Pavimentação
A64: 3.1 | B64: Mão de Obra
A65: P9893 | B65: Encarregado de pavimentação | C65: mês | D65: 1 | F65: =6737.8182 -> 6737.8182 | H65: =F65*D65 -> 6737.8182
F66: Subtotal do Item 3.1 | H66: =SUM(H65:H65) -> 6737.8182
A67: Código | B67: Discriminação | C67: Unidade | D67: Quantidade | E67: Utilização Produtiva | F67: Utilização Improdutiva | G67: Custo Horário Produtivo (R$) | H67: Custo Horário Improdutivo (R$) | I67: Custo Total (R$)
A68: 3.2 | B68: Veículos
B69: Veículo Leve 53 kw | C69: mês | D69: 1 | E69: 44 | F69: 176 | G69: =35.6391 -> 35.6391 | H69: =6.1081 -> 6.1081 | I69: =((E69*G69)+(F69*H69))*D69 -> 2643.146
H70: Subtotal do Item 3.2 | I70: =SUM(I69:I69) -> 2643.146
H71: Total da Equipe de Produção de Pavimentação | I71: =I70+H66 -> 9380.9642
A73: Composição de custo da equipe de produção de drenagem
A74: Código | B74: Discriminação | C74: Unidade | D74: Quantidade | F74: Custo Unitário (R$) | H74: Custo Total (R$)
B75: Equipe de Produção de Drenagem
A76: 3.1 | B76: Mão de Obra
B77: Encarregado de produção | C77: mês | D77: 0 | F77: 0 | H77: =F77*D77 -> 0
F78: Subtotal do Item 3.1 | H78: =SUM(H77:H77) -> 0
A79: Código | B79: Discriminação | C79: Unidade | D79: Quantidade | E79: Utilização Produtiva | F79: Utilização Improdutiva | G79: Custo Horário Produtivo (R$) | H79: Custo Horário Improdutivo (R$) | I79: Custo Total (R$)
A80: 3.2 | B80: Veículos
B81: Veículo Leve 53 kw | C81: mês | D81: 0 | E81: 44 | F81: 176 | G81: 0 | H81: 0 | I81: =((E81*G81)+(F81*H81))*D81 -> 0
G82: Subtotal do Item 3.2 | H82: =SUM(I81:I81) -> 0
H83: Total da Equipe de Produção de Drenagem | I83: =H82+H78 -> 0
A85: Composição de custo da equipe de produção de sinalização
A86: Código | B86: Discriminação | C86: Unidade | D86: Quantidade | F86: Custo Unitário (R$) | H86: Custo Total (R$)
B87: Equipe de Produção de Sinalização
A88: 3.1 | B88: Mão de Obra
B89: Encarregado de produção | C89: mês | D89: 0 | F89: 0 | H89: =F89*D89 -> 0
F90: Subtotal do Item 3.1 | H90: =SUM(H89:H89) -> 0
A91: Código | B91: Discriminação | C91: Unidade | D91: Quantidade | E91: Utilização Produtiva | F91: Utilização Improdutiva | G91: Custo Horário Produtivo (R$) | H91: Custo Horário Improdutivo (R$) | I91: Custo Total (R$)
A92: 3.2 | B92: Veículos
B93: Veículo Leve 53 kw | C93: mês | D93: 0 | E93: 44 | F93: 176 | G93: 0 | H93: 0 | I93: =((E93*G93)+(F93*H93))*D93 -> 0
G94: Subtotal do Item 3.2 | H94: =SUM(I93:I93) -> 0
H95: Total da Equipe de Produção de Sinalização | I95: =H94+H90 -> 0
A97: Composição de custo da equipe topografia
A98: Código | B98: Discriminação | C98: Unidade | D98: Quantidade | F98: Custo Unitário (R$) | H98: Custo Total (R$)
B99: Equipe de Topografia
A100: 3.1 | B100: Mão de Obra
A101: P9949 | B101: Topográfo | C101: mês | D101: 1 | F101: =8451.7703 -> 8451.7703 | H101: =F101*D101 -> 8451.7703
A102: P9950 | B102: Auxiliar de topografia | C102: mês | D102: 1 | F102: =5505.157 -> 5505.157 | H102: =F102*D102 -> 5505.157
F103: Subtotal do Item 3.1 | H103: =SUM(H101:I102) -> 13956.9273
A104: Código | B104: Discriminação | C104: Unidade | D104: Quantidade | E104: Utilização Produtiva | F104: Utilização Improdutiva | G104: Custo Horário Produtivo (R$) | H104: Custo Horário Improdutivo (R$) | I104: Custo Total (R$)
A105: 3.2 | B105: Veículos
B106: Veículo Leve 53 kw | C106: mês | D106: 1 | E106: 44 | F106: 176 | G106: =35.6391 -> 35.6391 | H106: =6.1081 -> 6.1081 | I106: =((E106*G106)+(F106*H106))*D106 -> 2643.146
H107: Subtotal do Item 3.2 | I107: =SUM(I106:I106) -> 2643.146
H108: Total da Equipe de Produção de Topografia | I108: =I107+H103 -> 16600.0733
A110: Composição de custo do setor de medicina e segurança do trabalho
A111: Código | B111: Discriminação | C111: Unidade | D111: Quantidade | F111: Custo Unitário (R$) | H111: Custo Total (R$)
A112: 4 | B112: Setor de Medicina e Segurança do Trabalho
A113: P9876 | B113: Técnico de segurança do trabalho | C113: mês | D113: 1 | F113: =7025.0759 -> 7025.0759 | H113: =F113*D113 -> 7025.0759
A114: P9864 | B114: Engenheiro de segurança do trabalho | C114: mês | D114: 0 | F114: 0 | H114: =F114*D114 -> 0
A115: P9851 | B115: Médico do trabalho | C115: mês | D115: 0 | F115: 0 | H115: =F115*D115 -> 0
A116: P9951 | B116: Médico de câmara hiperbárica | C116: mês | D116: 0 | F116: 0 | H116: =F116*D116 -> 0
F117: Subtotal do Item 4 | H117: =SUM(H113:I116) -> 7025.0759
A119: Parcela Variável - Composição de custo da equipe de frente de serviço
A120: Código | B120: Discriminação | C120: Unidade | D120: Quantidade | F120: Custo Unitário (R$) | H120: Custo Total (R$)
A121: 5 | B121: Equipe de Frente de Serviço | C121: equipexmês
A122: P9875 | B122: Encarregado de Turma | C122: mês | D122: 1 | F122: =5107.7036 -> 5107.7036 | H122: =F122*D122 -> 5107.7036
A123: P9804 | B123: Apontador | C123: mês | D123: 0.5 | F123: =4419.627 -> 4419.627 | H123: =F123*D123 -> 2209.8135
F124: Subtotal do Item 5 | H124: =SUM(H122:I123) -> 7317.5171
A126: Parcela Variável - Composição de custo da equipe de frente de serviço (Terraplenagem) - Somente Compactação
A127: Código | B127: Discriminação | C127: Unidade | D127: Quantidade | F127: Produção Horária (und/h) | H127: Efs
A128: 5.1 | B128: Equipe de Frente de Serviço | C128: equipexmês
D129: Total de Equipes para Terraplenagem | H129: 0
A131: Parcela Variável - Composição de custo da acompanhamento das frentes de serviço de pavimentação
A132: Código | B132: Discriminação | C132: Unidade | D132: Quantidade | F132: Produção Horária (und/h) | H132: Efs
A133: 5.2 | B133: Equipe de Frente de Serviço | C133: equipe x mês
A134: 4011463 | B134: Concreto asfáltico - faixa C - areia e brita comerciais | C134: t | D134: ='RESUMO MODULO TOTAL'!J20 -> 31920 | F134: =99.6 -> 99.6 | H134: =(D134)/(F134*182.49) -> 1.756161585
A135: 4011353 | B135: Pintura de ligação | C135: m² | D135: ='RESUMO MODULO TOTAL'!J21 -> 266000 | F135: =1500 -> 1500 | H135: =(D135)/(F135*182.49) -> 0.9717427439
A136: 4915663 | B136: Fresagem descontínua de revestimento asfáltico - espessura de 5 cm | C136: m³ | D136: ='RESUMO MODULO TOTAL'!J22 -> 1330 | F136: =49.03 -> 49.03 | H136: 0.148645127
A137: 4915618 | B137: Recomposição de camada granular do pavimento com material de jazida | C137: m² | D137: ='RESUMO MODULO TOTAL'!J23 -> 26600 | F137: =417.38 -> 417.38 | H137: 0.3492295069
D138: Total de Equipes para Pavimentação | H138: =ROUND(SUM(H134:I137),2) -> 3.23
A140: Parcela Variável - Composição de custo da acompanhamento das frentes de serviço de drenagem
A141: Código | B141: Discriminação | C141: Unidade | D141: Quantidade | F141: Efsdu | H141: Efs
A142: 5.3 | B142: Frentes de Serviço para Drenagem | C142: equipe x mês
A143: 4915777 | B143: Reassentamento manual de meio-fio com material arrancado da pista | C143: m | D143: ='RESUMO MODULO TOTAL'!J35 -> 7600 | F143: 0.00021 | H143: =D143*F143 -> 1.596
D144: Total de Equipes para Drenagem | H144: =ROUND(SUM(H143),2) -> 1.6
A146: Parcela Variável - Composição de custo da acompanhamento das frentes de serviço de sinalização
A147: Código | B147: Discriminação | C147: Unidade | D147: Quantidade | F147: Produção Horária (und/h) | H147: Efs
A148: 5.4 | B148: Frentes de Serviço para Sinalização | C148: equipe x mês
A149: 5213440 | B149: Placa de regulamentação em aço D = 0,60 m - película retrorrefletiva tipo I + SI - fornecimento e implantação | C149: Unidade | D149: ='RESUMO MODULO TOTAL'!J30 -> 114 | F149: =3 -> 3 | H149: =0.2*((D149)/(F149*182.49)) -> 0.0416461176
A150: 5213464 | B150: Placa de advertência em aço, lado de 0,60 m - película retrorrefletiva tipo I + SI - fornecimento e implantação | C150: Unidade | D150: ='RESUMO MODULO TOTAL'!J31 -> 114 | F150: =3 -> 3 | H150: =0.2*((D150)/(F150*182.49)) -> 0.0416461176
A151: 5213400 | B151: Pintura de faixa com tinta acrílica - espessura de 0,4 mm | C151: m² | D151: ='RESUMO MODULO TOTAL'!J33 -> 9120 | F151: =177.07 -> 177.07 | H151: =0.2*((D151)/(F151*182.49)) -> 0.05644698833
D152: Total de Equipes para Sinalização | H152: =ROUND(SUM(H149:I151),2) -> 0.14
A154: 3. PARCELA VARIÁVEL - EQUIPE DE CONTROLE TECNOLÓGICO
A155: LABORATÓRIO DE SOLOS
A156: Item | B156: Discriminação | F156: Unidade | G156: Quantidade | H156: Custo Unitário (R$) | I156: Custo Total (R$)
B157: Laboratório de Solos (equipe x mês)
B158: Mão de Obra
A159: P9858 | B159: Laboratorista | F159: func./mês | G159: 0 | H159: 0 | I159: =TRUNC(G159*H159,2) -> 0
A160: P9833 | B160: Auxiliar de laboratório | F160: func./mês | G160: 0 | H160: 0 | I160: =TRUNC(G160*H160,2) -> 0
H161: Subtotal do Item | I161: =SUM(I159:I160) -> 0
A162: Item | B162: Discriminação | C162: Und | D162: Quant | E162: Utilização Produtiva | F162: Utilização Improdutiva | G162: Horário Produtivo (R$) | H162: Horário Improdutivo (R$) | I162: Total (R$)
B163: Equipe de Controle Tecnológico
B164: Veículos
A165: E9125 | B165: Van furgão a diesel - 93 kW | C165: veic./mês | D165: 0 | E165: 44 | F165: 176 | G165: 0 | H165: 0 | I165: =D165*((E165*G165)+(F165*H165)) -> 0
H166: Subtotal do Item | I166: =SUM(I165:I165) -> 0
H167: Total da Equipe do Laboratório de Solos | I167: =I161+I166 -> 0
A169: 3. PARCELA VARIÁVEL - EQUIPE DE CONTROLE TECNOLÓGICO
A170: LABORATÓRIO DE ASFALTOS
A171: Item | B171: Discriminação | F171: Unidade | G171: Quantidade | H171: Custo Unitário (R$) | I171: Custo Total (R$)
B172: Laboratório de Solos (equipe x mês)
B173: Mão de Obra
A174: P9858 | B174: Laboratorista | F174: func./mês | G174: 1 | H174: =7143.1041 -> 7143.1041 | I174: =G174*H174 -> 7143.1041
A175: P9833 | B175: Auxiliar de laboratório | F175: func./mês | G175: 1 | H175: =5472.4477 -> 5472.4477 | I175: =G175*H175 -> 5472.4477
H176: Subtotal do Item | I176: =SUM(I174:I175) -> 12615.5518
A177: Item | B177: Discriminação | C177: Und | D177: Quant | E177: Utilização Produtiva | F177: Utilização Improdutiva | G177: Horário Produtivo (R$) | H177: Horário Improdutivo (R$) | I177: Total (R$)
B178: Equipe de Controle Tecnológico
B179: Veículos
A180: E9125 | B180: Van furgão a diesel - 93 kW | C180: veic./mês | D180: 0.5 | E180: 44 | F180: 176 | G180: =82.7321 -> 82.7321 | H180: =47.0671 -> 47.0671 | I180: =D180*((E180*G180)+(F180*H180)) -> 5962.011
H181: Subtotal do Item | I181: =SUM(I180:I180) -> 5962.011
H182: Total da Equipe do Laboratório de Asfaltos | I182: =(I176+I181) -> 18577.5628
A184: Equipes de laboratório de solos para pavimentação
A185: Item | B185: Discriminação | F185: Und | G185: Quant | H185: QE | I185: Els
A186: - | B186: - | F186: - | G186: - | H186: - | I186: -
A187: - | B187: - | F187: - | G187: - | H187: - | I187: -
H188: Total de equipes de Laboratório de Solos para Pavimentação | I188: -
A190: Equipes de laboratório de Asfalto
A191: Item | B191: Discriminação | F191: Und | G191: Quant | H191: QE | I191: Ela
A192: 4011463 | B192: Concreto asfáltico - faixa C - areia e brita comerciais | F192: t | G192: ='RESUMO MODULO TOTAL'!J20 -> 31920 | H192: 9000 | I192: =G192/H192 -> 3.546666667
A193: 4011353 | B193: Pintura de ligação | F193: m² | G193: ='RESUMO MODULO TOTAL'!J21 -> 266000 | H193: 3610000 | I193: =G193/H193 -> 0.07368421053
H194: Total de equipes de Laboratório de Asfaltos | I194: =ROUND(SUM(I192:I193),2) -> 3.62
A196: manutenção do canteiro de obras e acampamentos
A197: Código | B197: Discriminação | C197: Unidade | D197: Quantidade | F197: Custo Unitário (R$) | H197: Custo Total (R$)
B198: Manutenção do Canteiro de Obras e Acampamentos
A199: 6.1 | B199: Mão de Obra
A200: P9952 | B200: Pedreiro | C200: mês | D200: 0 | F200: 0 | H200: =F200*D200 -> 0
A201: P9954 | B201: Servente | C201: mês | D201: 0 | F201: 0 | H201: =F201*D201 -> 0
A202: P9953 | B202: Eletricista | C202: mês | D202: 0 | F202: 0 | H202: =F202*D202 -> 0
F203: Subtotal do Item 6.1 | H203: =SUM(H200:I202) -> 0
A205: Código | B205: Discriminação | C205: Unidade | D205: Quantidade | F205: Custo Produtivo (R$) | H205: Custo Total (R$)
A206: 6.2 | B206: Equipamentos
B207: Caminhão guindauto de 6 toneladas | C207: h/mês | D207: 0 | F207: 0 | H207: =F207*D207 -> 0
B208: Caminhão tanque de 8.000 litros | C208: h/mês | D208: 0 | F208: 0 | H208: =F208*D208 -> 0
A209: E9524 | B209: Motoniveladora | C209: h/mês | D209: 0 | F209: 0 | H209: =F209*D209 -> 0
F210: Subtotal do Item 6.2 | H210: =SUM(H207:I209) -> 0
G211: Total da Manutenção do Canteiro de Obras e Acampamentos | H211: =H210+H203 -> 0
A215: Resumo das parcelas de administração local
A216: Código | B216: Discriminação | C216: Unidade | D216: Quantidade | F216: Custo Unitário (R$) | H216: Custo Total (R$)
B217: Parcela Fixa
B218: Mão de Obra | C218: mês | D218: 7 | F218: =H14+H18+H26+H30 -> 61446.69215 | H218: =F218*D218 -> 430126.845
B219: Veículos | C219: mês | D219: 7 | F219: =I47 -> 24493.5416 | H219: =F219*D219 -> 171454.7912
F220: Subtotal do Item 1 | H220: =SUM(H218:I219) -> 601581.6362
B221: Parcela Vinculada
B222: Equipe de produção de terraplenagem | C222: mês | D222: 0 | F222: =I59 -> 0 | H222: =F222*D222 -> 0
B223: Equipe de produção de pavimentação | C223: mês | D223: 6 | F223: =I71 -> 9380.9642 | H223: 56285.7852
B224: Equipe de produção de drenagem | C224: mês | D224: 0 | F224: =I83 -> 0 | H224: 0
... 21 more rows

Sheet Projeto Executivo
A4: COMPOSIÇÃO PREÇO - PROJETO EXECUTIVO
A6: DISCRIMINAÇÃO | F6: Pr. Unit. | G6: Pr. Total
A8: A· EOUIPE TECNICA | G8: =G9+G12 -> 14073.79607 | I8: Produtividade da equipe | K8: 14000 | L8: m²
B9: A. 1 - Pessoal de Nível Superior | C9: Unidade | D9: Quantitativo | E9: SICRO e Rel.Custos Gerais | G9: =G10+G11 -> 11211.97778
B10: Engenheiro | C10: mês | D10: 0.4 | E10: P9812 | F10: 23804.0593 | G10: =F10*D10 -> 9521.62372
B11: Topógrafo | C11: mês | D11: 0.2 | E11: P9949 | F11: 8451.7703 | G11: =F11*D11 -> 1690.35406
B12: A.2 - Pessoal de Nível Técnico e Aux. | G12: =G13+G14 -> 2861.81829
B13: Auxiliar de topógrafo | C13: mês | D13: 0.12 | E13: P9950 | F13: 5505.157 | G13: =F13*D13 -> 660.61884
B14: Auxiliar Técnico/Assistente de Engenharia | C14: mês | D14: 0.5 | E14: P9903 | F14: 4402.3989 | G14: =F14*D14 -> 2201.19945
A15: B - ENCARGOS SOCIAIS | G15: =G16 -> 0
B16: =CONCATENATE("Taxas ",'ENC. SOCIAIS'!E51,"%") -> Taxas % | C16: JÁ INCLUSAS EM "A"
A17: C - DESPESAS GERAIS | G17: =G18+G20+G19 -> 4980.424882
B18: C.1 - MATERIAIS DE CONSUMO | C18: Estimativa % como referência de equipe técnica com encargos sociais | D18: 0.03 | F18: =G8+G16 -> 14073.79607 | G18: =F18*D18 -> 422.2138821
B19: C.2 - VEÍCULOS (Veículo leve picape 4 x 4 com capacidade de 1,10 t - 147 kW) | C19: h | D19: 40 | E19: E9684 | F19: 106.9799 | G19: =F19*D19 -> 4279.196
B20: C.3 - Estação total eletrônica com alcance máximo de 3.000 m | C20: h | D20: 55 | E20: E9553 | F20: 5.073 | G20: =F20*D20 -> 279.015
A21: D - ENSAIOS | G21: =SUM(G22:G25) -> 3198.762144
B22: Laboratorista | C22: mês | D22: 0.2 | E22: P9858 | F22: 7143.1041 | G22: =F22*D22 -> 1428.62082
B23: Auxiliar de Laboratório | C23: mês | D23: 0.12 | E23: P9833 | F23: 5472.4477 | G23: =F23*D23 -> 656.693724
B24: Laboratório de solos | C24: mês | D24: 0.12 | E24: B8957 | F24: 4073.25 | G24: =F24*D24 -> 488.79
B25: Laboratório de asfalto | C25: mês | D25: 0.12 | E25: B8955 | F25: 5205.48 | G25: =F25*D25 -> 624.6576
A26: I - SOMA (A+B+C+D) | G26: =TRUNC(G8+G15+G17+G21,2) -> 22252.98
A27: BDI = | D27: =BDI!$C$16 -> 0.2308 | G27: =TRUNC(D27*G26,2) -> 5135.98
A28: TOTAL | G28: =G26+G27 -> 27388.96
F29: Por m² (Sem BDI): | G29: =G26/('MC MODULO'!C9*'MC MODULO'!C10) -> 1.589498571
F30: Por m² (Com BDI): | G30: =G28/('MC MODULO'!C9*'MC MODULO'!C10) -> 1.956354286

Sheet INSUMOS - ASF
A5: PREÇO DOS INSUMOS - AQUISIÇÃO E TRANSPORTE CAP 50/70 E EMULSÃO RR 1-C
A6: BDI DIFERENCIADO = | E6: 0.15
A8: CODEVASF | B8: AQUISIÇÃO DE CIMENTO ASFÁLTICO DE PETRÓLEO - CAP 50/70 | C8: UNID. | D8: COEF. | E8: PRECO UNITÁRIO (R$) | F8: TOTAL (R$)
B10: CAP 50/70 | C10: t | D10: 1 | E10: =' CAP50-70 RR1-C + TRANSPORTE'!T19 -> 4980.52 | F10: =D10*E10 -> 4980.52
C11: Sub total: | F11: =SUM(F10) -> 4980.52
D12: BDI | E12: 0.15 | F12: =F11*E12 -> 747.078
E13: Total Serviços: | F13: =F11+F12 -> 5727.598
D14: PREÇO UNITÁRIO TOTAL: | F14: =TRUNC(F13,2) -> 5727.59 | G14: =F11 -> 4980.52
A17: CODEVASF | B17: AQUISIÇÃO DE EMULSÃO ASFÁLTICA RR-1C | C17: UNID. | D17: COEF. | E17: PRECO UNITÁRIO (R$) | F17: TOTAL (R$)
B19: RR-1C | C19: t | D19: 1 | E19: =' CAP50-70 RR1-C + TRANSPORTE'!T28 -> 3570.049751 | F19: =D19*E19 -> 3570.049751
C20: Sub total: | F20: =SUM(F19) -> 3570.049751
D21: BDI | E21: 0.15 | F21: =F20*E21 -> 535.5074626
E22: Total Serviços: | F22: =F20+F21 -> 4105.557214
D23: PREÇO UNITÁRIO TOTAL: | F23: =TRUNC(F22,2) -> 4105.55 | G23: =F20 -> 3570.049751
A26: CODEVASF | B26: TRANSPORTE DE CIMENTO ASFÁLTICO DE PETRÓLEO - CAP 50/70 | C26: UNID. | D26: COEF. | E26: PRECO UNITÁRIO (R$) | F26: TOTAL (R$)
B28: T. DE CAP 50/70 | C28: t | D28: 1 | E28: =' CAP50-70 RR1-C + TRANSPORTE'!S19 -> 275.6840898 | F28: =D28*E28 -> 275.6840898
C29: Sub total: | F29: =SUM(F28) -> 275.6840898
D30: BDI | E30: 0.15 | F30: =ROUND(F29*E30,2) -> 41.35
E31: Total Serviços: | F31: =F29+F30 -> 317.0340898
D32: PREÇO UNITÁRIO TOTAL: | F32: =TRUNC(F31,2) -> 317.03 | G32: =F29 -> 275.6840898
A35: CODEVASF | B35: TRANSPORTE DE EMULSÃO ASFÁLTICA RR-1C | C35: UNID. | D35: COEF. | E35: PRECO UNITÁRIO (R$) | F35: TOTAL (R$)
B37: T. RR-1C | C37: t | D37: 1 | E37: =' CAP50-70 RR1-C + TRANSPORTE'!S28 -> 279.6179543 | F37: =D37*E37 -> 279.6179543
C38: Sub total: | F38: =SUM(F37) -> 279.6179543
D39: BDI | E39: 0.15 | F39: =F38*E39 -> 41.94269315
E40: Total Serviços: | F40: =F38+F39 -> 321.5606475
D41: PREÇO UNITÁRIO TOTAL: | F41: =TRUNC(F40,2) -> 321.56 | G41: =F38 -> 279.6179543

Sheet CAP50-70 RR1-C + TRANSPORTE
B10: MEMÓRIA DE CÁLCULO DO PREÇO DO BINÔMIO AQUISIÇÃO-TRANSPORTE (CAP 50/70 E EMULSÃO RR 1-C)
B13: REAJUSTE | C13: REAJUSTAMENTO DE OBRAS RODOVIÁRIAS - PAVIMENTAÇÃO | H13: IMPOSTOS | I13: COFINS | J13: 0.0065
C14: DATA INICIAL | D14: 2014-07-01 | E14: 270.237 | I14: PIS | J14: 0.03
C15: DATA FINAL | D15: 2024-07-01 | E15: 574.257 | I15: ICMS | J15: 0.18
B17: DATA-BASE | C17: PRODUTOS | G17: CUSTO ANP (R$/Kg) | I17: CUSTO ANP | J17: IMPOSTOS DO PRODUTO | K17: CUSTO DO PRODUTO COM IMPOSTOS | L17: DMT's | M17: CUSTO DO TRANSPORTE RODOVIA PAVIMENTADA | N17: ATUALIZAÇÃO DO CUSTO DE TRANSPORTE | O17: ICMS | P17: CUSTO DO TRANSPORTE RODOVIA PAVIMENTADA COM IMPOSTOS E ATUALIZAÇÃO MONETÁRIA | Q17: PEDÁGIO | S17: TOTAL TRANSPORTE | T17: TOTAL PRODUTO | U17: TOTAL GERAL
B18: 2023-06-01 | D18: ENDEREÇO | E18: ORIGEM REFINARIAS / DISTRIBUIDORAS | F18: DESTINO | G18: ESTADO | H18: REGIÃO | I18: R$/t | J18: R$/t | K18: R$/t | L18: KM | M18: R$/t | N18: R$/t | O18: R$/t | P18: R$/t | Q18: CUSTO POR EIXO | R18: R$/t | S18: R$/t | T18: R$/t | U18: R$/t
B19: 1 | C19: CAP 50/70 | D19: BA-523, KM 4 - Mataripe, São Francisco do Conde - BA | E19: Refinaria de Mataripe ACELEN (antiga Refinaria Landulpho Alves - RLAM) - BA | F19: Itabaiana-SE | G19: ='ANP ESTADOS'!D45886 -> 3.93496049 | H19: - | I19: =TRUNC(IF(G19="",H19*1000,G19*1000),2) -> 3934.96 | J19: =ROUND(((I19/(1-$J$13-$J$14))/(1-$J$15)-I19),2) -> 1045.56 | K19: =J19+I19 -> 4980.52 | L19: 314 | M19: =0.253*L19+26.939 -> 106.381 | N19: =M19*(1+(($E$15-$E$14)/$E$14)) -> 226.0609536 | O19: =(N19/(1-$J$15))-N19 -> 49.62313616 | P19: =N19+O19 -> 275.6840898 | Q19: 0 | R19: =Q19*2/28 -> 0 | S19: =P19+R19 -> 275.6840898 | T19: =K19 -> 4980.52 | U19: =S19+T19 -> 5256.20409
B20: 2 | D20: Av. Refinaria Gabriel Passos, 690 Distrito Industrial Paulo Camilo Sul Betim - MG | E20: Refinaria Gabriel Passos (Regap) - MG | F20: Itabaiana-SE | G20: ='ANP ESTADOS'!D45894 -> 3.307833193 | H20: - | I20: =TRUNC(IF(G20="",H20*1000,G20*1000),2) -> 3307.83 | J20: =ROUND(((I20/(1-$J$13-$J$14))/(1-$J$15)-I20),2) -> 878.93 | K20: =J20+I20 -> 4186.76 | L20: 1626 | M20: =0.253*L20+26.939 -> 438.317 | N20: =M20*(1+(($E$15-$E$14)/$E$14)) -> 931.4290992 | O20: =(N20/(1-$J$15))-N20 -> 204.4600462 | P20: =N20+O20 -> 1135.889145 | R20: =Q20*2/28 -> 0 | S20: =P20+R20 -> 1135.889145 | T20: =K20 -> 4186.76 | U20: =S20+T20 -> 5322.649145
B21: 3 | D21: Rodovia Washington Luiz, km 113,7 Campos Elíseos – Duque de Caxias - RJ | E21: Refinaria Duque de Caxias (Reduc) - RJ | F21: Itabaiana-SE | G21: ='ANP ESTADOS'!D45900 -> 3.225667238 | H21: - | I21: 3225.66 | J21: 857.09 | K21: =J21+I21 -> 4082.75 | L21: 1798 | M21: =0.253*L21+26.939 -> 481.833 | N21: =M21*(1+(($E$15-$E$14)/$E$14)) -> 1023.901143 | O21: =(N21/(1-$J$15))-N21 -> 224.7587874 | P21: 1248.65993 | R21: =Q21*2/28 -> 0 | S21: =P21+R21 -> 1248.65993 | T21: =K21 -> 4082.75 | U21: =S21+T21 -> 5331.40993
B22: 4 | D22: Rodovia Presidente Dutra, KM 143, S/N Bairro Jardim Diamante - São José dos Campos – SP | E22: Refinaria Henrique Lage (Revap) - SP | F22: Itabaiana-SE | G22: ='ANP ESTADOS'!D45906 -> 3.341281628 | H22: - | I22: 3341.28 | J22: 887.81 | K22: 4229.09 | L22: 2153 | M22: 571.648 | N22: 1214.759139 | O22: 266.6544452 | P22: 1481.413585 | R22: 0 | S22: 1481.413585 | T22: 4229.09 | U22: 5710.503585
B23: 5 | D23: Rodovia do Xisto, BR 476, km 16 Araucária - PR | E23: Refinaria Presidente Getúlio Vargas (Repar) - PR | F23: Itabaiana-SE | G23: ='ANP ESTADOS'!D45897 -> 3.417370179 | H23: - | I23: 3417.37 | J23: 908.03 | K23: 4325.4 | L23: 2610 | M23: 687.269 | N23: 1460.455208 | O23: 320.5877287 | P23: 1781.042937 | R23: 0 | S23: 1781.042937 | T23: 4325.4 | U23: 6106.442937
B24: 6 | D24: Avenida Getúlio Vargas, 11001 - Bairro Brigadeira Canoas - RS - Brasil | E24: Refinaria Alberto Pasqualini (Refap) - RS | F24: Itabaiana-SE | G24: ='ANP ESTADOS'!D45902 -> 3.417243597 | H24: - | I24: 3417.24 | J24: 908 | K24: 4325.24 | L24: 3308 | M24: 863.863 | N24: 1835.719664 | O24: 402.962853 | P24: 2238.682517 | R24: 0 | S24: 2238.682517 | T24: 4325.24 | U24: 6563.922517
B25: 7 | D25: Av. Leite Barbosa, s/nº - Mucuripe Fortaleza - Ceará | E25: Refinaria Lubrificantes e Derivados do Nordeste (Lubnor) - CE | F25: Itabaiana-SE | G25: ='ANP ESTADOS'!D45887 -> 3.601011062 | H25: - | I25: 3601.01 | J25: 956.83 | K25: =J25+I25 -> 4557.84 | L25: 1003 | M25: =0.253*L25+26.939 -> 280.698 | N25: =M25*(1+(($E$15-$E$14)/$E$14)) -> 596.4867556 | O25: =(N25/(1-$J$15))-N25 -> 130.9361171 | P25: 727.4228727 | R25: =Q25*2/28 -> 0 | S25: =P25+R25 -> 727.4228727 | T25: =K25 -> 4557.84 | U25: =S25+T25 -> 5285.262873
B28: 1 | C28: RR1-C | D28: BA-531, 01 - Distrito Industrial, Candeias - BA | E28: Distribuidora Brasil Asfaltos - BA | F28: Itabaiana-SE | G28: - | H28: ='ANP REGIÃO'!D4615 -> 2.820589751 | I28: =IF(G28="-",H28*1000,G28*1000) -> 2820.589751 | J28: 749.46 | K28: =J28+I28 -> 3570.049751 | L28: 320 | M28: =0.253*L28+26.939 -> 107.899 | N28: =M28*(1+(($E$15-$E$14)/$E$14)) -> 229.2867226 | O28: =(N28/(1-$J$15))-N28 -> 50.33123178 | P28: =N28+O28 -> 279.6179543 | Q28: 0 | R28: =Q28*2/28 -> 0 | S28: =P28+R28 -> 279.6179543 | T28: =K28 -> 3570.049751 | U28: =S28+T28 -> 3849.667705
B29: 2 | D29: R. São Judas Tadeu, 288 - Distrito Industrial, Sarzedo - MG | E29: DISBRAL - MG | F29: Itabaiana-SE | G29: ='ANP ESTADOS'!D95844 -> 2.414631513 | H29: - | I29: =IF(G29="-",H29*1000,G29*1000) -> 2414.631513 | J29: 641.59 | K29: =J29+I29 -> 3056.221513 | L29: 1631 | M29: =0.253*L29+26.939 -> 439.582 | N29: =M29*(1+(($E$15-$E$14)/$E$14)) -> 934.11724 | O29: =(N29/(1-$J$15))-N29 -> 205.0501258 | P29: =N29+O29 -> 1139.167366 | R29: =Q29*2/28 -> 0 | S29: =P29+R29 -> 1139.167366 | T29: =K29 -> 3056.221513 | U29: =S29+T29 -> 4195.388879
B30: 3 | D30: R. Silva Cardoso,235 - Campos Elíseos, Duque de Caxias – RJ | E30: Stratura Asfaltos - RJ | F30: Itabaiana-SE | G30: - | H30: ='ANP REGIÃO'!F4615 -> 2.55680471 | I30: 2556.80471 | J30: 679.37 | K30: =J30+I30 -> 3236.17471 | L30: 1795 | M30: =0.253*L30+26.939 -> 481.074 | N30: =M30*(1+(($E$15-$E$14)/$E$14)) -> 1022.288258 | O30: =(N30/(1-$J$15))-N30 -> 224.4047396 | P30: =N30+O30 -> 1246.692998 | R30: =Q30*2/28 -> 0 | S30: =P30+R30 -> 1246.692998 | T30: =K30 -> 3236.17471 | U30: =S30+T30 -> 4482.867707
B31: 4 | D31: R. Oeste - Distrito Industrial I, Maracanaú - CE | E31: Stratura Asfaltos - CE | F31: Itabaiana-SE | G31: ='ANP ESTADOS'!D95837 -> 2.704408271 | H31: - | I31: 2704.408271 | J31: 718.59 | K31: =J31+I31 -> 3422.998271 | L31: 1040 | M31: =0.253*L31+26.939 -> 290.059 | N31: =M31*(1+(($E$15-$E$14)/$E$14)) -> 616.3789976 | O31: =(N31/(1-$J$15))-N31 -> 135.3027068 | P31: =N31+O31 -> 751.6817043 | R31: =Q31*2/28 -> 0 | S31: =P31+R31 -> 751.6817043 | T31: =K31 -> 3422.998271 | U31: =S31+T31 -> 4174.679975

Sheet CPUs
C1: Composições Analíticas com Preço Unitário | E1: Bancos | G1: B.D.I. | I1: Encargos Sociais
C2: ITEM 01 - ECA | E2: SINAPI - 07/2024 - Sergipe SICRO3 - 04/2024 - Sergipe ORSE - 06/2024 - Sergipe | G2: 23,08% | I2: Não Desonerado: embutido nos preços unitário dos insumos de mão de obra, de acordo com as bases.
A3: Composições Analíticas com Preço Unitário
A4: Composições Principais
A7: 4 | B7: Código | C7: Banco | D7: Descrição | E7: Tipo | G7: Und | H7: Quant. | I7: Valor Unit | J7: Total
A8: Composição | B8: 103689 | C8: SINAPI | D8: FORNECIMENTO E INSTALAÇÃO DE PLACA DE OBRA COM CHAPA GALVANIZADA E ESTRUTURA DE MADEIRA. AF_03/2022_PS | E8: PAVI - PAVIMENTAÇÃO | G8: m² | H8: 1 | I8: 348.92 | J8: 348.92
A9: Composição Auxiliar | B9: 102234 | C9: SINAPI | D9: PINTURA IMUNIZANTE PARA MADEIRA, 2 DEMÃOS. AF_01/2021 | E9: PINT - PINTURAS | G9: m² | H9: 0.5 | I9: 25.92 | J9: 12.96
A10: Composição Auxiliar | B10: 88262 | C10: SINAPI | D10: CARPINTEIRO DE FORMAS COM ENCARGOS COMPLEMENTARES | E10: SEDI - SERVIÇOS DIVERSOS | G10: H | H10: 0.3729 | I10: 25.8 | J10: 9.62
A11: Composição Auxiliar | B11: 88316 | C11: SINAPI | D11: SERVENTE COM ENCARGOS COMPLEMENTARES | E11: SEDI - SERVIÇOS DIVERSOS | G11: H | H11: 1.1186 | I11: 20.42 | J11: 22.84
A12: Insumo | B12: 00004509 | C12: SINAPI | D12: SARRAFO *2,5 X 10* CM EM PINUS, MISTA OU EQUIVALENTE DA REGIAO - BRUTA | E12: Material | G12: M | H12: 3.2083 | I12: 5.58 | J12: 17.9
A13: Insumo | B13: 00004813 | C13: SINAPI | D13: PLACA DE OBRA (PARA CONSTRUCAO CIVIL) EM CHAPA GALVANIZADA *N. 22*, ADESIVADA, DE *2,4 X 1,2* M (SEM POSTES PARA FIXACAO) | E13: Material | G13: m² | H13: 1 | I13: 285 | J13: 285
A14: Insumo | B14: 00005065 | C14: SINAPI | D14: PREGO DE ACO POLIDO COM CABECA 10 X 10 (7/8 X 17) | E14: Material | G14: KG | H14: 0.0113 | I14: 32.89 | J14: 0.37
A15: Insumo | B15: 00005069 | C15: SINAPI | D15: PREGO DE ACO POLIDO COM CABECA 17 X 27 (2 1/2 X 11) | E15: Material | G15: KG | H15: 0.0132 | I15: 17.62 | J15: 0.23
A18: 6 | B18: Código | C18: Banco | D18: Descrição | E18: Tipo | G18: Und | H18: Quant. | I18: Valor Unit | J18: Total
A19: Composição | B19: 4011463 | C19: SICRO3 | D19: Concreto asfáltico - faixa C - areia e brita comerciais | G19: t | H19: 1 | I19: 202.41 | J19: 202.41
A20: A | B20: Código | C20: Banco | D20: Equipamentos | E20: Quantidade | F20: Utilização | H20: Custo Operacional | J20: Custo Horário
F21: Operativa | G21: Improdutiva | H21: Operativa | I21: Improdutiva
A22: Insumo | B22: E9762 | C22: SICRO3 | D22: Rolo compactador de pneus autopropelido de 27 t - 85 kW | E22: 1 | F22: 0.71 | G22: 0.29 | H22: 248.3853 | I22: 120.0527 | J22: 211.1688
A23: Insumo | B23: E9681 | C23: SICRO3 | D23: Rolo compactador liso tandem vibratório autopropelido de 10,4 t - 82 kW | E23: 1 | F23: 0.82 | G23: 0.18 | H23: 272.3454 | I23: 101.4898 | J23: 241.5914
A24: Insumo | B24: E9545 | C24: SICRO3 | D24: Vibroacabadora de asfalto sobre esteiras - 82 kW | E24: 1 | F24: 1 | G24: 0 | H24: 602.2529 | I24: 286.4078 | J24: 602.2529
F25: Custo Horário de Equipamentos => | J25: 1055.0131
A26: B | B26: Código | C26: Banco | D26: Mão de Obra | E26: Quantidade | F26: Salário Hora | J26: Custo Horário
A27: Insumo | B27: P9824 | C27: SICRO3 | D27: Servente | E27: 8 | I27: 20.6527 | J27: 165.2216
F28: Custo Horário da Mão de Obra => | J28: 165.2216
F29: Adc.M.O. - Ferramentas (0,0%) => | J29: 0
F30: Custo Horário de Execução => | J30: 1220.2347
F31: Fator de Influencia da Chuva - FIC => | J31: 0.0036
F32: Custo do FIC => | J32: 0.0437
F33: Produção de Equipe => | J33: 99.6
F34: Custo Unitário de Execução => | J34: 12.2514
A35: D | B35: Banco | C35: Código | D35: Atividades Auxiliares | E35: Quantidade | F35: Unidade | G35: Preço Unitário | J35: Custo Horário
A36: Atividade Auxiliar | B36: SICRO3 | C36: 6416078 | D36: Usinagem de concreto asfáltico - faixa C - areia e brita comerciais | E36: 1 | F36: t | G36: 182.55 | J36: 182.55
F37: Custo Total das Atividades => | J37: 182.55
A38: E | B38: Banco | C38: Insumo | D38: Tempos Fixos | E38: Código | F38: Quantidade | G38: Unidade | H38: Preço Unitário | J38: Custo Horário
A39: Tempo Fixo | B39: SICRO3 | C39: 6416078 | D39: Carga, manobra e descarga de mistura betuminosa a quente em caminhão basculante de 10 m³ - carga em usina de asfalto100/140 t/h e descarga em vibroacabadora | E39: 5914649 | F39: 1 | G39: t | H39: 7.56 | J39: 7.56
F40: Custo Total dos Tempos Fixos => | J40: 7.56
A41: F | B41: Banco | C41: Insumo | D41: Momento de Transporte | E41: Quantidade | F41: Unidade | G41: Distância Média de Transporte (DMT) | J41: Custo Horário
G42: LN | H42: RP | I42: P
A43: Momento de Transporte | B43: SICRO3 | C43: 6416078 | D43: Usinagem de concreto asfáltico - faixa C - areia e brita comerciais - Caminhão basculante com capacidade de 10 m³ - 188 kW | E43: 1 | F43: tkm | G43: 5914359 0,000 R$ 1,19 | H43: 5914374 0,000 R$ 0,95 | I43: 5914389 0,000 R$ 0,78 | J43: 0
F44: Custo total dos Momentos de Transportes => | J44: 0
A48: 7 | B48: Código | C48: Banco | D48: Descrição | E48: Tipo | G48: Und | H48: Quant. | I48: Valor Unit | J48: Total
A49: Composição | B49: 4011353 | C49: SICRO3 | D49: Pintura de ligação | G49: m² | H49: 1 | I49: 0.27 | J49: 0.27
A50: A | B50: Código | C50: Banco | D50: Equipamentos | E50: Quantidade | F50: Utilização | H50: Custo Operacional | J50: Custo Horário
F51: Operativa | G51: Improdutiva | H51: Operativa | I51: Improdutiva
A52: Insumo | B52: E9509 | C52: SICRO3 | D52: Caminhão tanque distribuidor de asfalto com capacidade de 6.000 l - 7 kW/136 kW | E52: 1 | F52: 1 | G52: 0 | H52: 251.4097 | I52: 70.9605 | J52: 251.4097
A53: Insumo | B53: E9558 | C53: SICRO3 | D53: Tanque de estocagem de asfalto com capacidade de 30.000 l | E53: 2 | F53: 1 | G53: 0 | H53: 55.7823 | I53: 38.1034 | J53: 111.5646
F54: Custo Horário de Equipamentos => | J54: 362.9743
A55: B | B55: Código | C55: Banco | D55: Mão de Obra | E55: Quantidade | F55: Salário Hora | J55: Custo Horário
A56: Insumo | B56: P9824 | C56: SICRO3 | D56: Servente | E56: 2 | I56: 20.6527 | J56: 41.3054
F57: Custo Horário da Mão de Obra => | J57: 41.3054
F58: Adc.M.O. - Ferramentas (0,0%) => | J58: 0
F59: Custo Horário de Execução => | J59: 404.2797
F60: Fator de Influencia da Chuva - FIC => | J60: 0.0036
F61: Custo do FIC => | J61: 0.001
F62: Produção de Equipe => | J62: 1500
F63: Custo Unitário de Execução => | J63: 0.2695
A64: C | B64: Banco | C64: Código | D64: Material | E64: Quantidade | F64: Unidade | G64: Preço Unitário | J64: Custo Horário
A65: Insumo | B65: SICRO3 | C65: M1946 | D65: Emulsão asfáltica - RR-1C | E65: 0.00045 | F65: t | G65: 0 | J65: 0
F66: Custo Total do Material => | J66: 0
A70: 8 | B70: Código | C70: Banco | D70: Descrição | E70: Tipo | G70: Und | H70: Quant. | I70: Valor Unit | J70: Total
A71: Composição | B71: 4915663 | C71: SICRO3 | D71: Fresagem descontínua de revestimento asfáltico - espessura de 5 cm | G71: m³ | H71: 1 | I71: 71.95 | J71: 71.95
A72: A | B72: Código | C72: Banco | D72: Equipamentos | E72: Quantidade | F72: Utilização | H72: Custo Operacional | J72: Custo Horário
F73: Operativa | G73: Improdutiva | H73: Operativa | I73: Improdutiva
A74: Insumo | B74: E9571 | C74: SICRO3 | D74: Caminhão tanque com capacidade de 10.000 l - 188 kW | E74: 1 | F74: 0.18 | G74: 0.82 | H74: 315.7824 | I74: 81.2249 | J74: 123.4453
A75: Insumo | B75: E9678 | C75: SICRO3 | D75: Fresadora a frio - 455 kW | E75: 1 | F75: 1 | G75: 0 | H75: 1378.5378 | I75: 477.4368 | J75: 1378.5378
A76: Insumo | B76: E9697 | C76: SICRO3 | D76: Minicarregadeira de pneus com vassoura de 1,68 m - 45,50 kW | E76: 1 | F76: 0.97 | G76: 0.03 | H76: 155.2555 | I76: 66.9414 | J76: 152.6061
A77: Insumo | B77: E9156 | C77: SICRO3 | D77: Soprador de ar costal - 2,6 kW | E77: 1 | F77: 1 | G77: 0 | H77: 5.6558 | I77: 0.4881 | J77: 5.6558
F78: Custo Horário de Equipamentos => | J78: 1660.245
A79: B | B79: Código | C79: Banco | D79: Mão de Obra | E79: Quantidade | F79: Salário Hora | J79: Custo Horário
A80: Insumo | B80: P9824 | C80: SICRO3 | D80: Servente | E80: 3 | I80: 20.6527 | J80: 61.9581
F81: Custo Horário da Mão de Obra => | J81: 61.9581
F82: Adc.M.O. - Ferramentas (0,0%) => | J82: 0
F83: Custo Horário de Execução => | J83: 1722.2031
F84: Fator de Influencia da Chuva - FIC => | J84: 0
F85: Custo do FIC => | J85: 0
F86: Produção de Equipe => | J86: 49.03
F87: Custo Unitário de Execução => | J87: 35.1255
A88: C | B88: Banco | C88: Código | D88: Material | E88: Quantidade | F88: Unidade | G88: Preço Unitário | J88: Custo Horário
A89: Insumo | B89: SICRO3 | C89: M1974 | D89: Dente de corte para fresadora de 455 kW | E89: 0.648 | F89: un | G89: 40.1501 | J89: 26.0173
A90: Insumo | B90: SICRO3 | C90: M2148 | D90: Porta-dente de corte para fresadora e recicladora a frio | E90: 0.00113 | F90: un | G90: 491.7822 | J90: 0.5557
F91: Custo Total do Material => | J91: 26.573
A92: E | B92: Banco | C92: Insumo | D92: Tempos Fixos | E92: Código | F92: Quantidade | G92: Unidade | H92: Preço Unitário | J92: Custo Horário
A93: Tempo Fixo | B93: SICRO3 | C93: M3507 | D93: Carga, manobra e descarga de material fresado em caminhão basculante de 10 m³ - fresagem descontínua em espessura de5 cm - carga com fresadora e descarga livre | E93: 5914352 | F93: 2.4 | G93: t | H93: 4.27 | J93: 10.248
F94: Custo Total dos Tempos Fixos => | J94: 10.248
A95: F | B95: Banco | C95: Insumo | D95: Momento de Transporte | E95: Quantidade | F95: Unidade | G95: Distância Média de Transporte (DMT) | J95: Custo Horário
G96: LN | H96: RP | I96: P
A97: Momento de Transporte | B97: SICRO3 | C97: M3507 | D97: Revestimento asfáltico - Caminhão basculante com capacidade de 10 m³ - 188 kW | E97: 2.4 | F97: tkm | G97: 5914359 0,000 R$ 1,19 | H97: 5914374 0,000 R$ 0,95 | I97: 5914389 0,000 R$ 0,78 | J97: 0
F98: Custo total dos Momentos de Transportes => | J98: 0
A102: 9 | B102: Código | C102: Banco | D102: Descrição | E102: Tipo | G102: Und | H102: Quant. | I102: Valor Unit | J102: Total
A103: Composição | B103: 4915618 | C103: SICRO3 | D103: Recomposição de camada granular do pavimento com material de jazida | G103: m² | H103: 1 | I103: 3.07 | J103: 3.07
A104: A | B104: Código | C104: Banco | D104: Equipamentos | E104: Quantidade | F104: Utilização | H104: Custo Operacional | J104: Custo Horário
F105: Operativa | G105: Improdutiva | H105: Operativa | I105: Improdutiva
A106: Insumo | B106: E9605 | C106: SICRO3 | D106: Caminhão tanque com capacidade de 6.000 l - 136 kW | E106: 1 | F106: 0.38 | G106: 0.62 | H106: 240.3886 | I106: 68.5501 | J106: 133.8487
A107: Insumo | B107: E9518 | C107: SICRO3 | D107: Grade de 24 discos rebocável de D = 60 cm (24”) | E107: 1 | F107: 0.38 | G107: 0.62 | H107: 4.8604 | I107: 3.3847 | J107: 3.9455
A108: Insumo | B108: E9524 | C108: SICRO3 | D108: Motoniveladora - 93 kW | E108: 1 | F108: 0.32 | G108: 0.68 | H108: 280.1411 | I108: 121.0896 | J108: 171.9861
A109: Insumo | B109: E9762 | C109: SICRO3 | D109: Rolo compactador de pneus autopropelido de 27 t - 85 kW | E109: 1 | F109: 0.96 | G109: 0.04 | H109: 248.3853 | I109: 120.0527 | J109: 243.252
A110: Insumo | B110: E9685 | C110: SICRO3 | D110: Rolo compactador pé de carneiro vibratório autopropelido por pneus de 11,6 t - 82 kW | E110: 1 | F110: 1 | G110: 0 | H110: 212.4712 | I110: 93.9933 | J110: 212.4712
A111: Insumo | B111: E9577 | C111: SICRO3 | D111: Trator agrícola sobre pneus - 77 kW | E111: 1 | F111: 0.38 | G111: 0.62 | H111: 140.8575 | I111: 50.4418 | J111: 84.7998
F112: Custo Horário de Equipamentos => | J112: 850.3033
A113: B | B113: Código | C113: Banco | D113: Mão de Obra | E113: Quantidade | F113: Salário Hora | J113: Custo Horário
A114: Insumo | B114: P9824 | C114: SICRO3 | D114: Servente | E114: 2 | I114: 20.6527 | J114: 41.3054
F115: Custo Horário da Mão de Obra => | J115: 41.3054
F116: Adc.M.O. - Ferramentas (0,0%) => | J116: 0
F117: Custo Horário de Execução => | J117: 891.6087
F118: Fator de Influencia da Chuva - FIC => | J118: 0.0214
F119: Custo do FIC => | J119: 0.0458
F120: Produção de Equipe => | J120: 417.38
F121: Custo Unitário de Execução => | J121: 2.1362
A122: D | B122: Banco | C122: Código | D122: Atividades Auxiliares | E122: Quantidade | F122: Unidade | G122: Preço Unitário | J122: Custo Horário
A123: Atividade Auxiliar | B123: SICRO3 | C123: 4016096 | D123: Escavação e carga de material de jazida com escavadeira hidráulica de 1,56 m³ | E123: 0.22005 | F123: m³ | G123: 1.33 | J123: 0.2927
F124: Custo Total das Atividades => | J124: 0.2927
A125: E | B125: Banco | C125: Insumo | D125: Tempos Fixos | E125: Código | F125: Quantidade | G125: Unidade | H125: Preço Unitário | J125: Custo Horário
A126: Tempo Fixo | B126: SICRO3 | C126: 4016096 | D126: Carga, manobra e descarga de agregados ou solos em caminhão basculante de 6 m³ - carga com escavadeira de 1,56 m³(exclusa) e descarga livre | E126: 5914353 | F126: 0.41259 | G126: t | H126: 1.44 | J126: 0.5941
F127: Custo Total dos Tempos Fixos => | J127: 0.5941
A128: F | B128: Banco | C128: Insumo | D128: Momento de Transporte | E128: Quantidade | F128: Unidade | G128: Distância Média de Transporte (DMT) | J128: Custo Horário
G129: LN | H129: RP | I129: P
A130: Momento de Transporte | B130: SICRO3 | C130: 4016096 | D130: Escavação e carga de material de jazida com escavadeira hidráulica de 1,56 m³ - Caminhão basculante com capacidade de 6 m³ - 136 kW | E130: 0.41259 | F130: tkm | G130: 5914314 0,000 R$ 1,22 | H130: 5914329 0,000 R$ 0,97 | I130: 5914344 0,000 R$ 0,79 | J130: 0
F131: Custo total dos Momentos de Transportes => | J131: 0
A135: 14 | B135: Código | C135: Banco | D135: Descrição | E135: Tipo | G135: Und | H135: Quant. | I135: Valor Unit | J135: Total
A136: Composição | B136: 5213440 | C136: SICRO3 | D136: Placa de regulamentação em aço D = 0,60 m - película retrorrefletiva tipo I + SI - fornecimento e implantação | G136: un | H136: 1 | I136: 252.07 | J136: 252.07
A137: A | B137: Código | C137: Banco | D137: Equipamentos | E137: Quantidade | F137: Utilização | H137: Custo Operacional | J137: Custo Horário
F138: Operativa | G138: Improdutiva | H138: Operativa | I138: Improdutiva
A139: Insumo | B139: E9687 | C139: SICRO3 | D139: Caminhão carroceria com capacidade de 5 t - 115 kW | E139: 1 | F139: 0.3 | G139: 0.7 | H139: 144.8526 | I139: 57.0021 | J139: 83.3573
F140: Custo Horário de Equipamentos => | J140: 83.3573
A141: B | B141: Código | C141: Banco | D141: Mão de Obra | E141: Quantidade | F141: Salário Hora | J141: Custo Horário
A142: Insumo | B142: P9830 | C142: SICRO3 | D142: Montador | E142: 1 | I142: 30.7099 | J142: 30.7099
A143: Insumo | B143: P9824 | C143: SICRO3 | D143: Servente | E143: 2 | I143: 20.6527 | J143: 41.3054
F144: Custo Horário da Mão de Obra => | J144: 72.0153
F145: Adc.M.O. - Ferramentas (0,0%) => | J145: 0
F146: Custo Horário de Execução => | J146: 155.3726
F147: Fator de Influencia da Chuva - FIC => | J147: 0
F148: Custo do FIC => | J148: 0
F149: Produção de Equipe => | J149: 3
F150: Custo Unitário de Execução => | J150: 51.7909
A151: D | B151: Banco | C151: Código | D151: Atividades Auxiliares | E151: Quantidade | F151: Unidade | G151: Preço Unitário | J151: Custo Horário
A152: Atividade Auxiliar | B152: SICRO3 | C152: 5213414 | D152: Placa em aço nº 16 galvanizado com película retrorrefletiva tipo I + SI - confecção | E152: 0.35994 | F152: m² | G152: 556.41 | J152: 200.2742
F153: Custo Total das Atividades => | J153: 200.2742
A157: 15 | B157: Código | C157: Banco | D157: Descrição | E157: Tipo | G157: Und | H157: Quant. | I157: Valor Unit | J157: Total
A158: Composição | B158: 5213464 | C158: SICRO3 | D158: Placa de advertência em aço, lado de 0,60 m - película retrorrefletiva tipo I + SI - fornecimento e implantação | G158: un | H158: 1 | I158: 252.1 | J158: 252.1
A159: A | B159: Código | C159: Banco | D159: Equipamentos | E159: Quantidade | F159: Utilização | H159: Custo Operacional | J159: Custo Horário
F160: Operativa | G160: Improdutiva | H160: Operativa | I160: Improdutiva
A161: Insumo | B161: E9687 | C161: SICRO3 | D161: Caminhão carroceria com capacidade de 5 t - 115 kW | E161: 1 | F161: 0.3 | G161: 0.7 | H161: 144.8526 | I161: 57.0021 | J161: 83.3573
F162: Custo Horário de Equipamentos => | J162: 83.3573
A163: B | B163: Código | C163: Banco | D163: Mão de Obra | E163: Quantidade | F163: Salário Hora | J163: Custo Horário
A164: Insumo | B164: P9830 | C164: SICRO3 | D164: Montador | E164: 1 | I164: 30.7099 | J164: 30.7099
A165: Insumo | B165: P9824 | C165: SICRO3 | D165: Servente | E165: 2 | I165: 20.6527 | J165: 41.3054
F166: Custo Horário da Mão de Obra => | J166: 72.0153
F167: Adc.M.O. - Ferramentas (0,0%) => | J167: 0
F168: Custo Horário de Execução => | J168: 155.3726
F169: Fator de Influencia da Chuva - FIC => | J169: 0
F170: Custo do FIC => | J170: 0
F171: Produção de Equipe => | J171: 3
F172: Custo Unitário de Execução => | J172: 51.7909
A173: D | B173: Banco | C173: Código | D173: Atividades Auxiliares | E173: Quantidade | F173: Unidade | G173: Preço Unitário | J173: Custo Horário
A174: Atividade Auxiliar | B174: SICRO3 | C174: 5213414 | D174: Placa em aço nº 16 galvanizado com película retrorrefletiva tipo I + SI - confecção | E174: 0.36 | F174: m² | G174: 556.41 | J174: 200.3076
F175: Custo Total das Atividades => | J175: 200.3076
A179: 16 | B179: Código | C179: Banco | D179: Descrição | E179: Tipo | G179: Und | H179: Quant. | I179: Valor Unit | J179: Total
A180: Composição | B180: 5213863 | C180: SICRO3 | D180: Suporte metálico galvanizado para placa de advertência ou regulamentação - lado ou diâmetro de 0,60 m - fornecimento e implantação | G180: un | H180: 1 | I180: 453.39 | J180: 453.39
A181: A | B181: Código | C181: Banco | D181: Equipamentos | E181: Quantidade | F181: Utilização | H181: Custo Operacional | J181: Custo Horário
F182: Operativa | G182: Improdutiva | H182: Operativa | I182: Improdutiva
A183: Insumo | B183: E9687 | C183: SICRO3 | D183: Caminhão carroceria com capacidade de 5 t - 115 kW | E183: 1 | F183: 0.3 | G183: 0.7 | H183: 144.8526 | I183: 57.0021 | J183: 83.3573
F184: Custo Horário de Equipamentos => | J184: 83.3573
A185: B | B185: Código | C185: Banco | D185: Mão de Obra | E185: Quantidade | F185: Salário Hora | J185: Custo Horário
A186: Insumo | B186: P9830 | C186: SICRO3 | D186: Montador | E186: 1 | I186: 30.7099 | J186: 30.7099
A187: Insumo | B187: P9824 | C187: SICRO3 | D187: Servente | E187: 1 | I187: 20.6527 | J187: 20.6527
F188: Custo Horário da Mão de Obra => | J188: 51.3626
F189: Adc.M.O. - Ferramentas (0,0%) => | J189: 0
F190: Custo Horário de Execução => | J190: 134.7199
F191: Fator de Influencia da Chuva - FIC => | J191: 0
F192: Custo do FIC => | J192: 0
F193: Produção de Equipe => | J193: 4.1
F194: Custo Unitário de Execução => | J194: 32.8585
A195: C | B195: Banco | C195: Código | D195: Material | E195: Quantidade | F195: Unidade | G195: Preço Unitário | J195: Custo Horário
A196: Insumo | B196: SICRO3 | C196: M0789 | D196: Conjunto para fixação de placas em aço galvanizado composto por barra chata, abraçadeira, parafusos, | E196: 0.697 | F196: kg | G196: 30.3511 | J196: 21.1547
A197: Insumo | B197: SICRO3 | C197: M0787 | D197: Suporte em aço-carbono galvanizado tipo perfil C para placa de sinalização | E197: 12.717 | F197: kg | G197: 29.35 | J197: 373.244
F198: Custo Total do Material => | J198: 394.3987
A199: D | B199: Banco | C199: Código | D199: Atividades Auxiliares | E199: Quantidade | F199: Unidade | G199: Preço Unitário | J199: Custo Horário
A200: Atividade Auxiliar | B200: SICRO3 | C200: 1107892 | D200: Concreto fck = 20 MPa - confecção em betoneira e lançamento manual - areia e brita comerciais | E200: 0.05027 | F200: m³ | G200: 469.11 | J200: 23.5822
A201: Atividade Auxiliar | B201: SICRO3 | C201: 4805750 | D201: Escavação manual em material de 1ª categoria na profundidade de até 1 m | E201: 0.05027 | F201: m³ | G201: 42.19 | J201: 2.1209
F202: Custo Total das Atividades => | J202: 25.7031
A203: E | B203: Banco | C203: Insumo | D203: Tempos Fixos | E203: Código | F203: Quantidade | G203: Unidade | H203: Preço Unitário | J203: Custo Horário
A204: Tempo Fixo | B204: SICRO3 | C204: M0789 | D204: Carga, manobra e descarga de materiais diversos em caminhão carroceria de 15 t - carga e descarga manuais | E204: 5914655 | F204: 0.0007 | G204: t | H204: 32.23 | J204: 0.0226
A205: Tempo Fixo | B205: SICRO3 | C205: M0787 | D205: Carga, manobra e descarga de materiais diversos em caminhão carroceria de 15 t - carga e descarga manuais | E205: 5914655 | F205: 0.01272 | G205: t | H205: 32.23 | J205: 0.41
F206: Custo Total dos Tempos Fixos => | J206: 0.4326
A207: F | B207: Banco | C207: Insumo | D207: Momento de Transporte | E207: Quantidade | F207: Unidade | G207: Distância Média de Transporte (DMT) | J207: Custo Horário
G208: LN | H208: RP | I208: P
A209: Momento de Transporte | B209: SICRO3 | C209: M0789 | D209: Conjunto para fixação de placas em aço galvanizado composto por barra chata, abraçadeira, parafusos, - Caminhão carroceria com capacidade de 15 t - 188 kW | E209: 0.0007 | F209: tkm | G209: 5914449 0,000 R$ 1,06 | H209: 5914464 0,000 R$ 0,85 | I209: 5914479 0,000 R$ 0,69 | J209: 0
A210: Momento de Transporte | B210: SICRO3 | C210: M0787 | D210: Suporte em aço-carbono galvanizado tipo perfil C para placa de sinalização - Caminhão carroceria com capacidade de 15 t - 188 kW | E210: 0.01272 | F210: tkm | G210: 5914449 0,000 R$ 1,06 | H210: 5914464 0,000 R$ 0,85 | I210: 5914479 0,000 R$ 0,69 | J210: 0
F211: Custo total dos Momentos de Transportes => | J211: 0
A215: 17 | B215: Código | C215: Banco | D215: Descrição | E215: Tipo | G215: Und | H215: Quant. | I215: Valor Unit | J215: Total
A216: Composição | B216: 5213400 | C216: SICRO3 | D216: Pintura de faixa com tinta acrílica - espessura de 0,4 mm | G216: m² | H216: 1 | I216: 24.23 | J216: 24.23
A217: A | B217: Código | C217: Banco | D217: Equipamentos | E217: Quantidade | F217: Utilização | H217: Custo Operacional | J217: Custo Horário
F218: Operativa | G218: Improdutiva | H218: Operativa | I218: Improdutiva
A219: Insumo | B219: E9644 | C219: SICRO3 | D219: Caminhão demarcador de faixas com sistema de pintura a frio - 28 kW/115 kW | E219: 1 | F219: 1 | G219: 0 | H219: 362.9695 | I219: 150.8912 | J219: 362.9695
F220: Custo Horário de Equipamentos => | J220: 362.9695
A221: B | B221: Código | C221: Banco | D221: Mão de Obra | E221: Quantidade | F221: Salário Hora | J221: Custo Horário
A222: Insumo | B222: P9853 | C222: SICRO3 | D222: Pré-marcador | E222: 1 | I222: 20.4679 | J222: 20.4679
A223: Insumo | B223: P9824 | C223: SICRO3 | D223: Servente | E223: 4 | I223: 20.6527 | J223: 82.6108
F224: Custo Horário da Mão de Obra => | J224: 103.0787
F225: Adc.M.O. - Ferramentas (0,0%) => | J225: 0
... 818 more rows

Sheet Curva ABC de Serviços
C1: Obra | D1: Bancos | E1: B.D.I. | H1: Encargos Sociais
C2: ITEM 01 - ECA - PO BSB | D2: SINAPI - 07/2024 - Sergipe SICRO3 - 04/2024 - Sergipe ORSE - 06/2024 - Sergipe | E2: 23,08% | H2: Não Desonerado: embutido nos preços unitário dos insumos de mão de obra, de acordo com as bases.
A3: Curva ABC de Serviços
A4: Código | B4: Banco | C4: Descrição | D4: Reajustamento | E4: Und | F4: Quant. | G4: Valor Unit | H4: Total | I4: Peso (%) | J4: Peso Acumulado (%)
A5: CAP 50/70 | B5: CODEVASF | C5: Aquisição de Cimento Asfáltico CAP 50/70 | D5: Cimento Asfáltico Petróleo - CAP | E5: t | F5: 2058.52 | G5: 5727.59 | H5: =VLOOKUP($A5,'RESUMO MODULO TOTAL'!$D$12:$N$49,11,FALSE) -> 11790358.56 | I5: =H5/$H$36 -> 0.396212285 | J5: =I5 -> 0.396212285
A6: 4011463 | B6: SICRO | C6: Concreto asfáltico - faixa C - areia e brita comerciais | D6: Pavimentação | E6: t | F6: 31920 | G6: 249.12 | H6: =VLOOKUP($A6,'RESUMO MODULO TOTAL'!$D$12:$N$49,11,FALSE) -> 7951910.4 | I6: 0.2672221183 | J6: =I6+J5 -> 0.6634344033
A7: 5914389 | B7: SICRO | C7: Transporte com caminhão basculante de 10 m³ - rodovia pavimentada | D7: Terraplenagem | E7: tkm | F7: 3844607.59 | G7: 0.96 | H7: =VLOOKUP($A7,'RESUMO MODULO TOTAL'!$D$12:$N$49,11,FALSE) -> 3690823.28 | I7: 0.1240292666 | J7: 0.7874636699
A8: Adm Local | B8: CODEVASF | C8: Administração Local da Obra | D8: Administração Local | E8: und | F8: 1 | G8: 1176368.27 | H8: =VLOOKUP($A8,'RESUMO MODULO TOTAL'!$D$12:$N$49,11,FALSE) -> 1176368.27 | I8: 0.03953158489 | J8: 0.8269952548
A9: 5914344 | B9: SICRO | C9: Transporte com caminhão basculante de 6 m³ - rodovia pavimentada | D9: Terraplenagem | E9: tkm | F9: 932865.99 | G9: 0.97 | H9: =VLOOKUP($A9,'RESUMO MODULO TOTAL'!$D$12:$N$49,11,FALSE) -> 904880.01 | I9: 0.03040828441 | J9: 0.8574035392
A10: T. CAP 50/70 | B10: CODEVASF | C10: Transporte CAP 50/70 | D10: Pavimentação | E10: t | F10: 2058.52 | G10: 317.03 | H10: =VLOOKUP($A10,'RESUMO MODULO TOTAL'!$D$12:$N$49,11,FALSE) -> 652612.59 | I10: 0.02193089584 | J10: 0.8793344351
A11: Projeto Executivo | B11: CODEVASF | C11: Projeto Executivo | D11: Consultoria, Supervisão e Projeto | E11: m² | F11: 266000 | G11: 1.95 | H11: =VLOOKUP($A11,'RESUMO MODULO TOTAL'!$D$12:$N$49,11,FALSE) -> 518700 | I11: 0.01743079408 | J11: 0.8967652292
A12: RR-1C | B12: CODEVASF | C12: Aquisição de Emulsão Asfáltica RR-1C | D12: Emulsão Asfáltica | E12: t | F12: 119.7 | G12: 4105.55 | H12: =VLOOKUP($A12,'RESUMO MODULO TOTAL'!$D$12:$N$49,11,FALSE) -> 491434.33 | I12: 0.01651453752 | J12: 0.9132797667
A13: Mob | B13: CODEVASF | C13: Mobilização | D13: Mobilização e Desmobilização | E13: kmxfrente | F13: 1900 | G13: 249.47 | H13: =VLOOKUP($A13,'RESUMO MODULO TOTAL'!$D$12:$N$49,11,FALSE) -> 473993 | I13: 0.01592842564 | J13: 0.9292081923
A14: Mob | B14: CODEVASF | C14: Desmobilização | D14: Mobilização e Desmobilização | E14: kmxfrente | F14: 1900 | G14: 249.47 | H14: =VLOOKUP($A14,'RESUMO MODULO TOTAL'!$D$12:$N$49,11,FALSE) -> 473993 | I14: 0.01592842564 | J14: 0.945136618
A15: 5914374 | B15: SICRO | C15: Transporte com caminhão basculante de 10 m³ - rodovia em revestimento primário | D15: Terraplenagem | E15: tkm | F15: 255126.35 | G15: 1.16 | H15: =VLOOKUP($A15,'RESUMO MODULO TOTAL'!$D$12:$N$49,11,FALSE) -> 295946.56 | I15: 0.009945216016 | J15: 0.955081834
A16: 5213400 | B16: SICRO | C16: Pintura de faixa com tinta acrílica - espessura de 0,4 mm | D16: Sinalização Horizontal | E16: m² | F16: 9120 | G16: 29.82 | H16: =VLOOKUP($A16,'RESUMO MODULO TOTAL'!$D$12:$N$49,11,FALSE) -> 271958.4 | I16: 0.009139099421 | J16: 0.9642209334
A17: 5213863 | B17: SICRO | C17: Suporte metálico galvanizado para placa de advertência ou regulamentação - lado ou diâmetro de 0,60 m - fornecimento e implantação | D17: Sinalização Vertical | E17: und | F17: 228 | G17: 558.03 | H17: =VLOOKUP($A17,'RESUMO MODULO TOTAL'!$D$12:$N$49,11,FALSE) -> 127230.84 | I17: 0.004275563087 | J17: 0.9684964965
A18: 4915777 | B18: SICRO | C18: Reassentamento manual de meio-fio com material arrancado da pista | D18: Conservação Rodoviária | E18: m | F18: 7600 | G18: 16.46 | H18: =VLOOKUP($A18,'RESUMO MODULO TOTAL'!$D$12:$N$49,11,FALSE) -> 125096 | I18: 0.00420382228 | J18: 0.9727003188
A19: 4915663 | B19: SICRO | C19: Fresagem descontínua de revestimento asfáltico - espessura de 5 cm | D19: Pavimentação | E19: m³ | F19: 1330 | G19: 88.55 | H19: =VLOOKUP($A19,'RESUMO MODULO TOTAL'!$D$12:$N$49,11,FALSE) -> 117771.5 | I19: 0.003957684144 | J19: 0.9766580029
A20: 4915618 | B20: SICRO | C20: Recomposição de camada granular do pavimento com material de jazida | D20: Pavimentação | E20: m² | F20: 26600 | G20: 3.77 | H20: =VLOOKUP($A20,'RESUMO MODULO TOTAL'!$D$12:$N$49,11,FALSE) -> 100282 | I20: 0.003369953523 | J20: 0.9800279564
A21: 5914359 | B21: SICRO | C21: Transporte com caminhão basculante de 10 m³ - rodovia em leito natural | D21: Terraplenagem | E21: tkm | F21: 63781.59 | G21: 1.46 | H21: =VLOOKUP($A21,'RESUMO MODULO TOTAL'!$D$12:$N$49,11,FALSE) -> 93121.12 | I21: 0.003129313799 | J21: 0.9831572702
A22: 4011353 | B22: SICRO | C22: Pintura de ligação | D22: Pavimentação | E22: m² | F22: 266000 | G22: 0.33 | H22: =VLOOKUP($A22,'RESUMO MODULO TOTAL'!$D$12:$N$49,11,FALSE) -> 87780 | I22: 0.002949826691 | J22: 0.9861070969
A23: 103689 | B23: SINAPI | C23: Fornecimento e instalação de placa de obra com chapa galvanizada e estrutura de madeira. af_03/2022_ps | D23: Sinalização Vertical | E23: m² | F23: 152 | G23: 429.45 | H23: =VLOOKUP($A23,'RESUMO MODULO TOTAL'!$D$12:$N$49,11,FALSE) -> 65276.4 | I23: 0.002193598394 | J23: 0.9883006953
A24: 4915708 | B24: SICRO | C24: Limpeza de sarjeta e meio-fio | D24: Conservação Rodoviária | E24: m | F24: 76000 | G24: 0.84 | H24: =VLOOKUP($A24,'RESUMO MODULO TOTAL'!$D$12:$N$49,11,FALSE) -> 63840 | I24: 0.002145328503 | J24: 0.9904460238
A25: 5914329 | B25: SICRO | C25: Transporte com caminhão basculante de 6 m³ - rodovia em revestimento primário | D25: Terraplenagem | E25: tkm | F25: 43899.58 | G25: 1.19 | H25: =VLOOKUP($A25,'RESUMO MODULO TOTAL'!$D$12:$N$49,11,FALSE) -> 52240.5 | I25: 0.001755529976 | J25: 0.9922015538
A26: 4915724 | B26: SICRO | C26: Caiação mecanizada com fixador de cal | D26: Conservação Rodoviária | E26: m² | F26: 18240 | G26: 2.25 | H26: =VLOOKUP($A26,'RESUMO MODULO TOTAL'!$D$12:$N$49,11,FALSE) -> 41040 | I26: 0.001379139752 | J26: 0.9935806935
A27: T. RR-1C | B27: CODEVASF | C27: Transporte RR-1C | D27: Pavimentação | E27: t | F27: 119.7 | G27: 321.56 | H27: =VLOOKUP($A27,'RESUMO MODULO TOTAL'!$D$12:$N$49,11,FALSE) -> 38490.73 | I27: 0.00129347212 | J27: 0.9948741657
A28: 5914366 | B28: SICRO | C28: Transporte de cimento ou cal hidratada a granel com caminhão silo de 30 m³ - rodovia pavimentada | D28: Pavimentação | E28: tkm | F28: 54889.63 | G28: 0.7 | H28: =VLOOKUP($A28,'RESUMO MODULO TOTAL'!$D$12:$N$49,11,FALSE) -> 38422.74 | I28: 0.001291187332 | J28: 0.996165353
A29: 5213464 | B29: SICRO | C29: Placa de advertência em aço, lado de 0,60 m - película retrorrefletiva tipo I + SI - fornecimento e implantação | D29: Sinalização Vertical | E29: und | F29: 114 | G29: 310.28 | H29: =VLOOKUP($A29,'RESUMO MODULO TOTAL'!$D$12:$N$49,11,FALSE) -> 35371.92 | I29: 0.001188665228 | J29: 0.9973540182
A30: 5213440 | B30: SICRO | C30: Placa de regulamentação em aço D = 0,60 m - película retrorrefletiva tipo I + SI - fornecimento e implantação | D30: Sinalização Vertical | E30: und | F30: 114 | G30: 310.24 | H30: =VLOOKUP($A30,'RESUMO MODULO TOTAL'!$D$12:$N$49,11,FALSE) -> 35367.36 | I30: 0.00118851199 | J30: 0.9985425302
A31: Canteiro | B31: CODEVASF | C31: Canteiro de Obras | D31: Administração Local | E31: frente | F31: 19 | G31: 981.94 | H31: =VLOOKUP($A31,'RESUMO MODULO TOTAL'!$D$12:$N$49,11,FALSE) -> 18656.86 | I31: 0.0006269594851 | J31: 0.9991694897
A32: 5914314 | B32: SICRO | C32: Transporte com caminhão basculante de 6 m³ - rodovia em leito natural | D32: Terraplenagem | E32: tkm | F32: 10974.89 | G32: 1.5 | H32: =VLOOKUP($A32,'RESUMO MODULO TOTAL'!$D$12:$N$49,11,FALSE) -> 16462.33 | I32: 0.0005532128097 | J32: 0.9997227025
A33: 5914365 | B33: SICRO | C33: Transporte de cimento ou cal hidratada a granel com caminhão silo de 30 m³ - rodovia em revestimento primário | D33: Pavimentação | E33: tkm | F33: 7318.62 | G33: 0.86 | H33: =VLOOKUP($A33,'RESUMO MODULO TOTAL'!$D$12:$N$49,11,FALSE) -> 6294.01 | I33: 0.000211508757 | J33: 0.9999342113
A34: 5914364 | B34: SICRO | C34: Transporte de cimento ou cal hidratada a granel com caminhão silo de 30 m³ - rodovia em leito natural | D34: Pavimentação | E34: tkm | F34: 1829.65 | G34: 1.07 | H34: =VLOOKUP($A34,'RESUMO MODULO TOTAL'!$D$12:$N$49,11,FALSE) -> 1957.72 | I34: 6.578872989e-05 | J34: 1
F36: Total | H36: =SUM($H$5:$H$34) -> 29757680.43

Sheet ANP ESTADOS
A1: Agência Nacional do Petróleo, Gás Natural e Biocombustíveis
A2: Superintendência de Defesa da Concorrência
B5: PREÇO MÉDIO MENSAL PONDERADO PRATICADO PELOS DISTRIBUIDORES DE PRODUTOS ASFÁLTICOS (R$/KG)
A7: Importante: | B7: Quando não houver declaração de venda do produto selecionado, ou quando a declaração de venda do produto ocorrer por menos de 03 (três) distribuidoras, a tabela indicará campo vazio.
A8: Mês | B8: Produto | C8: Estado | D8: Preço
A9: 2013-01-01 | B9: ASFALTOS DILUÍDOS CM-30 | C9: Acre | D9: -
A10: 2013-01-01 | B10: ASFALTOS DILUÍDOS CM-30 | C10: Alagoas | D10: -
A11: 2013-01-01 | B11: ASFALTOS DILUÍDOS CM-30 | C11: Amapá | D11: -
A12: 2013-01-01 | B12: ASFALTOS DILUÍDOS CM-30 | C12: Amazonas | D12: 1.453527021
A13: 2013-01-01 | B13: ASFALTOS DILUÍDOS CM-30 | C13: Bahia | D13: 1.464044142
A14: 2013-01-01 | B14: ASFALTOS DILUÍDOS CM-30 | C14: Ceará | D14: 1.447997934
A15: 2013-01-01 | B15: ASFALTOS DILUÍDOS CM-30 | C15: Distrito Federal | D15: -
A16: 2013-01-01 | B16: ASFALTOS DILUÍDOS CM-30 | C16: Espírito Santo | D16: -
A17: 2013-01-01 | B17: ASFALTOS DILUÍDOS CM-30 | C17: Goiás | D17: 1.686383065
A18: 2013-01-01 | B18: ASFALTOS DILUÍDOS CM-30 | C18: Maranhão | D18: -
A19: 2013-01-01 | B19: ASFALTOS DILUÍDOS CM-30 | C19: Mato Grosso | D19: -
A20: 2013-01-01 | B20: ASFALTOS DILUÍDOS CM-30 | C20: Mato Grosso do Sul | D20: -
A21: 2013-01-01 | B21: ASFALTOS DILUÍDOS CM-30 | C21: Minas Gerais | D21: 1.451106114
A22: 2013-01-01 | B22: ASFALTOS DILUÍDOS CM-30 | C22: Pará | D22: -
A23: 2013-01-01 | B23: ASFALTOS DILUÍDOS CM-30 | C23: Paraíba | D23: -
A24: 2013-01-01 | B24: ASFALTOS DILUÍDOS CM-30 | C24: Paraná | D24: 1.520125031
A25: 2013-01-01 | B25: ASFALTOS DILUÍDOS CM-30 | C25: Pernambuco | D25: -
A26: 2013-01-01 | B26: ASFALTOS DILUÍDOS CM-30 | C26: Piauí | D26: -
A27: 2013-01-01 | B27: ASFALTOS DILUÍDOS CM-30 | C27: Rio de Janeiro | D27: 1.330475106
A28: 2013-01-01 | B28: ASFALTOS DILUÍDOS CM-30 | C28: Rio Grande do Norte | D28: -
A29: 2013-01-01 | B29: ASFALTOS DILUÍDOS CM-30 | C29: Rio Grande do Sul | D29: 1.598611074
A30: 2013-01-01 | B30: ASFALTOS DILUÍDOS CM-30 | C30: Rondônia | D30: -
A31: 2013-01-01 | B31: ASFALTOS DILUÍDOS CM-30 | C31: Roraima | D31: -
A32: 2013-01-01 | B32: ASFALTOS DILUÍDOS CM-30 | C32: Santa Catarina | D32: -
A33: 2013-01-01 | B33: ASFALTOS DILUÍDOS CM-30 | C33: São Paulo | D33: 1.471008423
A34: 2013-01-01 | B34: ASFALTOS DILUÍDOS CM-30 | C34: Sergipe | D34: -
A35: 2013-01-01 | B35: ASFALTOS DILUÍDOS CM-30 | C35: Tocantins | D35: -
A36: 2013-02-01 | B36: ASFALTOS DILUÍDOS CM-30 | C36: Acre | D36: -
A37: 2013-02-01 | B37: ASFALTOS DILUÍDOS CM-30 | C37: Alagoas | D37: -
A38: 2013-02-01 | B38: ASFALTOS DILUÍDOS CM-30 | C38: Amapá | D38: -
A39: 2013-02-01 | B39: ASFALTOS DILUÍDOS CM-30 | C39: Amazonas | D39: 1.485578179
A40: 2013-02-01 | B40: ASFALTOS DILUÍDOS CM-30 | C40: Bahia | D40: 1.457014101
A41: 2013-02-01 | B41: ASFALTOS DILUÍDOS CM-30 | C41: Ceará | D41: 1.413192336
A42: 2013-02-01 | B42: ASFALTOS DILUÍDOS CM-30 | C42: Distrito Federal | D42: -
A43: 2013-02-01 | B43: ASFALTOS DILUÍDOS CM-30 | C43: Espírito Santo | D43: -
A44: 2013-02-01 | B44: ASFALTOS DILUÍDOS CM-30 | C44: Goiás | D44: 1.667459711
A45: 2013-02-01 | B45: ASFALTOS DILUÍDOS CM-30 | C45: Maranhão | D45: -
A46: 2013-02-01 | B46: ASFALTOS DILUÍDOS CM-30 | C46: Mato Grosso | D46: -
A47: 2013-02-01 | B47: ASFALTOS DILUÍDOS CM-30 | C47: Mato Grosso do Sul | D47: -
A48: 2013-02-01 | B48: ASFALTOS DILUÍDOS CM-30 | C48: Minas Gerais | D48: 1.452121117
A49: 2013-02-01 | B49: ASFALTOS DILUÍDOS CM-30 | C49: Pará | D49: -
A50: 2013-02-01 | B50: ASFALTOS DILUÍDOS CM-30 | C50: Paraíba | D50: -
A51: 2013-02-01 | B51: ASFALTOS DILUÍDOS CM-30 | C51: Paraná | D51: 1.493783173
A52: 2013-02-01 | B52: ASFALTOS DILUÍDOS CM-30 | C52: Pernambuco | D52: -
A53: 2013-02-01 | B53: ASFALTOS DILUÍDOS CM-30 | C53: Piauí | D53: -
A54: 2013-02-01 | B54: ASFALTOS DILUÍDOS CM-30 | C54: Rio de Janeiro | D54: 1.418234901
A55: 2013-02-01 | B55: ASFALTOS DILUÍDOS CM-30 | C55: Rio Grande do Norte | D55: -
A56: 2013-02-01 | B56: ASFALTOS DILUÍDOS CM-30 | C56: Rio Grande do Sul | D56: 1.435861782
A57: 2013-02-01 | B57: ASFALTOS DILUÍDOS CM-30 | C57: Rondônia | D57: -
A58: 2013-02-01 | B58: ASFALTOS DILUÍDOS CM-30 | C58: Roraima | D58: -
A59: 2013-02-01 | B59: ASFALTOS DILUÍDOS CM-30 | C59: Santa Catarina | D59: -
A60: 2013-02-01 | B60: ASFALTOS DILUÍDOS CM-30 | C60: São Paulo | D60: 1.434190204
A61: 2013-02-01 | B61: ASFALTOS DILUÍDOS CM-30 | C61: Sergipe | D61: -
A62: 2013-02-01 | B62: ASFALTOS DILUÍDOS CM-30 | C62: Tocantins | D62: -
A63: 2013-03-01 | B63: ASFALTOS DILUÍDOS CM-30 | C63: Acre | D63: -
A64: 2013-03-01 | B64: ASFALTOS DILUÍDOS CM-30 | C64: Alagoas | D64: -
A65: 2013-03-01 | B65: ASFALTOS DILUÍDOS CM-30 | C65: Amapá | D65: -
A66: 2013-03-01 | B66: ASFALTOS DILUÍDOS CM-30 | C66: Amazonas | D66: 1.507923921
A67: 2013-03-01 | B67: ASFALTOS DILUÍDOS CM-30 | C67: Bahia | D67: 1.449440325
A68: 2013-03-01 | B68: ASFALTOS DILUÍDOS CM-30 | C68: Ceará | D68: 1.401607485
A69: 2013-03-01 | B69: ASFALTOS DILUÍDOS CM-30 | C69: Distrito Federal | D69: -
A70: 2013-03-01 | B70: ASFALTOS DILUÍDOS CM-30 | C70: Espírito Santo | D70: -
A71: 2013-03-01 | B71: ASFALTOS DILUÍDOS CM-30 | C71: Goiás | D71: 1.661758701
A72: 2013-03-01 | B72: ASFALTOS DILUÍDOS CM-30 | C72: Maranhão | D72: -
A73: 2013-03-01 | B73: ASFALTOS DILUÍDOS CM-30 | C73: Mato Grosso | D73: -
A74: 2013-03-01 | B74: ASFALTOS DILUÍDOS CM-30 | C74: Mato Grosso do Sul | D74: -
A75: 2013-03-01 | B75: ASFALTOS DILUÍDOS CM-30 | C75: Minas Gerais | D75: 1.44324333
A76: 2013-03-01 | B76: ASFALTOS DILUÍDOS CM-30 | C76: Pará | D76: -
A77: 2013-03-01 | B77: ASFALTOS DILUÍDOS CM-30 | C77: Paraíba | D77: -
A78: 2013-03-01 | B78: ASFALTOS DILUÍDOS CM-30 | C78: Paraná | D78: 1.468995996
A79: 2013-03-01 | B79: ASFALTOS DILUÍDOS CM-30 | C79: Pernambuco | D79: -
A80: 2013-03-01 | B80: ASFALTOS DILUÍDOS CM-30 | C80: Piauí | D80: -
A81: 2013-03-01 | B81: ASFALTOS DILUÍDOS CM-30 | C81: Rio de Janeiro | D81: 1.438055574
A82: 2013-03-01 | B82: ASFALTOS DILUÍDOS CM-30 | C82: Rio Grande do Norte | D82: -
A83: 2013-03-01 | B83: ASFALTOS DILUÍDOS CM-30 | C83: Rio Grande do Sul | D83: 1.581425878
A84: 2013-03-01 | B84: ASFALTOS DILUÍDOS CM-30 | C84: Rondônia | D84: -
A85: 2013-03-01 | B85: ASFALTOS DILUÍDOS CM-30 | C85: Roraima | D85: -
A86: 2013-03-01 | B86: ASFALTOS DILUÍDOS CM-30 | C86: Santa Catarina | D86: -
A87: 2013-03-01 | B87: ASFALTOS DILUÍDOS CM-30 | C87: São Paulo | D87: 1.466061702
A88: 2013-03-01 | B88: ASFALTOS DILUÍDOS CM-30 | C88: Sergipe | D88: -
A89: 2013-03-01 | B89: ASFALTOS DILUÍDOS CM-30 | C89: Tocantins | D89: -
A90: 2013-04-01 | B90: ASFALTOS DILUÍDOS CM-30 | C90: Acre | D90: -
A91: 2013-04-01 | B91: ASFALTOS DILUÍDOS CM-30 | C91: Alagoas | D91: -
A92: 2013-04-01 | B92: ASFALTOS DILUÍDOS CM-30 | C92: Amapá | D92: -
A93: 2013-04-01 | B93: ASFALTOS DILUÍDOS CM-30 | C93: Amazonas | D93: 1.484796656
A94: 2013-04-01 | B94: ASFALTOS DILUÍDOS CM-30 | C94: Bahia | D94: 1.454836546
A95: 2013-04-01 | B95: ASFALTOS DILUÍDOS CM-30 | C95: Ceará | D95: 1.387073962
A96: 2013-04-01 | B96: ASFALTOS DILUÍDOS CM-30 | C96: Distrito Federal | D96: -
A97: 2013-04-01 | B97: ASFALTOS DILUÍDOS CM-30 | C97: Espírito Santo | D97: -
A98: 2013-04-01 | B98: ASFALTOS DILUÍDOS CM-30 | C98: Goiás | D98: 1.673481836
A99: 2013-04-01 | B99: ASFALTOS DILUÍDOS CM-30 | C99: Maranhão | D99: -
A100: 2013-04-01 | B100: ASFALTOS DILUÍDOS CM-30 | C100: Mato Grosso | D100: 1.921938422
A101: 2013-04-01 | B101: ASFALTOS DILUÍDOS CM-30 | C101: Mato Grosso do Sul | D101: -
A102: 2013-04-01 | B102: ASFALTOS DILUÍDOS CM-30 | C102: Minas Gerais | D102: 1.456556683
A103: 2013-04-01 | B103: ASFALTOS DILUÍDOS CM-30 | C103: Pará | D103: -
A104: 2013-04-01 | B104: ASFALTOS DILUÍDOS CM-30 | C104: Paraíba | D104: -
A105: 2013-04-01 | B105: ASFALTOS DILUÍDOS CM-30 | C105: Paraná | D105: 1.534419498
A106: 2013-04-01 | B106: ASFALTOS DILUÍDOS CM-30 | C106: Pernambuco | D106: -
A107: 2013-04-01 | B107: ASFALTOS DILUÍDOS CM-30 | C107: Piauí | D107: -
A108: 2013-04-01 | B108: ASFALTOS DILUÍDOS CM-30 | C108: Rio de Janeiro | D108: 1.418419516
A109: 2013-04-01 | B109: ASFALTOS DILUÍDOS CM-30 | C109: Rio Grande do Norte | D109: -
A110: 2013-04-01 | B110: ASFALTOS DILUÍDOS CM-30 | C110: Rio Grande do Sul | D110: 1.572582456
A111: 2013-04-01 | B111: ASFALTOS DILUÍDOS CM-30 | C111: Rondônia | D111: -
A112: 2013-04-01 | B112: ASFALTOS DILUÍDOS CM-30 | C112: Roraima | D112: -
A113: 2013-04-01 | B113: ASFALTOS DILUÍDOS CM-30 | C113: Santa Catarina | D113: -
A114: 2013-04-01 | B114: ASFALTOS DILUÍDOS CM-30 | C114: São Paulo | D114: 1.475764348
A115: 2013-04-01 | B115: ASFALTOS DILUÍDOS CM-30 | C115: Sergipe | D115: -
A116: 2013-04-01 | B116: ASFALTOS DILUÍDOS CM-30 | C116: Tocantins | D116: -
A117: 2013-05-01 | B117: ASFALTOS DILUÍDOS CM-30 | C117: Acre | D117: -
A118: 2013-05-01 | B118: ASFALTOS DILUÍDOS CM-30 | C118: Alagoas | D118: -
A119: 2013-05-01 | B119: ASFALTOS DILUÍDOS CM-30 | C119: Amapá | D119: -
A120: 2013-05-01 | B120: ASFALTOS DILUÍDOS CM-30 | C120: Amazonas | D120: -
A121: 2013-05-01 | B121: ASFALTOS DILUÍDOS CM-30 | C121: Bahia | D121: 1.492587424
A122: 2013-05-01 | B122: ASFALTOS DILUÍDOS CM-30 | C122: Ceará | D122: 1.376263021
A123: 2013-05-01 | B123: ASFALTOS DILUÍDOS CM-30 | C123: Distrito Federal | D123: -
A124: 2013-05-01 | B124: ASFALTOS DILUÍDOS CM-30 | C124: Espírito Santo | D124: -
A125: 2013-05-01 | B125: ASFALTOS DILUÍDOS CM-30 | C125: Goiás | D125: 1.668214819
A126: 2013-05-01 | B126: ASFALTOS DILUÍDOS CM-30 | C126: Maranhão | D126: -
A127: 2013-05-01 | B127: ASFALTOS DILUÍDOS CM-30 | C127: Mato Grosso | D127: 1.903098159
A128: 2013-05-01 | B128: ASFALTOS DILUÍDOS CM-30 | C128: Mato Grosso do Sul | D128: -
A129: 2013-05-01 | B129: ASFALTOS DILUÍDOS CM-30 | C129: Minas Gerais | D129: 1.464709716
A130: 2013-05-01 | B130: ASFALTOS DILUÍDOS CM-30 | C130: Pará | D130: -
A131: 2013-05-01 | B131: ASFALTOS DILUÍDOS CM-30 | C131: Paraíba | D131: -
A132: 2013-05-01 | B132: ASFALTOS DILUÍDOS CM-30 | C132: Paraná | D132: 1.489027849
A133: 2013-05-01 | B133: ASFALTOS DILUÍDOS CM-30 | C133: Pernambuco | D133: -
A134: 2013-05-01 | B134: ASFALTOS DILUÍDOS CM-30 | C134: Piauí | D134: -
A135: 2013-05-01 | B135: ASFALTOS DILUÍDOS CM-30 | C135: Rio de Janeiro | D135: 1.399256048
A136: 2013-05-01 | B136: ASFALTOS DILUÍDOS CM-30 | C136: Rio Grande do Norte | D136: -
A137: 2013-05-01 | B137: ASFALTOS DILUÍDOS CM-30 | C137: Rio Grande do Sul | D137: 1.539636961
A138: 2013-05-01 | B138: ASFALTOS DILUÍDOS CM-30 | C138: Rondônia | D138: -
A139: 2013-05-01 | B139: ASFALTOS DILUÍDOS CM-30 | C139: Roraima | D139: -
A140: 2013-05-01 | B140: ASFALTOS DILUÍDOS CM-30 | C140: Santa Catarina | D140: -
A141: 2013-05-01 | B141: ASFALTOS DILUÍDOS CM-30 | C141: São Paulo | D141: 1.451215936
A142: 2013-05-01 | B142: ASFALTOS DILUÍDOS CM-30 | C142: Sergipe | D142: -
A143: 2013-05-01 | B143: ASFALTOS DILUÍDOS CM-30 | C143: Tocantins | D143: -
A144: 2013-06-01 | B144: ASFALTOS DILUÍDOS CM-30 | C144: Acre | D144: -
A145: 2013-06-01 | B145: ASFALTOS DILUÍDOS CM-30 | C145: Alagoas | D145: -
A146: 2013-06-01 | B146: ASFALTOS DILUÍDOS CM-30 | C146: Amapá | D146: -
A147: 2013-06-01 | B147: ASFALTOS DILUÍDOS CM-30 | C147: Amazonas | D147: 1.586325818
A148: 2013-06-01 | B148: ASFALTOS DILUÍDOS CM-30 | C148: Bahia | D148: 1.44812907
A149: 2013-06-01 | B149: ASFALTOS DILUÍDOS CM-30 | C149: Ceará | D149: 1.382700989
A150: 2013-06-01 | B150: ASFALTOS DILUÍDOS CM-30 | C150: Distrito Federal | D150: -
A151: 2013-06-01 | B151: ASFALTOS DILUÍDOS CM-30 | C151: Espírito Santo | D151: -
A152: 2013-06-01 | B152: ASFALTOS DILUÍDOS CM-30 | C152: Goiás | D152: 1.699613867
A153: 2013-06-01 | B153: ASFALTOS DILUÍDOS CM-30 | C153: Maranhão | D153: -
A154: 2013-06-01 | B154: ASFALTOS DILUÍDOS CM-30 | C154: Mato Grosso | D154: 1.915975658
A155: 2013-06-01 | B155: ASFALTOS DILUÍDOS CM-30 | C155: Mato Grosso do Sul | D155: -
A156: 2013-06-01 | B156: ASFALTOS DILUÍDOS CM-30 | C156: Minas Gerais | D156: 1.475366896
A157: 2013-06-01 | B157: ASFALTOS DILUÍDOS CM-30 | C157: Pará | D157: -
A158: 2013-06-01 | B158: ASFALTOS DILUÍDOS CM-30 | C158: Paraíba | D158: -
A159: 2013-06-01 | B159: ASFALTOS DILUÍDOS CM-30 | C159: Paraná | D159: 1.432166974
A160: 2013-06-01 | B160: ASFALTOS DILUÍDOS CM-30 | C160: Pernambuco | D160: -
A161: 2013-06-01 | B161: ASFALTOS DILUÍDOS CM-30 | C161: Piauí | D161: -
A162: 2013-06-01 | B162: ASFALTOS DILUÍDOS CM-30 | C162: Rio de Janeiro | D162: 1.527420226
A163: 2013-06-01 | B163: ASFALTOS DILUÍDOS CM-30 | C163: Rio Grande do Norte | D163: -
A164: 2013-06-01 | B164: ASFALTOS DILUÍDOS CM-30 | C164: Rio Grande do Sul | D164: 1.59868349
A165: 2013-06-01 | B165: ASFALTOS DILUÍDOS CM-30 | C165: Rondônia | D165: -
A166: 2013-06-01 | B166: ASFALTOS DILUÍDOS CM-30 | C166: Roraima | D166: -
A167: 2013-06-01 | B167: ASFALTOS DILUÍDOS CM-30 | C167: Santa Catarina | D167: -
A168: 2013-06-01 | B168: ASFALTOS DILUÍDOS CM-30 | C168: São Paulo | D168: 1.432748187
A169: 2013-06-01 | B169: ASFALTOS DILUÍDOS CM-30 | C169: Sergipe | D169: -
A170: 2013-06-01 | B170: ASFALTOS DILUÍDOS CM-30 | C170: Tocantins | D170: -
A171: 2013-07-01 | B171: ASFALTOS DILUÍDOS CM-30 | C171: Acre | D171: -
A172: 2013-07-01 | B172: ASFALTOS DILUÍDOS CM-30 | C172: Alagoas | D172: -
A173: 2013-07-01 | B173: ASFALTOS DILUÍDOS CM-30 | C173: Amapá | D173: -
A174: 2013-07-01 | B174: ASFALTOS DILUÍDOS CM-30 | C174: Amazonas | D174: 1.509890931
A175: 2013-07-01 | B175: ASFALTOS DILUÍDOS CM-30 | C175: Bahia | D175: 1.436150016
A176: 2013-07-01 | B176: ASFALTOS DILUÍDOS CM-30 | C176: Ceará | D176: 1.424835845
A177: 2013-07-01 | B177: ASFALTOS DILUÍDOS CM-30 | C177: Distrito Federal | D177: -
A178: 2013-07-01 | B178: ASFALTOS DILUÍDOS CM-30 | C178: Espírito Santo | D178: -
A179: 2013-07-01 | B179: ASFALTOS DILUÍDOS CM-30 | C179: Goiás | D179: 1.663778454
A180: 2013-07-01 | B180: ASFALTOS DILUÍDOS CM-30 | C180: Maranhão | D180: -
A181: 2013-07-01 | B181: ASFALTOS DILUÍDOS CM-30 | C181: Mato Grosso | D181: 1.930589551
A182: 2013-07-01 | B182: ASFALTOS DILUÍDOS CM-30 | C182: Mato Grosso do Sul | D182: -
A183: 2013-07-01 | B183: ASFALTOS DILUÍDOS CM-30 | C183: Minas Gerais | D183: 1.476572352
A184: 2013-07-01 | B184: ASFALTOS DILUÍDOS CM-30 | C184: Pará | D184: -
A185: 2013-07-01 | B185: ASFALTOS DILUÍDOS CM-30 | C185: Paraíba | D185: -
A186: 2013-07-01 | B186: ASFALTOS DILUÍDOS CM-30 | C186: Paraná | D186: 1.477167274
A187: 2013-07-01 | B187: ASFALTOS DILUÍDOS CM-30 | C187: Pernambuco | D187: -
A188: 2013-07-01 | B188: ASFALTOS DILUÍDOS CM-30 | C188: Piauí | D188: -
A189: 2013-07-01 | B189: ASFALTOS DILUÍDOS CM-30 | C189: Rio de Janeiro | D189: 1.584464713
A190: 2013-07-01 | B190: ASFALTOS DILUÍDOS CM-30 | C190: Rio Grande do Norte | D190: -
A191: 2013-07-01 | B191: ASFALTOS DILUÍDOS CM-30 | C191: Rio Grande do Sul | D191: 1.612487925
A192: 2013-07-01 | B192: ASFALTOS DILUÍDOS CM-30 | C192: Rondônia | D192: -
A193: 2013-07-01 | B193: ASFALTOS DILUÍDOS CM-30 | C193: Roraima | D193: -
A194: 2013-07-01 | B194: ASFALTOS DILUÍDOS CM-30 | C194: Santa Catarina | D194: -
A195: 2013-07-01 | B195: ASFALTOS DILUÍDOS CM-30 | C195: São Paulo | D195: 1.507844909
A196: 2013-07-01 | B196: ASFALTOS DILUÍDOS CM-30 | C196: Sergipe | D196: -
A197: 2013-07-01 | B197: ASFALTOS DILUÍDOS CM-30 | C197: Tocantins | D197: -
A198: 2013-08-01 | B198: ASFALTOS DILUÍDOS CM-30 | C198: Acre | D198: -
A199: 2013-08-01 | B199: ASFALTOS DILUÍDOS CM-30 | C199: Alagoas | D199: -
A200: 2013-08-01 | B200: ASFALTOS DILUÍDOS CM-30 | C200: Amapá | D200: -
A201: 2013-08-01 | B201: ASFALTOS DILUÍDOS CM-30 | C201: Amazonas | D201: 1.509275641
A202: 2013-08-01 | B202: ASFALTOS DILUÍDOS CM-30 | C202: Bahia | D202: 1.416699323
A203: 2013-08-01 | B203: ASFALTOS DILUÍDOS CM-30 | C203: Ceará | D203: 1.447403364
... 4297 more rows

Sheet ANP REGIÃO
A1: Agência Nacional do Petróleo, Gás Natural e Biocombustíveis
A2: Superintendência de Defesa da Concorrência
A6: PREÇO MÉDIO MENSAL PONDERADO PRATICADO PELOS DISTRIBUIDORES DE PRODUTOS ASFÁLTICOS (R$/KG)
A8: Produto | B8: Mês | C8: Norte | D8: Nordeste | E8: Centro-Oeste | F8: Sudeste | G8: Sul | H8: Brasil
A9: ASFALTOS DILUÍDOS CM-30 | B9: 2008-11-01 | C9: 1.775468292 | D9: 1.55087853 | E9: 2.022143291 | F9: 1.55449367 | G9: 1.584532899 | H9: 1.64286837
A10: ASFALTOS DILUÍDOS CM-30 | B10: 2008-12-01 | C10: 1.806837667 | D10: 1.509118192 | E10: 2.013020124 | F10: 1.610902223 | G10: 1.607187591 | H10: 1.637581471
A11: ASFALTOS DILUÍDOS CM-30 | B11: 2009-01-01 | C11: 1.497052858 | D11: 1.504296346 | E11: 1.963097671 | F11: 1.524672247 | G11: 1.585137209 | H11: 1.564945876
A12: ASFALTOS DILUÍDOS CM-30 | B12: 2009-02-01 | C12: 1.42787112 | D12: 1.497693283 | E12: 1.981065098 | F12: 1.583490231 | G12: 1.595924062 | H12: 1.565451036
A13: ASFALTOS DILUÍDOS CM-30 | B13: 2009-03-01 | C13: 1.404941405 | D13: 1.497647987 | E13: 1.893430263 | F13: 1.52754782 | G13: 1.588720029 | H13: 1.532713147
A14: ASFALTOS DILUÍDOS CM-30 | B14: 2009-04-01 | C14: 1.410510748 | D14: 1.484826261 | E14: 1.909226429 | F14: 1.464149371 | G14: 1.553831928 | H14: 1.516717648
A15: ASFALTOS DILUÍDOS CM-30 | B15: 2009-05-01 | C15: 1.480355678 | D15: 1.466898928 | E15: 1.891590435 | F15: 1.435443718 | G15: 1.54161118 | H15: 1.537574371
A16: ASFALTOS DILUÍDOS CM-30 | B16: 2009-06-01 | C16: 1.580751039 | D16: 1.444888837 | E16: 1.842074119 | F16: 1.424264315 | G16: 1.501526696 | H16: 1.541315575
A17: ASFALTOS DILUÍDOS CM-30 | B17: 2009-07-01 | C17: 1.905432476 | D17: 1.482618211 | E17: 1.949046345 | F17: 1.584435299 | G17: 1.610310436 | H17: 1.651032523
A18: ASFALTOS DILUÍDOS CM-30 | B18: 2009-08-01 | C18: 1.716995184 | D18: 1.423854915 | E18: 1.712385478 | F18: 1.418000805 | G18: 1.520643497 | H18: 1.504911469
A19: ASFALTOS DILUÍDOS CM-30 | B19: 2009-09-01 | C19: 1.64329494 | D19: 1.445317761 | E19: 1.731518803 | F19: 1.419374251 | G19: 1.500735895 | H19: 1.50552312
A20: ASFALTOS DILUÍDOS CM-30 | B20: 2009-10-01 | C20: 1.588031924 | D20: 1.458932649 | E20: 1.762015056 | F20: 1.429024419 | G20: 1.513753831 | H20: 1.511681904
A21: ASFALTOS DILUÍDOS CM-30 | B21: 2009-11-01 | C21: 1.639348604 | D21: 1.449059777 | E21: 1.772650817 | F21: 1.434122677 | G21: 1.526043188 | H21: 1.499657392
A22: ASFALTOS DILUÍDOS CM-30 | B22: 2009-12-01 | C22: 1.664266853 | D22: 1.441966636 | E22: 1.890574802 | F22: 1.429077727 | G22: 1.520539334 | H22: 1.508864598
A23: ASFALTOS DILUÍDOS CM-30 | B23: 2010-01-01 | C23: 1.842506144 | D23: 1.454977129 | E23: 1.865022447 | F23: 1.414817608 | G23: 1.474450765 | H23: 1.497735227
A24: ASFALTOS DILUÍDOS CM-30 | B24: 2010-02-01 | C24: 1.709886915 | D24: 1.442956487 | E24: 1.919844741 | F24: 1.433146251 | G24: 1.500882448 | H24: 1.496542251
A25: ASFALTOS DILUÍDOS CM-30 | B25: 2010-03-01 | C25: 1.535743416 | D25: 1.448880499 | E25: 1.935062728 | F25: 1.435026116 | G25: 1.480618635 | H25: 1.486789802
A26: ASFALTOS DILUÍDOS CM-30 | B26: 2010-04-01 | C26: 1.710046479 | D26: 1.440300254 | E26: 1.911935961 | F26: 1.421102153 | G26: 1.481270937 | H26: 1.511086431
A27: ASFALTOS DILUÍDOS CM-30 | B27: 2010-05-01 | C27: 1.755610465 | D27: 1.435277221 | E27: 1.873293889 | F27: 1.406944432 | G27: 1.48177605 | H27: 1.537170565
A28: ASFALTOS DILUÍDOS CM-30 | B28: 2010-06-01 | C28: 1.602224314 | D28: 1.396004336 | E28: 1.731734721 | F28: 1.399996227 | G28: 1.49193962 | H28: 1.498073418
A29: ASFALTOS DILUÍDOS CM-30 | B29: 2010-07-01 | C29: 1.559901627 | D29: 1.381016708 | E29: 1.732688214 | F29: 1.402904856 | G29: 1.473854427 | H29: 1.490075269
A30: ASFALTOS DILUÍDOS CM-30 | B30: 2010-08-01 | C30: 1.526639389 | D30: 1.38817836 | E30: 1.738946087 | F30: 1.398751236 | G30: 1.455749849 | H30: 1.495828516
A31: ASFALTOS DILUÍDOS CM-30 | B31: 2010-09-01 | C31: 1.565378829 | D31: 1.408204664 | E31: 1.757027378 | F31: 1.411642875 | G31: 1.487257745 | H31: 1.512257128
A32: ASFALTOS DILUÍDOS CM-30 | B32: 2010-10-01 | C32: 1.481711294 | D32: 1.404357715 | E32: 1.751159947 | F32: 1.403489437 | G32: 1.469340847 | H32: 1.49988826
A33: ASFALTOS DILUÍDOS CM-30 | B33: 2010-11-01 | C33: 1.519267672 | D33: 1.410130904 | E33: 1.779405625 | F33: 1.421283822 | G33: 1.458559112 | H33: 1.481658635
A34: ASFALTOS DILUÍDOS CM-30 | B34: 2010-12-01 | C34: 1.559287556 | D34: 1.40982051 | E34: 1.825185618 | F34: 1.417673572 | G34: 1.473243884 | H34: 1.469113031
A35: ASFALTOS DILUÍDOS CM-30 | B35: 2011-01-01 | C35: 1.525923305 | D35: 1.445794092 | E35: 1.774600924 | F35: 1.403274235 | G35: 1.466002814 | H35: 1.457256066
A36: ASFALTOS DILUÍDOS CM-30 | B36: 2011-02-01 | C36: 1.552825112 | D36: 1.392094259 | E36: 1.763836123 | F36: 1.385194937 | G36: 1.44955884 | H36: 1.426250478
A37: ASFALTOS DILUÍDOS CM-30 | B37: 2011-03-01 | C37: 1.469219693 | D37: 1.369442916 | E37: 1.696017922 | F37: 1.353812804 | G37: 1.435170694 | H37: 1.400130249
A38: ASFALTOS DILUÍDOS CM-30 | B38: 2011-04-01 | C38: 1.470570262 | D38: 1.373220492 | E38: 1.650829394 | F38: 1.345928103 | G38: 1.42199894 | H38: 1.400493522
A39: ASFALTOS DILUÍDOS CM-30 | B39: 2011-05-01 | C39: 1.428528955 | D39: 1.322646267 | E39: 1.700380913 | F39: 1.345068163 | G39: 1.439361431 | H39: 1.428058019
A40: ASFALTOS DILUÍDOS CM-30 | B40: 2011-06-01 | C40: 1.407622163 | D40: 1.305708657 | E40: 1.741843669 | F40: 1.354620495 | G40: 1.399501693 | H40: 1.44029982
A41: ASFALTOS DILUÍDOS CM-30 | B41: 2011-07-01 | C41: 1.259234065 | D41: 1.312033305 | E41: 1.737489696 | F41: 1.33656388 | G41: 1.422474887 | H41: 1.420839252
A42: ASFALTOS DILUÍDOS CM-30 | B42: 2011-08-01 | C42: 1.470680061 | D42: 1.299778765 | E42: 1.727443485 | F42: 1.341477821 | G42: 1.353018352 | H42: 1.425675534
A43: ASFALTOS DILUÍDOS CM-30 | B43: 2011-09-01 | C43: 1.56132872 | D43: 1.321196084 | E43: 1.729821548 | F43: 1.357451483 | G43: 1.395684798 | H43: 1.455202413
A44: ASFALTOS DILUÍDOS CM-30 | B44: 2011-10-01 | C44: 1.520569722 | D44: 1.326218736 | E44: 1.71738046 | F44: 1.332691392 | G44: 1.3577774 | H44: 1.442295871
A45: ASFALTOS DILUÍDOS CM-30 | B45: 2011-11-01 | C45: 1.465886334 | D45: 1.337041154 | E45: 1.741004886 | F45: 1.345486103 | G45: 1.447580565 | H45: 1.445354137
A46: ASFALTOS DILUÍDOS CM-30 | B46: 2011-12-01 | C46: 1.470883899 | D46: 1.335587636 | E46: 1.778724141 | F46: 1.408293068 | G46: 1.428112306 | H46: 1.422418604
A47: ASFALTOS DILUÍDOS CM-30 | B47: 2012-01-01 | C47: 1.384955015 | D47: 1.350130156 | E47: 1.780783883 | F47: 1.421354107 | G47: 1.430352474 | H47: 1.394658167
A48: ASFALTOS DILUÍDOS CM-30 | B48: 2012-02-01 | C48: 1.332181678 | D48: 1.368143891 | E48: 1.741020394 | F48: 1.400200985 | G48: 1.425400986 | H48: 1.410605707
A49: ASFALTOS DILUÍDOS CM-30 | B49: 2012-03-01 | C49: 1.411621867 | D49: 1.349122214 | E49: 1.620096006 | F49: 1.393295764 | G49: 1.406130569 | H49: 1.409768786
A50: ASFALTOS DILUÍDOS CM-30 | B50: 2012-04-01 | C50: 1.549007912 | D50: 1.383976456 | E50: 1.640712752 | F50: 1.404716397 | G50: 1.440617793 | H50: 1.45608482
A51: ASFALTOS DILUÍDOS CM-30 | B51: 2012-05-01 | C51: 1.596178941 | D51: 1.386362272 | E51: 1.712061183 | F51: 1.39923955 | G51: 1.448350887 | H51: 1.498461969
A52: ASFALTOS DILUÍDOS CM-30 | B52: 2012-06-01 | C52: 1.701432576 | D52: 1.388053518 | E52: 1.740352007 | F52: 1.422118749 | G52: 1.449196072 | H52: 1.527722717
A53: ASFALTOS DILUÍDOS CM-30 | B53: 2012-07-01 | C53: 1.652026742 | D53: 1.39436857 | E53: 1.718644846 | F53: 1.439670261 | G53: 1.46187567 | H53: 1.523069159
A54: ASFALTOS DILUÍDOS CM-30 | B54: 2012-08-01 | C54: 1.689998835 | D54: 1.40333785 | E54: 1.741895041 | F54: 1.421723369 | G54: 1.445685799 | H54: 1.536533078
A55: ASFALTOS DILUÍDOS CM-30 | B55: 2012-09-01 | C55: 1.690177972 | D55: 1.421500003 | E55: 1.780920724 | F55: 1.445180432 | G55: 1.483645866 | H55: 1.549410653
A56: ASFALTOS DILUÍDOS CM-30 | B56: 2012-10-01 | C56: 1.574840342 | D56: 1.417066109 | E56: 1.794832036 | F56: 1.451304526 | G56: 1.482037109 | H56: 1.550631802
A57: ASFALTOS DILUÍDOS CM-30 | B57: 2012-11-01 | C57: 1.655163526 | D57: 1.455878748 | E57: 1.840129766 | F57: 1.461204615 | G57: 1.483499722 | H57: 1.552500776
A58: ASFALTOS DILUÍDOS CM-30 | B58: 2012-12-01 | C58: 1.714876125 | D58: 1.435854741 | E58: 1.804066573 | F58: 1.45222765 | G58: 1.509417648 | H58: 1.523411999
A59: ASFALTOS DILUÍDOS CM-30 | B59: 2013-01-01 | C59: 1.495776335 | D59: 1.449494588 | E59: 1.854050525 | F59: 1.44638752 | G59: 1.563753675 | H59: 1.502137259
A60: ASFALTOS DILUÍDOS CM-30 | B60: 2013-02-01 | C60: 1.635067666 | D60: 1.420609638 | E60: 1.731071498 | F60: 1.442746356 | G60: 1.461828405 | H60: 1.4739561
A61: ASFALTOS DILUÍDOS CM-30 | B61: 2013-03-01 | C61: 1.646229098 | D61: 1.413299983 | E61: 1.83828087 | F61: 1.450015152 | G61: 1.525760413 | H61: 1.506542904
A62: ASFALTOS DILUÍDOS CM-30 | B62: 2013-04-01 | C62: 1.581864474 | D62: 1.399189564 | E62: 1.793825113 | F62: 1.458704755 | G62: 1.551913702 | H62: 1.523623636
A63: ASFALTOS DILUÍDOS CM-30 | B63: 2013-05-01 | C63: 1.815646773 | D63: 1.390143517 | E63: 1.812783313 | F63: 1.44951052 | G63: 1.504233457 | H63: 1.549918592
A64: ASFALTOS DILUÍDOS CM-30 | B64: 2013-06-01 | C64: 1.631101583 | D64: 1.383186536 | E64: 1.816642105 | F64: 1.474232641 | G64: 1.503043689 | H64: 1.581049429
A65: ASFALTOS DILUÍDOS CM-30 | B65: 2013-07-01 | C65: 1.86596563 | D65: 1.422051117 | E65: 1.793072753 | F65: 1.498018808 | G65: 1.533391901 | H65: 1.59880513
A66: ASFALTOS DILUÍDOS CM-30 | B66: 2013-08-01 | C66: 1.700325546 | D66: 1.435094415 | E66: 1.821452614 | F66: 1.511722868 | G66: 1.530793596 | H66: 1.606176585
A67: ASFALTOS DILUÍDOS CM-30 | B67: 2013-09-01 | C67: 1.562873733 | D67: 1.472197748 | E67: 1.879842712 | F67: 1.542652867 | G67: 1.490667543 | H67: 1.627945893
A68: ASFALTOS DILUÍDOS CM-30 | B68: 2013-10-01 | C68: 1.648504013 | D68: 1.472152345 | E68: 1.825494997 | F68: 1.501177682 | G68: 1.48378912 | H68: 1.597538775
A69: ASFALTOS DILUÍDOS CM-30 | B69: 2013-11-01 | C69: 1.619179062 | D69: 1.486413317 | E69: 1.844012679 | F69: 1.496326809 | G69: 1.506096878 | H69: 1.581665844
A70: ASFALTOS DILUÍDOS CM-30 | B70: 2013-12-01 | C70: 1.633358293 | D70: 1.494818097 | E70: 1.897197176 | F70: 1.502864538 | G70: 1.517074296 | H70: 1.572475244
A71: ASFALTOS DILUÍDOS CM-30 | B71: 2014-01-01 | C71: 1.688311265 | D71: 1.494181305 | E71: 1.798355903 | F71: 1.484202293 | G71: 1.533353813 | H71: 1.542909737
A72: ASFALTOS DILUÍDOS CM-30 | B72: 2014-02-01 | C72: 1.598304434 | D72: 1.479706587 | E72: 1.814390215 | F72: 1.514829392 | G72: 1.522800588 | H72: 1.528970287
A73: ASFALTOS DILUÍDOS CM-30 | B73: 2014-03-01 | C73: 1.648287687 | D73: 1.472852501 | E73: 1.76657319 | F73: 1.513020673 | G73: 1.506185248 | H73: 1.530181178
A74: ASFALTOS DILUÍDOS CM-30 | B74: 2014-04-01 | C74: 1.534459987 | D74: 1.493898767 | E74: 1.757271278 | F74: 1.533021309 | G74: 1.524275274 | H74: 1.550566305
A75: ASFALTOS DILUÍDOS CM-30 | B75: 2014-05-01 | C75: 1.58658327 | D75: 1.490834685 | E75: 1.804339251 | F75: 1.501138131 | G75: 1.567043824 | H75: 1.586452272
A76: ASFALTOS DILUÍDOS CM-30 | B76: 2014-06-01 | C76: 1.658277164 | D76: 1.505801121 | E76: 1.839593445 | F76: 1.5068632 | G76: 1.523776953 | H76: 1.636070702
A77: ASFALTOS DILUÍDOS CM-30 | B77: 2014-07-01 | C77: 1.890299542 | D77: 1.500730514 | E77: 1.708277865 | F77: 1.487293964 | G77: 1.505956069 | H77: 1.587065158
A78: ASFALTOS DILUÍDOS CM-30 | B78: 2014-08-01 | C78: 1.632741832 | D78: 1.501945324 | E78: 1.671203189 | F78: 1.482359341 | G78: 1.506327366 | H78: 1.557910377
A79: ASFALTOS DILUÍDOS CM-30 | B79: 2014-09-01 | C79: 1.66956717 | D79: 1.546830427 | E79: 1.864797016 | F79: 1.496764585 | G79: 1.570533242 | H79: 1.639281057
A80: ASFALTOS DILUÍDOS CM-30 | B80: 2014-10-01 | C80: 1.742876916 | D80: 1.508978569 | E80: 1.746650466 | F80: 1.470773645 | G80: 1.454273462 | H80: 1.57912022
A81: ASFALTOS DILUÍDOS CM-30 | B81: 2014-11-01 | C81: 1.864723419 | D81: 1.57943059 | E81: 1.749156218 | F81: 1.465084479 | G81: 1.529147988 | H81: 1.601359821
A82: ASFALTOS DILUÍDOS CM-30 | B82: 2014-12-01 | C82: 1.812671914 | D82: 1.704844348 | E82: 1.963310066 | F82: 1.623676702 | G82: 1.649644659 | H82: 1.718826981
A83: ASFALTOS DILUÍDOS CM-30 | B83: 2015-01-01 | C83: 2.154807062 | D83: 2.023760447 | E83: 2.318863736 | F83: 1.866588967 | G83: 1.898380434 | H83: 2.007792032
A84: ASFALTOS DILUÍDOS CM-30 | B84: 2015-02-01 | C84: 2.260238625 | D84: 2.005673765 | E84: 2.393875762 | F84: 1.854519766 | G84: 1.927395107 | H84: 2.007653781
A85: ASFALTOS DILUÍDOS CM-30 | B85: 2015-03-01 | C85: 2.124176462 | D85: 1.968822849 | E85: 2.279643254 | F85: 1.887760911 | G85: 1.930217145 | H85: 1.984816916
A86: ASFALTOS DILUÍDOS CM-30 | B86: 2015-04-01 | C86: 2.030049505 | D86: 2.001506448 | E86: 2.379118903 | F86: 1.85245167 | G86: 1.949025254 | H86: 1.98064321
A87: ASFALTOS DILUÍDOS CM-30 | B87: 2015-05-01 | C87: 2.507271651 | D87: 1.946869908 | E87: 2.254758192 | F87: 1.807470001 | G87: 2.016929536 | H87: 2.005474234
A88: ASFALTOS DILUÍDOS CM-30 | B88: 2015-06-01 | C88: 2.248320042 | D88: 1.944259736 | E88: 2.314331796 | F88: 1.846998595 | G88: 1.968565125 | H88: 2.042581344
A89: ASFALTOS DILUÍDOS CM-30 | B89: 2015-07-01 | C89: 1.992222758 | D89: 1.992791635 | E89: 2.046769953 | F89: 1.782648603 | G89: 1.931671385 | H89: 1.942627362
A90: ASFALTOS DILUÍDOS CM-30 | B90: 2015-08-01 | C90: 2.307605931 | D90: 2.038089127 | E90: 2.252748105 | F90: 1.828097705 | G90: 1.939824481 | H90: 2.08193616
A91: ASFALTOS DILUÍDOS CM-30 | B91: 2015-09-01 | C91: 2.314289704 | D91: 2.095307531 | E91: 2.344561987 | F91: 1.942551091 | G91: 2.005352614 | H91: 2.168175541
A92: ASFALTOS DILUÍDOS CM-30 | B92: 2015-10-01 | C92: 2.329456663 | D92: 2.170570012 | E92: 2.43273012 | F92: 2.035624751 | G92: 2.110261148 | H92: 2.237533782
A93: ASFALTOS DILUÍDOS CM-30 | B93: 2015-11-01 | C93: 2.606056566 | D93: 2.437098304 | E93: 2.711612141 | F93: 2.280113896 | G93: 2.326446297 | H93: 2.474998781
A94: ASFALTOS DILUÍDOS CM-30 | B94: 2015-12-01 | C94: 2.635374006 | D94: 2.395920309 | E94: 2.693528386 | F94: 2.272528129 | G94: 2.330740659 | H94: 2.452848156
A95: ASFALTOS DILUÍDOS CM-30 | B95: 2016-01-01 | C95: 2.715863993 | D95: 2.373861647 | E95: 2.844670602 | F95: 2.263650658 | G95: 2.232631691 | H95: 2.400563394
A96: ASFALTOS DILUÍDOS CM-30 | B96: 2016-02-01 | C96: 2.80468316 | D96: 2.466846816 | E96: 2.791787007 | F96: 2.295637115 | G96: 2.346556173 | H96: 2.464348548
A97: ASFALTOS DILUÍDOS CM-30 | B97: 2016-03-01 | C97: 2.5805021 | D97: 2.470678753 | E97: 2.707688025 | F97: 2.235301999 | G97: 2.383115972 | H97: 2.423563924
A98: ASFALTOS DILUÍDOS CM-30 | B98: 2016-04-01 | C98: 2.942006312 | D98: 2.740742032 | E98: 2.759071855 | F98: 2.544439178 | G98: 2.710751632 | H98: 2.680274833
A99: ASFALTOS DILUÍDOS CM-30 | B99: 2016-05-01 | C99: 3.010579472 | D99: 2.650277047 | E99: 2.857121361 | F99: 2.575583152 | G99: 2.770413362 | H99: 2.70973327
A100: ASFALTOS DILUÍDOS CM-30 | B100: 2016-06-01 | C100: 2.909179844 | D100: 2.621385041 | E100: 2.943487281 | F100: 2.659109515 | G100: 2.684759555 | H100: 2.743619517
A101: ASFALTOS DILUÍDOS CM-30 | B101: 2016-07-01 | C101: 2.985740381 | D101: 2.591644045 | E101: 2.98927803 | F101: 2.604396599 | G101: 2.660884423 | H101: 2.745135539
A102: ASFALTOS DILUÍDOS CM-30 | B102: 2016-08-01 | C102: 2.935243919 | D102: 2.623917329 | E102: 2.970490854 | F102: 2.679486504 | G102: 2.727025649 | H102: 2.781385962
A103: ASFALTOS DILUÍDOS CM-30 | B103: 2016-09-01 | C103: 2.649136821 | D103: 2.521054851 | E103: 2.781583925 | F103: 2.51393313 | G103: 2.371271501 | H103: 2.595617128
A104: ASFALTOS DILUÍDOS CM-30 | B104: 2016-10-01 | C104: 2.626109257 | D104: 2.444469093 | E104: 2.781617873 | F104: 2.507383127 | G104: 2.38325399 | H104: 2.566999037
A105: ASFALTOS DILUÍDOS CM-30 | B105: 2016-11-01 | C105: 2.535087408 | D105: 2.374145527 | E105: 2.952768674 | F105: 2.481263765 | G105: 2.382206771 | H105: 2.542842366
A106: ASFALTOS DILUÍDOS CM-30 | B106: 2016-12-01 | C106: 2.50039107 | D106: 2.253413483 | E106: 3.038519458 | F106: 2.589438892 | G106: 2.395593424 | H106: 2.476439295
A107: ASFALTOS DILUÍDOS CM-30 | B107: 2017-01-01 | C107: 2.392875504 | D107: 2.232695674 | E107: 3.089080971 | F107: 2.535744039 | G107: 2.378694833 | H107: 2.374216192
A108: ASFALTOS DILUÍDOS CM-30 | B108: 2017-02-01 | C108: 2.68039414 | D108: 2.271897225 | E108: 2.764408032 | F108: 2.573933685 | G108: 2.384644398 | H108: 2.470721466
A109: ASFALTOS DILUÍDOS CM-30 | B109: 2017-03-01 | C109: 2.23884121 | D109: 2.386958079 | E109: 2.667220252 | F109: 2.372165947 | G109: 2.30121887 | H109: 2.378796986
A110: ASFALTOS DILUÍDOS CM-30 | B110: 2017-04-01 | C110: 2.420191398 | D110: 2.307969596 | E110: 2.794093014 | F110: 2.258409912 | G110: 2.256434297 | H110: 2.380268484
A111: ASFALTOS DILUÍDOS CM-30 | B111: 2017-05-01 | C111: 2.432106692 | D111: 2.167919128 | E111: 2.699836936 | F111: 2.255387192 | G111: 2.204026958 | H111: 2.361515909
A112: ASFALTOS DILUÍDOS CM-30 | B112: 2017-06-01 | C112: 2.428301776 | D112: 2.181938689 | E112: 2.756672055 | F112: 2.234549022 | G112: 2.305778546 | H112: 2.44553453
A113: ASFALTOS DILUÍDOS CM-30 | B113: 2017-07-01 | C113: 2.453752061 | D113: 2.218075334 | E113: 2.694625022 | F113: 2.414329247 | G113: 2.269601102 | H113: 2.473436106
A114: ASFALTOS DILUÍDOS CM-30 | B114: 2017-08-01 | C114: 2.447930976 | D114: 2.153112031 | E114: 2.595349952 | F114: 2.302919065 | G114: 2.170148667 | H114: 2.380876423
A115: ASFALTOS DILUÍDOS CM-30 | B115: 2017-09-01 | C115: 2.494551504 | D115: 2.14243989 | E115: 2.623166503 | F115: 2.371308095 | G115: 2.303698507 | H115: 2.393542204
A116: ASFALTOS DILUÍDOS CM-30 | B116: 2017-10-01 | C116: 2.349953944 | D116: 2.18056004 | E116: 2.614160957 | F116: 2.415254962 | G116: 2.20079573 | H116: 2.367947121
A117: ASFALTOS DILUÍDOS CM-30 | B117: 2017-11-01 | C117: 2.670126991 | D117: 2.433169195 | E117: 2.908627464 | F117: 2.58469482 | G117: 2.415192709 | H117: 2.602101348
A118: ASFALTOS DILUÍDOS CM-30 | B118: 2017-12-01 | C118: 2.587352645 | D118: 2.425358882 | E118: 2.906633765 | F118: 2.602890298 | G118: 2.42288976 | H118: 2.531764464
A119: ASFALTOS DILUÍDOS CM-30 | B119: 2018-01-01 | C119: 2.950360755 | D119: 2.662862923 | E119: 2.875953993 | F119: 2.620738484 | G119: 2.646955252 | H119: 2.735956369
A120: ASFALTOS DILUÍDOS CM-30 | B120: 2018-02-01 | C120: 2.677899567 | D120: 2.672498164 | E120: 2.942595474 | F120: 2.62043113 | G120: 2.567885662 | H120: 2.668369933
A121: ASFALTOS DILUÍDOS CM-30 | B121: 2018-03-01 | C121: 2.733363025 | D121: 2.589050022 | E121: 2.809172556 | F121: 2.561928393 | G121: 2.575946067 | H121: 2.634876584
A122: ASFALTOS DILUÍDOS CM-30 | B122: 2018-04-01 | C122: 2.75780112 | D122: 2.669553602 | E122: 2.773908242 | F122: 2.59547006 | G122: 2.556042394 | H122: 2.6643302
A123: ASFALTOS DILUÍDOS CM-30 | B123: 2018-05-01 | C123: 2.841213362 | D123: 2.672025877 | E123: 2.884501482 | F123: 2.686718021 | G123: 2.736485103 | H123: 2.77737896
A124: ASFALTOS DILUÍDOS CM-30 | B124: 2018-06-01 | C124: 3.008444789 | D124: 2.919605178 | E124: 3.158454886 | F124: 2.84673108 | G124: 2.953523993 | H124: 2.982291635
A125: ASFALTOS DILUÍDOS CM-30 | B125: 2018-07-01 | C125: 3.268237549 | D125: 3.036524094 | E125: 3.399360399 | F125: 3.026467598 | G125: 3.19779631 | H125: 3.164126546
A126: ASFALTOS DILUÍDOS CM-30 | B126: 2018-08-01 | C126: 3.56441315 | D126: 3.415193769 | E126: 3.707706206 | F126: 3.425079349 | G126: 3.356722461 | H126: 3.515558112
A127: ASFALTOS DILUÍDOS CM-30 | B127: 2018-09-01 | C127: 3.173913778 | D127: 3.445064118 | E127: 3.73526324 | F127: 3.385816186 | G127: 3.607309454 | H127: 3.483238429
A128: ASFALTOS DILUÍDOS CM-30 | B128: 2018-10-01 | C128: 3.487778119 | D128: 3.460508804 | E128: 3.721444057 | F128: 3.432525565 | G128: 3.60602088 | H128: 3.545390344
A129: ASFALTOS DILUÍDOS CM-30 | B129: 2018-11-01 | C129: 4.047272484 | D129: 3.814893312 | E129: 4.280131586 | F129: 4.178126777 | G129: 3.967681367 | H129: 3.990147183
A130: ASFALTOS DILUÍDOS CM-30 | B130: 2018-12-01 | C130: 3.951491146 | D130: 3.967113195 | E130: 4.341144202 | F130: 3.916766066 | G130: 3.911993357 | H130: 3.999742654
A131: ASFALTOS DILUÍDOS CM-30 | B131: 2019-01-01 | C131: 3.796855325 | D131: 3.870018889 | E131: 4.201901762 | F131: 3.954196997 | G131: 3.976786028 | H131: 3.933951911
A132: ASFALTOS DILUÍDOS CM-30 | B132: 2019-02-01 | C132: 3.516584073 | D132: 4.090361178 | E132: 4.498422953 | F132: 4.469942475 | G132: 4.254590254 | H132: 4.188544679
A133: ASFALTOS DILUÍDOS CM-30 | B133: 2019-03-01 | C133: 4.216758117 | D133: 4.361910728 | E133: 4.907194889 | F133: 4.398717729 | G133: 4.290823922 | H133: 4.360295279
A134: ASFALTOS DILUÍDOS CM-30 | B134: 2019-04-01 | C134: 4.281648205 | D134: 4.234661428 | E134: 4.531627215 | F134: 4.43722653 | G134: 4.466881471 | H134: 4.38082044
A135: ASFALTOS DILUÍDOS CM-30 | B135: 2019-05-01 | C135: 4.287644659 | D135: 4.190699738 | E135: 4.857910872 | F135: 4.267461963 | G135: 4.633806379 | H135: 4.366402151
A136: ASFALTOS DILUÍDOS CM-30 | B136: 2019-06-01 | C136: 4.475609892 | D136: 3.965052934 | E136: 4.66272934 | F136: 4.350600604 | G136: 4.211229921 | H136: 4.319323669
A137: ASFALTOS DILUÍDOS CM-30 | B137: 2019-07-01 | C137: 4.394498989 | D137: 4.058039305 | E137: 4.834221945 | F137: 4.094659414 | G137: 4.233003281 | H137: 4.346977757
A138: ASFALTOS DILUÍDOS CM-30 | B138: 2019-08-01 | C138: 4.48173504 | D138: 3.910662496 | E138: 4.576329081 | F138: 4.11161654 | G138: 4.255419985 | H138: 4.258345083
A139: ASFALTOS DILUÍDOS CM-30 | B139: 2019-09-01 | C139: 4.439578796 | D139: 3.859904896 | E139: 4.495256968 | F139: 4.111321475 | G139: 4.117359152 | H139: 4.251607085
A140: ASFALTOS DILUÍDOS CM-30 | B140: 2019-10-01 | C140: 4.335888631 | D140: 3.772324962 | E140: 4.459242357 | F140: 4.056084115 | G140: 3.942458011 | H140: 4.07740702
A141: ASFALTOS DILUÍDOS CM-30 | B141: 2019-11-01 | C141: 4.316238692 | D141: 3.910245509 | E141: 4.581841077 | F141: 4.07902404 | G141: 4.106621274 | H141: 4.094561212
A142: ASFALTOS DILUÍDOS CM-30 | B142: 2019-12-01 | C142: 4.199435972 | D142: 3.980119663 | E142: 4.673774805 | F142: 4.434268142 | G142: 3.986410312 | H142: 4.164691616
A143: ASFALTOS DILUÍDOS CM-30 | B143: 2020-01-01 | C143: 3.59298003 | D143: 3.895320617 | E143: 4.685420623 | F143: 4.387074674 | G143: 4.124467668 | H143: 4.053338937
A144: ASFALTOS DILUÍDOS CM-30 | B144: 2020-02-01 | C144: 3.642667016 | D144: 3.877395187 | E144: 4.438194543 | F144: 3.699944607 | G144: 3.778164011 | H144: 3.839010438
A145: ASFALTOS DILUÍDOS CM-30 | B145: 2020-03-01 | C145: 4.676668339 | D145: 3.791138977 | E145: 4.289222343 | F145: 3.718402734 | G145: 3.60908619 | H145: 3.93117068
A146: ASFALTOS DILUÍDOS CM-30 | B146: 2020-04-01 | C146: 4.313362837 | D146: 3.6957655 | E146: 4.255395321 | F146: 3.865895531 | G146: 3.732253382 | H146: 3.964125211
A147: ASFALTOS DILUÍDOS CM-30 | B147: 2020-05-01 | C147: 3.249134658 | D147: 3.637769912 | E147: 4.113544882 | F147: 3.760550026 | G147: 3.710618099 | H147: 3.65617504
A148: ASFALTOS DILUÍDOS CM-30 | B148: 2020-06-01 | C148: 4.017903076 | D148: 3.567031492 | E148: 4.277369171 | F148: 3.937886485 | G148: 3.625830069 | H148: 3.924524506
A149: ASFALTOS DILUÍDOS CM-30 | B149: 2020-07-01 | C149: 3.840497509 | D149: 3.51327048 | E149: 4.21549069 | F149: 3.954223886 | G149: 3.688841275 | H149: 3.843774448
A150: ASFALTOS DILUÍDOS CM-30 | B150: 2020-08-01 | C150: 4.174467203 | D150: 3.465394219 | E150: 4.277710211 | F150: 4.06746494 | G150: 3.62858863 | H150: 3.947166917
A151: ASFALTOS DILUÍDOS CM-30 | B151: 2020-09-01 | C151: 4.167371331 | D151: 3.746360816 | E151: 4.167424356 | F151: 3.795621791 | G151: 3.627729935 | H151: 3.973129945
A152: ASFALTOS DILUÍDOS CM-30 | B152: 2020-10-01 | C152: 4.408099527 | D152: 3.718989878 | E152: 4.278979192 | F152: 4.008746906 | G152: 3.591048183 | H152: 4.03964377
A153: ASFALTOS DILUÍDOS CM-30 | B153: 2020-11-01 | C153: 4.056306006 | D153: 3.969209281 | E153: 4.547900893 | F153: 4.27945542 | G153: 3.973347244 | H153: 4.175826149
A154: ASFALTOS DILUÍDOS CM-30 | B154: 2020-12-01 | C154: 4.132064138 | D154: 3.851632751 | E154: 4.426704386 | F154: 3.906236422 | G154: 3.8709398 | H154: 4.035347374
A155: ASFALTOS DILUÍDOS CM-30 | B155: 2021-01-01 | C155: 3.489836333 | D155: 3.951525937 | E155: 4.628269702 | F155: 4.011577011 | G155: 3.935136638 | H155: 3.917092391
A156: ASFALTOS DILUÍDOS CM-30 | B156: 2021-02-01 | C156: 4.099318116 | D156: 4.267109523 | E156: 4.832061615 | F156: 4.414202706 | G156: 4.149048932 | H156: 4.26819704
A157: ASFALTOS DILUÍDOS CM-30 | B157: 2021-03-01 | C157: 4.528355792 | D157: 4.239831731 | E157: 4.926314562 | F157: 4.269697839 | G157: 4.130655409 | H157: 4.377833785
A158: ASFALTOS DILUÍDOS CM-30 | B158: 2021-04-01 | C158: 4.349271867 | D158: 4.086995154 | E158: 4.477597522 | F158: 4.156113398 | G158: 4.044189822 | H158: 4.253361798
A159: ASFALTOS DILUÍDOS CM-30 | B159: 2021-05-01 | C159: 4.488889413 | D159: 4.707945815 | E159: 5.101489686 | F159: 4.784034896 | G159: 4.523986615 | H159: 4.790548085
A160: ASFALTOS DILUÍDOS CM-30 | B160: 2021-06-01 | C160: 4.010467711 | D160: 4.479592126 | E160: 5.113041212 | F160: 4.779739905 | G160: 4.721214307 | H160: 4.764890884
A161: ASFALTOS DILUÍDOS CM-30 | B161: 2021-07-01 | C161: 4.752234128 | D161: 4.559350506 | E161: 5.004758283 | F161: 4.80272972 | G161: 4.748550678 | H161: 4.817586047
A162: ASFALTOS DILUÍDOS CM-30 | B162: 2021-08-01 | C162: 5.085284532 | D162: 4.772501255 | E162: 5.198537142 | F162: 5.244735259 | G162: 4.76131175 | H162: 5.0981692
A163: ASFALTOS DILUÍDOS CM-30 | B163: 2021-09-01 | C163: 5.110300267 | D163: 4.538072365 | E163: 5.241721185 | F163: 5.017144197 | G163: 4.862861245 | H163: 5.016958886
A164: ASFALTOS DILUÍDOS CM-30 | B164: 2021-10-01 | C164: 5.080697261 | D164: 4.66826742 | E164: 5.119544199 | F164: 5.384779065 | G164: 4.658516432 | H164: 5.021294312
A165: ASFALTOS DILUÍDOS CM-30 | B165: 2021-11-01 | C165: 5.436518753 | D165: 5.08776781 | E165: 5.150063985 | F165: 5.634257884 | G165: 5.174530131 | H165: 5.228141289
A166: ASFALTOS DILUÍDOS CM-30 | B166: 2021-12-01 | C166: 5.184291386 | D166: 4.975486975 | E166: 5.572122251 | F166: 6.135655205 | G166: 5.01180992 | H166: 5.339565801
A167: ASFALTOS DILUÍDOS CM-30 | B167: 2022-01-01 | C167: 4.928191974 | D167: 5.023555623 | E167: 6.018407512 | F167: 5.214773026 | G167: 5.481979244 | H167: 5.250789679
A168: ASFALTOS DILUÍDOS CM-30 | B168: 2022-02-01 | C168: 5.545684189 | D168: 5.708628413 | E168: 6.011065894 | F168: 4.8651 | G168: 5.763367147 | H168: 5.736057428
A169: ASFALTOS DILUÍDOS CM-30 | B169: 2022-03-01 | C169: 6.326844735 | D169: 5.644687904 | E169: 5.930807225 | F169: 6.181141143 | G169: 5.498041682 | H169: 5.922781038
A170: ASFALTOS DILUÍDOS CM-30 | B170: 2022-04-01 | C170: 5.974220681 | D170: 5.832747324 | E170: 6.206692615 | F170: 5.720329997 | G170: 6.17800291 | H170: 6.012354229
A171: ASFALTOS DILUÍDOS CM-30 | B171: 2022-05-01 | C171: 5.354015586 | D171: 5.464335309 | E171: 6.007611639 | F171: 5.995095583 | G171: 5.49095009 | H171: 5.670722744
A172: ASFALTOS DILUÍDOS CM-30 | B172: 2022-06-01 | C172: 5.802443798 | D172: 5.316964203 | E172: 5.25267889 | F172: 5.813931518 | G172: 5.644996328 | H172: 5.469498687
A173: ASFALTOS DILUÍDOS CM-30 | B173: 2022-07-01 | C173: 5.965614765 | D173: 5.829314879 | E173: 5.919099711 | F173: 5.742484775 | G173: 5.674430543 | H173: 5.862020702
A174: ASFALTOS DILUÍDOS CM-30 | B174: 2022-08-01 | C174: 6.424230463 | D174: 5.758256878 | E174: 5.752352843 | F174: 5.791905352 | G174: 5.31271724 | H174: 5.823186051
A175: ASFALTOS DILUÍDOS CM-30 | B175: 2022-09-01 | C175: 5.540097074 | D175: 5.609921619 | E175: 5.963592489 | F175: 5.302181194 | G175: 4.977929161 | H175: 5.699429921
A176: ASFALTOS DILUÍDOS CM-30 | B176: 2022-10-01 | C176: 4.785670999 | D176: 4.727521094 | E176: 5.339105147 | F176: 4.851160007 | G176: 4.532580513 | H176: 5.041661715
A177: ASFALTOS DILUÍDOS CM-30 | B177: 2022-11-01 | C177: 7.765855923 | D177: 4.775654982 | E177: 5.237626127 | F177: 4.636383138 | G177: 4.460593179 | H177: 5.074993862
A178: ASFALTOS DILUÍDOS CM-30 | B178: 2022-12-01 | C178: 4.65725 | D178: 4.966905362 | E178: 5.655161554 | F178: 4.840935672 | G178: 4.661007861 | H178: 5.11324949
A179: ASFALTOS DILUÍDOS CM-30 | B179: 2023-01-01 | C179: 4.948950319 | D179: 5.056264922 | E179: 5.359597966 | F179: 4.426497959 | G179: 4.103267888 | H179: 4.715605129
A180: ASFALTOS DILUÍDOS CM-30 | B180: 2023-02-01 | C180: 5.407494667 | D180: 4.335771195 | E180: 4.746646601 | F180: 4.674884727 | G180: 4.014547173 | H180: 4.417800736
A181: ASFALTOS DILUÍDOS CM-30 | B181: 2023-03-01 | C181: 4.99131 | D181: 4.01354912 | E181: 4.74625028 | F181: 4.08071937 | G181: 4.082484954 | H181: 4.270345723
A182: ASFALTOS DILUÍDOS CM-30 | B182: 2023-04-01 | C182: 4.438479015 | D182: 4.094201354 | E182: 5.135816186 | F182: 4.368265095 | G182: 3.859308149 | H182: 4.153818797
A183: ASFALTOS DILUÍDOS CM-30 | B183: 2023-05-01 | C183: 5.018589297 | D183: 4.506282643 | E183: 5.616638293 | F183: 4.034756925 | G183: 4.063701717 | H183: 4.686492725
A184: ASFALTOS DILUÍDOS CM-30 | B184: 2023-06-01 | C184: 4.439644526 | D184: 4.495805354 | E184: 5.228174524 | F184: 3.772028745 | G184: 4.009042073 | H184: 4.588045148
A185: ASFALTOS DILUÍDOS CM-30 | B185: 2023-07-01 | C185: 4.360399352 | D185: 4.250187634 | E185: 6.188049155 | F185: 3.699216781 | G185: 4.315773768 | H185: 4.790717553
A186: ASFALTOS DILUÍDOS CM-30 | B186: 2023-08-01 | C186: 4.043215999 | D186: 4.100901709 | E186: 5.414198228 | F186: 3.964297949 | G186: 4.055989778 | H186: 4.607810697
A187: ASFALTOS DILUÍDOS CM-30 | B187: 2023-09-01 | C187: 5.69501625 | D187: 4.358586276 | E187: 5.187252517 | F187: 4.112508656 | G187: 4.211646236 | H187: 4.748640211
A188: ASFALTOS DILUÍDOS CM-30 | B188: 2023-10-01 | C188: 5.685185 | D188: 4.294075647 | E188: 4.912919476 | F188: 4.365095101 | G188: 4.257370162 | H188: 4.609445905
A189: ASFALTOS DILUÍDOS CM-30 | B189: 2023-11-01 | C189: 4.815085397 | D189: 4.345599447 | E189: 5.404502747 | F189: 4.045271104 | G189: 4.164697405 | H189: 4.781498943
A190: ASFALTOS DILUÍDOS CM-30 | B190: 2023-12-01 | C190: 5.411492308 | D190: 4.700043896 | E190: 5.306415734 | F190: 4.313216862 | G190: 4.188732062 | H190: 4.664845353
A191: ASFALTOS DILUÍDOS CM-30 | B191: 2024-01-01 | C191: 3.716178391 | D191: 4.395163811 | E191: 4.888126947 | F191: 3.977196797 | G191: 4.057095331 | H191: 4.290228903
A192: ASFALTOS DILUÍDOS CM-30 | B192: 2024-02-01 | C192: 5.349588571 | D192: 4.281881871 | E192: 5.36118056 | F192: 4.287786155 | G192: 4.151112946 | H192: 4.366194996
A193: ASFALTOS DILUÍDOS CM-30 | B193: 2024-03-01 | C193: 6.437624165 | D193: 4.512948358 | E193: 4.994035932 | F193: 4.680610304 | G193: 4.197388123 | H193: 4.725137967
A194: ASFALTOS DILUÍDOS CM-30 | B194: 2024-04-01 | C194: 6.524010018 | D194: 5.333668875 | E194: 5.011370357 | F194: 3.991999626 | G194: 4.15116124 | H194: 4.439406986
A195: ASFALTOS DILUÍDOS CM-30 | B195: 2024-05-01 | C195: 6.61993633 | D195: *** | E195: 5.21538288 | F195: 4.24855796 | G195: 4.478170767 | H195: 4.960078568
A196: ASFALTOS DILUÍDOS CM-30 | B196: 2024-06-01 | C196: 6.461820806 | D196: 4.288169263 | E196: 4.921606124 | F196: 4.517339741 | G196: 4.897585787 | H196: 4.922850803
A197: ASFALTOS DILUÍDOS CM-30 | B197: 2024-07-01 | C197: 6.120612239 | D197: 4.599255433 | E197: 5.497451069 | F197: 4.667838533 | G197: 4.514452653 | H197: 4.962740397
A198: ASFALTOS DILUÍDOS CM-70 | B198: 2008-11-01 | C198: *** | D198: *** | E198: *** | F198: *** | G198: *** | H198: ***
A199: ASFALTOS DILUÍDOS CM-70 | B199: 2008-12-01 | C199: *** | D199: *** | E199: *** | F199: *** | G199: *** | H199: ***
A200: ASFALTOS DILUÍDOS CM-70 | B200: 2009-01-01 | C200: *** | D200: *** | E200: *** | F200: *** | G200: *** | H200: ***
A201: ASFALTOS DILUÍDOS CM-70 | B201: 2009-02-01 | C201: *** | D201: *** | E201: *** | F201: *** | G201: *** | H201: ***
A202: ASFALTOS DILUÍDOS CM-70 | B202: 2009-03-01 | C202: *** | D202: *** | E202: *** | F202: *** | G202: *** | H202: ***
A203: ASFALTOS DILUÍDOS CM-70 | B203: 2009-04-01 | C203: *** | D203: *** | E203: *** | F203: *** | G203: *** | H203: ***
A204: ASFALTOS DILUÍDOS CM-70 | B204: 2009-05-01 | C204: *** | D204: *** | E204: *** | F204: *** | G204: *** | H204: ***
... 4600 more rows
